{"text_format":"1","workbook":"xlsx","n_sheets":3,"sheets":["Bordereaux","DQE TYPE","Feuil1"],"not_rendered":{"charts":0,"images":0,"macros":1,"external_links":0,"defined_names":3,"comments":0,"pivot_tables":0},"unopened":[],"bounds":{"document_bytes":16777216,"sheet_cells":100000,"rows_first":2000,"rows_last":500,"rows_between":2000,"halvings":0,"cell_chars":16384,"cell_head_chars":4096},"cells_cut":0,"cells_raw":0,"read":"whole","date_system":"1900"}

{"sheet":"Bordereaux","index":0,"n_rows":2217,"n_cols":6,"rows_kept":2217,"cut":false,"hidden":false,"merged":[]}
[null,"SOMMAIRE"]
[]
[null,"GROS ŒUVRE"]
[null,"CHARPENTE"]
[null,"COUVERTURE"]
[null,"MENUISERIE"]
[null,"PLATRERIE ISOLATION"]
[null,"PEINTURES ET TAPISSERIES"]
[null,"REVETEMENTS DE SOLS ET MURS"]
[]
[]
[]
["Code","Désignation des ouvrages","unité","P.U. Vente H.T."]
[]
[null,"GROS ŒUVRE"]
[]
[null,"TERRASSEMENTS"]
[]
[null,"TERRASSEMENTS MECANQUES"]
[]
["1E0020","Décapage à l'engin de terre végétale ép. ≤ 20cm y compris mise à proximité ou sur camion.","m3",8.2899999999999991]
["1E0030","Décapage à l'engin de terre végétale ép. > 20cm y compris mise à proximité ou sur camion.","m3",7.05]
["1E1010","Fouilles à l'engin pour excavation, sol meuble, y compris mise sur berge ou camion.","m3",4.9800000000000004]
["1E1020","Fouilles à l'engin pour excavation, sol compact, y compris mise sur berge ou camion.","m3",5.81,null,"a"]
["1E2010","Fouilles à l'engin pour rigoles, sol meuble, y compris mise sur berge ou camion.","m3",23.45]
["1E2020","Fouilles à l'engin pour rigoles, sol compact, y compris mise sur berge ou camion.","m3",29.3]
["1E3010","Fouilles à l'engin pour trou, sol meuble, y compris mise sur berge ou camion.","m3",35.200000000000003]
["1E3020","Fouilles à l'engin pour trou, sol compact, y compris mise sur berge ou camion.","m3",42.2]
["1E4010","Fouilles à l'engin pour puits, sol meuble, y compris mise sur berge ou camion.","m3",38.25]
["1E6010","Remblai à l'engin en terre provenant des fouilles.","m3",12.6]
["1E6020","Remblai à l'engin pour plateforme en matériaux d'apport.","m3",49.25]
["1E7010","Transport de terre par camion 10t. Jusqu'à 10 km.","m3",12.45]
["1E80","Régalage à l'engin de terre végétale.","m3",11.75]
[]
[null,"TERRASSEMENTS MANUELS"]
[]
["1M2010","Fouilles manuelles pour rigoles, sole meuble, y compris mise sur berge ou camion.","m3",68.599999999999994]
["1M2010","Fouilles manuelles pour rigoles, sole compact, y compris mise sur berge ou camion.","m3",85.8]
["1M2010","Fouilles manuelles pour trou, sole meuble, y compris mise sur berge ou camion.","m3",103]
["1M2010","Fouilles manuelles pour trou, sole compact, y compris mise sur berge ou camion.","m3",137.5]
["1M2010","Fouilles manuelles pour puits, sole meuble, y compris mise sur berge ou camion.","m3",103]
["1M2010","Fouilles manuelles pour puits, sole compact, y compris mise sur berge ou camion.","m3",137.5]
["1M2010","Remblai manuel de terre provenant des fouilles.","m3",47.5]
["1M2010","Régalage manuel de terre végétale.","m3",27.45]
[]
[null,"FONDATIONS"]
[]
["2AT10","Film antitermites sous fondations.","m2",9.6999999999999993]
[]
[null,"FONDATIONS COULEES"]
[]
["2CB050","Béton de propreté C 16/20 ép. 5 cm.","m3",256.5]
["2CB060","Béton de propreté dosé à 250 kg de ciment ép. 10 cm.","m3",239.5]
["2CB115","Béton ordinaire (C20/25), pour semelle filante, coulé à pleine fouille.","m3",210.5]
["2CB125","Béton ordinaire (C20/25), pour semelle isolée, coulé à pleine fouille.","m3",224.5]
["2CB150","Béton de cailloux (250 kg de ciment) pour puits, massifs, redans.","m3",223.5]
["2CB210","Béton 350 kg/m3 pour béton armé de semelles filante.","m3",195.5]
["2CB220","Béton 350 kg/m3 pour béton armé de semelles isolée.","m3",213]
["2CB250","Béton 350 kg/m3 pour béton armé de longrines.","m3",220]
["2CC010","Coffrage pour semelle filante ou isolée.","m2",42.85]
["2CC030","Coffrage pour massif, socle.","m2",46.3]
["2CF070","Armatures HA CFA pour semelles.","kg",3.05]
["2CF170","Armatures HA CFA pour longrines.","kg",3.05]
["2CF250","Armatures HA CF pour radier.","kg",3.05]
[]
[null,"OUVRAGES VERTICAUX"]
[]
[null,"BETON BANCHE"]
[]
[null,"BETON BANCHE - Béton"]
[]
["3BB200","Béton de gravillon type C20/25, pour paroi béton banché ép. ≤ 16 cm.","m3",186.5]
["3BB210","Béton banché en C20/25 ép. >16 cm.","m3",172.5]
["3BB250","Béton de gravillons C20/25 pour pointes de pignons.","m3",190]
["3BB260","Béton de gravillons C25/30 pour paroi béton banché ép. ≤ 16 cm.","m3",192.5]
["3BB270","Béton de gravillons C25/30 pour paroi béton banché ép. > 16 cm.","m3",178.5]
["3BB300","Béton de gravillons hydrofugé pour paroi béton banché ép. ≤ 16 cm.","m3",214.5]
["3BB310","Béton de gravillons hydrofugé pour paroi béton banché ép. > 16 cm.","m3",201]
[]
[null,"BETON BANCHE - Coffrage"]
[]
["3BC050","Banchage par panneaux bois, face lisse, pour murs infrastructure.","m2",38.549999999999997]
["3BC060","Banchage par panneaux plastique pour murs infrastructure.","m2",37.049999999999997]
["3BC100","Banchage par panneau bois ou similaire, fasse lisse.","m2",34.549999999999997]
["3BC210","Banchage par panneaux métalliques, fasse lisse, pour murs fermés.","m2",18.45]
["3BC220","Banchage par panneaux métalliques, fasse lisse, pour murs ouverts.","m2",11.6]
["3BC230","Banchage par panneaux métalliques, fasse lisse, pour murs extérieurs.","m2",16.45]
["3BC300","Banchage par panneaux métalliques, fasse lisse, pour pointes de pignons.","m2",36.450000000000003]
["3BC400","Incorporation huisserie métallique.","u",22.9]
["3BC410","Négatifs posés dans banches.","u",49.2]
["3BC420","Boisage et réservations.","m2",75.5]
[]
[null,"BETON BANCHE - Armatures"]
[]
["3BF100","Armatures HA de renfort, pour poutres, linteaux, raidisseurs incorporés.","kg",4.12]
["3BF200","armatures treillis soudés en panneaux standard.","kg",4.2300000000000004]
[]
[null,"MACONNERIES DE BLOCS DE BETON"]
[]
["3MB105","Maçonnerie de blocs de béton creux 500/50/200 hourdés au mortier de ciment.","m2",40.65]
["3MB110","Maçonnerie de blocs de béton creux 500/100/200 hourdés au mortier de ciment.","m2",41.8]
["3MB115","Maçonnerie de blocs de béton creux 500/150/200 hourdés au mortier de ciment.","m2",50.4]
["3MB120","Maçonnerie de blocs de béton creux 500/200/200 hourdés au mortier de ciment.","m2",55.9]
["3MB305","Maçonnerie de blocs de béton pleins 500/50/200 hourdés au mortier de ciment.","m2",35.799999999999997]
["3MB310","Maçonnerie de blocs de béton pleins 500/100/200 hourdés au mortier de ciment.","m2",58.1]
["3MB315","Maçonnerie de blocs de béton pleins 500/150/200 hourdés au mortier de ciment.","m2",73.900000000000006]
["3MB320","Maçonnerie de blocs de béton pleins 500/200/200 hourdés au mortier de ciment.","m2",74.3]
["3MB515","Maçonnerie de blocs de béton perforés 500/150/200 hourdés au mortier de ciment.","m2",63.2]
["3MB520","Maçonnerie de blocs de béton perforés 500/200/200 hourdés au mortier de ciment.","m2",74.3]
["3MB605","Majoration pour pose du 1er rang.","m",7.56]
["3MB620","Maçonnerie de blocs 500/200/200 à joints minces.","m2",52.6]
["3MB622","Maçonnerie de blocs 500/200/250 à joints minces.","m2",48.65]
[]
[null,"MACONNERIE DE BETON CELLULAIRE"]
[]
["3MC110","Maçonnerie en carreau de béton cellulaire 620/100/250.","m2",50.1]
["3MC115","Maçonnerie en blocs de 620/150/250 en béton cellulaire.","m2",64.599999999999994]
["3MC120","Maçonnerie en blocs de 620/200/250 en béton cellulaire.","m2",76.599999999999994]
["3MC125","Maçonnerie en blocs de 620/250/250 en béton cellulaire.","m2",101.5]
["3MC130","Maçonnerie en blocs de 620/300/250 en béton cellulaire.","m2",133]
["3MC135","Maçonnerie en blocs de 620/350/250 en béton cellulaire.","m2",141]
["3MC315","Linteau 15 cm ép. en béton cellulaire.","m",71.7]
["3MC320","Linteau 20 cm ép. en béton cellulaire.","m",85.7]
["3MC325","Linteau 25 cm ép. en béton cellulaire.","m",101]
["3MC330","Linteau 30 cm ép. en béton cellulaire.","m",118]
[]
[null,"MACONNERIE DE MOELLONS"]
[]
["3MP310","Maçonnerie de moellon neuf franc ou 1/2 ferme pour murs ≤ 0,40 ép. à 2 faces alignées.","m3",885]
["3MP320","Maçonnerie de moellon neuf ferme ou 1/2 dur pour murs ≤ 0,40 ép. à 2 faces alignées.","m3",885]
["3MP330","Maçonnerie de moellon neuf dur pour mur ≤ 0,40. ép. à 2 faces.","m3",1023]
["3MP340","Maçonnerie de moellon neuf très dur pour murs ≤ 0,40 ép. à 2 faces alignées.","m3",1109]
["3MP410","Maçonnerie de moellon neuf franc ou 1/2 ferme pour murs > 0,40 ép. à 2 faces alignées.","m3",868]
["3MP420","Maçonnerie de moellon neuf ferme ou 1/2 dur pour murs > 0,40 ép. à 2 faces alignées.","m3",782]
["3MP430","Maçonnerie de moellon neuf dur pour mur > 0,40. ép. à 2 faces.","m3",988.5]
["3MP601","Majoration pour appareillage des lits et des joints de dimensions.","m2",42.9]
["3MP610","Taille de parement éclaté ou tétué sur moellon franc ou 1/2 ferme.","m2",103]
["3MP612","Taille de parement éclaté ou tétué sur moellon ferme ou 1/2 dur.","m2",111.5]
["3MP614","Taille de parement éclaté ou tétué sur moellon dur.","m2",124.5]
["3MP630","Taille de parement bosselé, smillé ou layé, sur moellon franc ou 1/2 ferme.","m2",120]
["3MP632","Taille de parement bosselé, smillé ou layé, sur moellon ferme ou 1/2 dur.","m2",129]
[]
[null,"MACONNERIE DE BRIQUES"]
[]
["3MT110","Maçonnerie de briques creuses ordinaires 400/100/250 hourdées au mortier bâtard.","m2",51.6]
["3MT115","Maçonnerie de briques creuses ordinaires 400/150/250 hourdées au mortier bâtard.","m2",58]
["3MT116","Maçonnerie de briques creuses ordinaires 570/150/200 hourdées au mortier bâtard.","m2",58.7]
["3MT117","Maçonnerie de briques creuses ordinaires 570/150/300 hourdées au mortier bâtard.","m2",56]
["3MT120","Maçonnerie de briques creuses ordinaires 400/200/250 hourdées au mortier bâtard.","m2",62.9]
["3MT122","Maçonnerie de briques creuses ordinaires 570/200/300 hourdées au mortier bâtard.","m2",62]
["3MT220","Maçonnerie de briques \"G\" 500/200/200 hourdées au mortier bâtard.","m2",69.7]
["3MT221","Maçonnerie de briques \"G\" 570/200/200 hourdées au mortier bâtard.","m2",69.7]
["3MT222","Maçonnerie de briques \"G\" 570/200/300 hourdées au mortier bâtard.","m2",71.5]
["3MT225","Maçonnerie de briques creuses \"G\" 500/250/200 hourdées au mortier bâtard.","m2",88.3]
["3MT230","Maçonnerie de briques creuses \"G\" 500/300/200 hourdées au mortier bâtard.","m2",95.6]
["3MT305","Majoration pour pose 1er rang.","m",7.68]
["3MT320","Maçonnerie de briques BGV thermo 500/200/314.","m2",55.6]
["3MT325","Maçonnerie de briques BGV thermo 500/200/212.","m2",65.400000000000006]
["3MT420","Maçonnerie de 0,105 ép. en briques perforées 220/105/60 hourdées au mortier bâtard.","m2",75]
["3MT425","Maçonnerie de 0,105 ép. en briques perforées 330/105/55 hourdées au mortier bâtard.","m2",64.7]
["3MT470","Maçonnerie de 0,22 ép. en briques perforées 220/105/60 hourdées au mortier bâtard.","m2",116.5]
["3MT520","Maçonnerie de 0,105 ép. en briques pleines 220/105/60 hourdées au mortier bâtard.","m2",138.5]
["3MT525","Maçonnerie de 0,105 ép. en briques pleines 330/105/55 hourdées au mortier bâtard.","m2",63.8]
["3MT570","Maçonnerie de 0,22 ép. en briques pleines 220/105/60 hourdées au mortier bâtard, compris rejointement en creux une face.","m2",245.5]
["3MT611","Maçonnerie de 0,105 ép. en briques perforées de parement 65/105/220, compris rejointement en creux une face.","m2",157.5]
["3MT620","Maçonnerie de 0,105 ép. en briques perforées de parement 54/105/220, compris rejointement en creux une face.","m2",171]
["3MT622","Maçonnerie de 0,105 ép. en briques pleines de parement 58/105/220, compris rejointement en creux une face.","m2",170]
["3MT650","Maçonnerie de 0,20 ép. en briques perforées de parement 65/105/220, compris rejointement en creux une face.","m2",206.5]
["3MT715","Chaperon 0,33 largeur en briques spéciales 100/65/330.","m",106.5]
["3MT720","Appui de baie 0,27 largeur en briques spéciales 120/60/270.","m",112]
["3MT725","Appui de baie 0,35 largeur en briques spéciales 120/60/350.","m",130]
["3MZ050","Rampannage béton pour mur de 0,15 ép.","m",36.549999999999997]
["3MZ055","Rampannage béton pour mur de 0,20 ép.","m",39.299999999999997]
["3MZ060","Rampannage béton pour mur de 0,25 ép.","m",44.35]
["3MZ075","Arase béton ≤0,10 ht pour mur de 0,20 ép.","m",17.350000000000001]
["3MZ110","Taille de feuillure dans maçonnerie creuse.","m",3.43]
["3MZ120","Taille de feuillure dans maçonnerie pleine.","m",6.86]
[]
[null,"OSSATURE B.A."]
[]
["3OCL15","Chaînages verticaux coulés dans blocs spéciaux 0,15 ép. y compris armature et remplissage béton.","m",16.399999999999999]
["3OCL20","Chaînages verticaux coulés dans blocs spéciaux 0,20 ép. y compris armature et remplissage béton.","m",18.3]
["3OCL50","Chaînages verticaux coulés dans briques spéciales 0,20 ép. y compris armature et remplissage béton.","m",20.149999999999999]
["3OPB10","Béton dosé à 350 kg de ciment pour BA de poteaux-trumeaux section ≤ 5 dm².","m3",281.5]
["3OPB20","Béton dosé à 350 kg de ciment pour BA de poteaux-trumeaux section > 5 dm².","m3",264.5]
["3OPC10","Coffrage brut de BA pour poteau trumeau section ≤ 5 dm².","m2",88.6]
["3OPC20","Coffrage brut de BA pour poteau trumeau section > 5 dm².","m2",74.400000000000006]
["3OPC50","Coffrage soigné de BA pour poteau trumeau section ≤ 5 dm².","m2",86.8]
["3OPC60","Coffrage soigné de BA pour poteau trumeau section > 5 dm².","m2",79.900000000000006]
["3OPZ10","Feuillure réservée dans béton armé.","m",3.8]
["3OZF20","Armatures HA CFA pour tous ouvrages en ossature verticale.","kg",3.22]
["3OZP10","Doublage de béton armé par planelle terre cuite de 3 cm.","m2",22.3]
["3OZP20","Doublage de béton armé par planelle béton de 5 cm.","m2",23.65]
[]
[null,"OUVRAGES HORIZONTAUX"]
[]
[null,"DALLAGES"]
[]
["4DA010","Forme en tout-venant, ép. jusqu'à 30 cm, compris compactage.","m3",82.6]
["4DA020","Forme en gravillons, ép. jusqu'à 30 cm, compris compactage.","m3",124]
["4DA040","Forme en sable, ép. jusqu'à 30 cm, compris compactage.","m3",122]
["4DA520","Ecran d'étanchéité en polyane 200 microns.","m2",2.4700000000000002]
["4DA550","Film antitermites sous dallage.","m2",7.98]
["4DA620","Polystyrène expansé classe 4 ép. 4 cm.","m2",9.6199999999999992]
["4DA630","Polystyrène expansé classe 4 ép. 6 cm.","m2",12.25]
["4DA714","Polystyrène expansé classe 4 ép. 4 cm, en relevés.","m2",20.2]
["4DA716","Polystyrène expansé classe 4 ép. 6 cm, en relevés.","m2",22.95]
["4DB010","Corps de dallage en béton de gravillons, C20/25, ép. ≤ 12 cm.","m3",207]
["4DB012","Corps de dallage en béton de gravillons, C25/30, ép. ≤ 12 cm.","m3",213]
["4DB020","Corps de dallage en béton de gravillons, C20/25, ép. ≤ 20 cm.","m3",190]
["4DB022","Corps de dallage en béton de gravillons, C25/30, ép. ≤ 20 cm.","m3",195.5]
["4DB100","Treillis soudé.","kg",2.52]
["4DB150","Armatures HA de renfort.","kg",3.98]
["4DB200","Surfaçage de béton de dallages.","m2",3.43]
["4DB300","Plus-value pour façon de pente.","m2",6.86]
["4DC010","Coffrage ordinaire de rive.","m2",36.85]
["4DC020","Coffrage soigné de rive de dallage.","m2",48.9]
["4DJ010","Joint de construction.","m",10]
["4DJ020","Joint de désolidarisation.","m",3.96]
["4DJ030","Joint de retrait (scié).","m",8.15]
[]
[null,"OSSATURE HORIZONTALE"]
[]
["4OCB10","Béton C25/30 pour BA. : poutres Linteau chainage attenants.","m3",213]
["4OCB20","Béton C25/30 pour BA. : poutres Linteau chainage isolés.","m3",281.5]
["4OCB40","Béton C25/30 BA. : Auvent, balcon, palier, perron isolés.","m3",281.5]
["4OCC10","Coffrage brut de BA. : poutres linteau chainage.","m2",79.900000000000006]
["4OCC50","Coffrage soigné de BA. Pour poutre linteau chainage.","m2",97.1]
["4OCH15","Chaînage isolé dans blocs U pour murs 0,15 ép. cis béton et aciers.","m",24.4]
["4OCH20","Chaînage isolé dans blocs U pour murs 0,20 ép. cis béton et aciers.","m",26]
["4OCL15","Linteau isolé dans blocs U pour murs 0,15 ép. cis béton et aciers.","m",30.15]
["4OCL20","Linteau isolé dans blocs U pour murs 0,20 ép. cis béton et aciers.","m",31.75]
["4OCZ10","Feuillure réservée dans béton armé.","m",3.8]
["4OF10","Armatures HA CFA pour tous ouvrage en ossature horizontale.","kg",3.22]
["4OF15","Armatures HA CF pour tous ouvrage en ossature horizontale.","kg",3.55]
["4OF20","Armatures HA pour tous ouvrage en ossature horizontale.","kg",4.32]
["4OZC10","Corniche préfabriquée en U type quart de rond ou doucine 20 cm ht y compris remplissage béton et armatures. Béton clair.","m",103]
["4OZP10","Doublage de béton armé par planelle terre cuite de 3 cm.","m2",22.3]
["4OZP20","Doublage de béton armé par planelle béton de 5 cm.","m2",23.65]
[]
[null,"PLANCHERS"]
[]
["4PCB10","Béton C25/30 pour BA : dalle pleine ép. ≤ 20 cm.","m3",189]
["4PCB15","Béton C25/30 pour BA : dalle pleine ép. >20 cm.","m3",178.5]
["4PCB50","Béton C25/30 pour BA : auvent, balcon, palier attenants.","m3",202.5]
["4PCB60","Béton C25/30 pour BA : auvent, balcon, pallier isolés.","m3",237]
["4PCC10","Coffrage brut de dalle pleine.","m2",39.15]
["4PCC15","Coffrage brut de rive de dalle.","m2",55]
["4PCC20","Coffrage soigné de dalle pleine.","m2",22.2]
["4PCC25","Coffrage soigné de rive de dalle.","m2",40.700000000000003]
["4PCC50","Coffrage brut pour balcon, auvent, palier.","m2",49.9]
["4PCC60","Coffrage lisse pour balcon, auvent, pallier.","m2",53.9]
["4PCC95","Larmier réservé dans béton armé.","m",4.08]
["4PCF10","Armatures HA CF pour plancher.","kg",3.55]
["4PCF20","Armatures treillis soudé en panneaux standard.","kg",2.16]
["4PCI10","Isolation en sous-face de dalle pleine béton par fibrastyrène de 10 cm.","m2",39.1]
["4PCZ10","Surfaçage de béton de plancher.","m2",3.43]
["4PE100","Plancher ép. 13+4 à poutrelles et entrevous béton.","m2",75.400000000000006]
["4PE120","Plancher ép. 16+4 à poutrelles et entrevous béton.","m2",79.400000000000006]
["4PE130","Plancher ép. 20+4 à poutrelles et entrevous béton.","m2",91.9]
["4PE305","Plancher iso. à poutrelles et entrevous bétons type 8+10+5.","m2",88.6]
["4PE310","Plancher Iso. ép. 11+5 à poutrelles et entrevous polystyrène.","m2",72.7]
["4PE315","Plancher Iso. ép. 15+5 à poutrelles et entrevous polystyrène.","m2",82]
["4PE320","Plancher Iso. ép. 3+12+5 à poutrelles et entrevous polystyrène.","m2",81.3]
["4PE330","Plancher Iso. ép. 5+12+5 à poutrelles et entrevous polystyrène.","m2",83.4]
["4PE340","Plancher Iso. ép. 4+12+5 à poutrelles et entrevous polystyrène s/f granitée.","m2",89.3]
["4PE370","Plancher Iso. ép. 7+12+5 à poutrelles et entrevous polystyrène s/f granitée.","m2",90.2]
["4PE380","PV pour rupteur thermique transversal.","u",9.32]
["4PE385","PV pour rupteur de pont thermique longitudinal.","m2",15.35]
["4PE615","Plancher iso module hourdis 3,5+15+5 à s/f continue en fibragglo","m2",84.2]
["4PEZ10","Surfaçage de béton de plancher.","m2",3.43]
["4TCB10","Béton C25/30 pour BA : escalier droit.","m3",316]
["4TCB20","Béton C25/30 pour BA : escalier balancé.","m3",333]
["4TCC10","Coffrage brut de BA : escalier droit.","m2",124]
["4TCC20","Coffrage brut de BA : escalier balancé.","m2",158.5]
["4TCF10","Armatures en acier HA pour escalier.","kg",4.28]
["4TP010","Volée d'escalier préfabriqué de type1.","u",426]
[]
[null,"CONDUITS ET GAINES"]
[]
[null,"CONDUITS DE FUMEE"]
[]
["5F122","Conduit en boisseaux de terre cuite paroi alvéolée 5cm ép. 20/20.","m",71.599999999999994]
["5F124","Conduit en boisseaux de terre cuite paroi alvéolée 5cm ép. 25/25.","m",90.7]
["5F126","Conduit en boisseaux de terre cuite paroi alvéolée 5cm ép. 30/30.","m",112.5]
["5F128","Conduit en boisseaux de terre cuite paroi alvéolée 5cm ép. 20/40.","m",107]
["5F130","Conduit en boisseaux de terre cuite paroi alvéolée 5cm ép. 25/50.","m",143]
["2F212","Conduit en boisseaux de béton pouzzolane paroi pleine 5 cm ép. 20/20.","m",75.3]
["5F230","Conduit en boisseaux de béton pouzzolane paroi alvéolée 7 cm ép. 20/20.","m",94]
["5F502","Départ de conduit en BA, posé en console y compris déport.","u",85.4]
["5F505","Bouchement de chevêtre en traversée de charpente (le m², conduit non déduit).","m2",78.5]
["5F506","Désolidarisation du conduit en chevêtre en panneaux de laine de roche.","u",12.85]
["5F512","Aspirateur statique béton pour conduit 20/20.","u",83.4]
["5F514","Aspirateur statique béton pour conduit 25/25.","u",90.9]
["5F532","Mitre en terre cuite pour conduit 20/20.","u",63.1]
["5F542","Lanterne de terre cuite diamètre 15 cm.","u",46.05]
["5F546","Lanterne de terre cuite diamètre 12 cm.","u",61.8]
["5F570","Trappe de ramonage en fonte 12/16.","u",46.5]
["5F572","Trappe de ramonage en fonte 12/21.","u",54.8]
["5F574","Trappe de ramonage en fonte 20/20.","u",56.2]
["5F610","Conduit double paroi Diamètre intérieur 230 inox/isolant/galva.","m",225]
["5F615","Conduit double paroi Diamètre intérieur 280 inox/isolant/galva.","m",272.5]
["5F620","Dévoiement 15° diamètre 230 inox/galva.","u",143]
["5F625","Dévoiement 30° diamètre 230 inox/galva.","u",187.5]
["5F630","Dévoiement 15° diamètre 280 inox/galva.","u",174.5]
["5F635","Dévoiement 30° diamètre 280 inox/galva.","u",226]
["5F650","Sortie de toiture galva/inox polyvalente 40x58, avec tablette et embase d'étanchéité tuile.","u",946.5]
["5F810","Doublage de souche en briques creuses de 8 cm ép.","m2",72.400000000000006]
["5F812","Doublage de souche en briques creuses de 10 cm ép.","m2",80.099999999999994]
["5F815","Doublage de conduit en combles, en maçonnerie de briques creuses de 8 cm ép.","m2",65.5]
["5F820","Doublage de souche en briques pleines de parement 54/105/220 hourdées au mortier bâtard, compris rejointement en creux.","m2",185.5]
["5F830","Isolation de conduit par laine de roche 4 cm ép.","m2",24.6]
["5F860","Couronnement de souche en béton moulé, ép. 0,08, y compris coffrage acier-renfort, finition.","m2",155.5]
["5F870","Enduit grillagé sur souche en identique à celui de la façade,…","m2",80.2]
["5F875","Enduit d'imperméabilisation monocouche, ép. 15 mm, projeté à la machine, finition rustique ; sur souche.","m2",53.6]
["5F876","Enduit d'imperméabilisation monocouche, ép. 15 mm, projeté à la machine, finition grattée ; sur souche.","m2",62.2]
["5F880","Souche en briques pleines de parement y compris conduit terre cuite 20/40 et isolation laine de roche 4 cm ép. ; 0,60 ht.","u",435]
[]
[null,"GRILLES EN GAINES DE VENTILLATION"]
[]
["5V110","Grille plastique 100 cm².","u",22.65]
["5V115","Grille plastique 150 cm².","u",23.35]
["5V120","Grille plastique200 cm².","u",23.65]
["5V140","Grille plastique double 150 cm² y compris fourreau.","u",50.4]
["5V145","Grille plastique double 200 cm² y compris fourreau.","u",52.6]
["5V210","Conduit de ventilation PVC diamètre 100.","m",24.05]
["5V212","Conduit de ventilation PVC diamètre 125.","m",25]
["5V215","Conduit de ventilation PVC diamètre 150.","m",27.4]
["5V220","Conduit de ventilation PVC diamètre 200.","m",35.6]
["5V310","Conduit de ventilation FC 100/100.","m",46.5]
["5V312","Conduit de ventilation FC 100/150.","m",49.7]
["5V315","Conduit de ventilation FC 100/200.","m",77]
["5V317","Conduit de ventilation FC 200/200.","m",80.7]
["5V330","Conduit de ventilation FC diamètre 100.","m",40.950000000000003]
["5V332","Conduit de ventilation FC diamètre 125.","m",43.35]
["5V335","Conduit de ventilation FC diamètre 150.","m",51.5]
["5V350","Aspirateur statique FC 100/100.","u",73.3]
["5V352","Aspirateur statique FC 100/150.","u",87.6]
["5V355","Aspirateur statique FC 100/200.","u",94.8]
[]
[null,"BETON MOULE MENUS OUVRAGES"]
[]
["6A110","Appui de baie en béton moulé pour mur de 0,20 ép.","m",71.2]
["6A115","Appui de baie en béton moulé pour mur de 0,25 ép.","m",76.5]
["6A120","Appui de baie en béton moulé pour mur de 0,30 ép.","m",80.5]
["6A130","Appui de baie en béton moulé pour mur de 0,36 ép.","m",81.7]
["6A210","Appui de baie préfabriqué en béton de 0,25 de largeur.","m",61.1]
["6A215","Appui de baie préfabriqué en béton de 0,33 de largeur.","m",64.599999999999994]
["6C120","Couronnement de mur en béton moulé compris larmier et enduit ciment pour mur 0,20 ép.","m",71.3]
["6C125","Couronnement de mur en béton moulé compris larmier et enduit ciment pour mur 0,25 ép.","m",75.7]
["6C130","Couronnement de mur en béton moulé compris larmier et enduit ciment pour mur 0,30 ép.","m",78.599999999999994]
["6R115","Rampannage béton pour mur 0,15 ép.","m",30.55]
["6R120","Rampannage béton pour mur 0,20 ép.","m",35.049999999999997]
["6R125","Rampannage béton pour mur 0,25 ép.","m",39.5]
["6S110","Seuil en béton moulé compris chape et arête arrondie pour mur 0,20 ép.","m",45.95]
["6S115","Seuil en béton moulé compris chape et arête arrondie pour mur 0,25ép.","m",50.4]
["6S120","Seuil en béton moulé compris chape et arête arrondie pour mur 0,30ép.","m",53.1]
["6S125","Seuil en béton moulé compris chape et arête arrondie pour mur 0,36 ép.","m",55.9]
[]
[null,"FINITIONS"]
[]
[null,"CHAPES-GLACIS"]
[]
["7C102","Chape rapportée de 2 cm ép. , mortier dosé à 500 kg de ciment, lissée ou talochée.","m2",26.6]
["7C103","Chape rapportée de 3 cm ép. , mortier dosé à 500 kg de ciment, lissée ou talochée.","m2",32.450000000000003]
["7C104","Chape rapportée de 4 cm ép. , mortier dosé à 500 kg de ciment, lissée ou talochée.","m2",38.25]
["7C202","Chape rapportée de 2 cm ép. , mortier dosé à 500 kg de ciment, bouchardée.","m2",31.75]
["7C203","Chape rapportée de 3 cm ép. , mortier dosé à 500 kg de ciment, bouchardée.","m2",37.6]
["7C204","Chape rapportée de 4 cm ép. , mortier dosé à 500 kg de ciment, bouchardée.","m2",43.4]
["7C303","Chape rapportée de 2 cm ép. , mortier dosé à 500 kg de ciment, talochée avec façon de pente.","m2",35.85]
["7C304","Chape rapportée de 3 cm ép. , mortier dosé à 500 kg de ciment, talochée avec façon de pente.","m2",41.7]
["7C305","Chape rapportée de 4 cm ép. , mortier dosé à 500 kg de ciment, talochée avec façon de pente.","m2",47.55]
["7C403","Chape rapportée de 2 cm ép. , mortier dosé à 500 kg de ciment, bouchardée avec façon de pente.","m2",41]
["7C404","Chape rapportée de 3 cm ép. , mortier dosé à 500 kg de ciment, bouchardée avec façon de pente.","m2",46.85]
["7C405","Chape rapportée de 4 cm ép. , mortier dosé à 500 kg de ciment, bouchardée avec façon de pente.","m2",52.7]
["7C450","Incorporation d'abrasifs antidérapants en surface (2,5 kg/m²).","m2",11.9]
["7C510","Chape d'arase étanche.","m2",79.5]
["7CG10","Glacis ép. moyenne 3 cm, mortier dosé à 500 kg de ciment.","m2",59.9]
["7CG15","Glacis ép. moyenne 4 cm, mortier dosé à 500 kg de ciment.","m2",65.7]
["7CG20","Glacis ép. moyenne 3 cm, mortier dosé à 400 kg de ciment.","m2",59]
["7CG25","Glacis ép. moyenne 4 cm, mortier dosé à 400 kg de ciment.","m2",64.5]
[]
[null,"ENDUITS AUX MORTIERS ORDINAIRES"]
[]
["7E108","Dégrossi d'enduit au mortier de ciment dosé à 450 kg, 15 mm ép. tiré à la règle.","m2",25.15]
["7E110","Dégrossi d'enduit au mortier de ciment dosé à 500 kg, 15 mm ép. tiré à la règle.","m2",25.4]
["7E120","Dégrossi d'enduit au mortier bâtard 15 mm ép. tiré à la règle.","m2",25.15]
["7E125","Majoration pour enduits ci-dessus pour largeur < 0,40 m.","m2",5.15]
["7E126","Majoration pour enduits ci-dessus pour exécution en plafond.","m2",6.86]
["7E129","Enduit dressé-taloché ép. 20 mm, mortier de ciment dosé à 450 kg.","m2",40]
["7E130","Enduit dressé-taloché ép. 20 mm, mortier de ciment dosé à 500 kg.","m2",40.35]
["7E140","Enduit dressé-taloché ép. 20 mm, mortier bâtard dosé à 175 kg de chaux et 275 kg de ciment.","m2",40]
["7E152","Majoration pour finition grattée.","m2",5.15]
["7E155","Majoration pour enduit dressé-taloché pour largeur < 0,40 m.","m2",10.3]
["7E170","Enduit grillagé sur souche identique à celui de la façade, (à compléter).","m2",80.2]
[]
[null,"ENDUITS MONOCOUCHES (O.C.)"]
[]
["7E210","Enduit d'imperméabilisation monocouche, type CS3, ép. 15 mm, projeté à la machine, finition rustique.","m2",32.5]
["7E220","Enduit d'imperméabilisation monocouche, type CS3, ép. 15 mm, projeté à la machine, finition grattée.","m2",37.6]
["7E250","Enduit d'imperméabilisation monocouche, type CS3, ép. 15 mm, projeté à la machine, ouvrages petites largeurs.","m",15.2]
["7E270","Enduit d'imperméabilisation monocouche, type CS3, ép. 15 mm, projeté à la machine, finition rustique, sur souche.","m2",53.6]
["7E272","Enduit d'imperméabilisation monocouche, type CS3, ép. 15 mm, projeté à la machine, finition grattée, sur souche.","m2",62.2]
["2E280","Enduit d'imperméabilisation monocouche, type CS2, ép. 15 mm, projeté à la machine, finition rustique.","m2",32.5]
["7E282","Enduit d'imperméabilisation monocouche, type CS2, ép. 15 mm, projeté à la machine, finition grattée.","m2",37.6]
["7E285","Enduit d'imperméabilisation monocouche, type CS2, ép. 15 mm, projeté à la machine, ouvrages petites largeurs.","m",13.25]
["2E290","Cornières métal ou plastiques pour façon d'arête.","m",4.93]
[]
[null,"COUCHE DE FINITION"]
[]
["7E305","Couche de finition au mortier de ciment, finition grattée.","m2",12.25]
["7E307","Couche de finition au mortier de ciment, finition grattée pour petites largeurs.","m",7.45]
["7E310","Couche de finition à la tyrolienne, exécutée en trois passes en ciment pierre.","m2",17.899999999999999]
["7E315","Couche de finition à la tyrolienne, exécutée en trois passes en ciment pierre, petites largeurs.","m",8.82]
[]
[null,"R.P.E. CONFORMES DTU 59.2"]
[]
["7E320","Enduit plastique ribbé à la taloche à base de résine. 2,5 kg/m², y compris régulateur de fond et bande adhésive pour découpage par panneaux.","m2",25]
["7E322","Majoration pour enduit ci-dessus pour largeur < 0,40 m.","m2",3.43]
["7E330","Enduit plastique rustique au rouleau (2 kg/m²) y compris régulateur de fond et bandes adhésives, pour découpage par panneaux.","m2",18.149999999999999]
["7E332","Majoration pour enduit ci-dessus pour largeur < 0,40 m.","m2",2.4]
["7E340","Enduit plastique granité à la taloche (6 kg/m²) y compris régulateur de fond et bandes adhésives, pour découpage par panneaux.","m2",44.6]
["7E342","Majoration pour enduit ci-dessus pour largeur < 0,40 m.","m2",6.86]
["7E380","Peinture bitumineuse, exécutée en deux couches, sur parois enterrées.","m2",12]
[]
[null,"ENDUITS-OUVRAGES DIVERS"]
[]
["7E810","Enduit dressé sur contremarche - chape bouchardée sur marche, mortier de ciment.","m2",64]
["7E820","Façon de nez tiré au fer.","m",3.43]
["7E830","Majoration pour incorporation de toile de verre.","m2",8.11]
["7J110","Refoulement des joints au fer en montant la maçonnerie.","m2",3.43]
["7J120","Refoulement des joints au fer en montant la maçonnerie de briques.","m2",13.75]
["7J130","Refoulement des joints au fer en montant la maçonnerie de moellons, meulière...","m2",15.45]
["7J210","Rejointement en creux sur maçonnerie de briques pleines.","m2",29.35]
["7J215","Rejointement en creux sur maçonnerie de briquettes ou tuileaux.","m2",37.200000000000003]
["7J220","Rejointement en creux sur maçonnerie de briques creuses ou de blocs de béton.","m2",11.25]
["7J230","Rejointement en creux sur maçonnerie de moellons.","m2",23]
[]
[null,"RAGREAGES"]
[]
["7R110","Ragréage intérieur de béton banché.","m2",6.35]
["7R120","Ragréage extérieur de béton banché.","m2",8.07]
["7R210","Ragréage intérieur de sous-face de plancher.","m2",7.58]
[]
[null,"FINITIONS DIVERSES"]
[]
["7Z110","Calfeutrement de menuiseries au mortier bâtard.","m",5.52]
["7Z210","Taille de feuillure dans maçonnerie creuse.","m",3.43]
["7Z220","Taille de feuillure dans maçonnerie pleine.","m",6.86]
["7Z510","Joint de dilatation en plaques de polystyrène de 2 cm ép.","m2",7.78]
["7Z520","Couvre-joint de façade en aluminium (T de 50 mm).","m",35.75]
["7Z540","Joint d'étanchéité silicone.","m",10.1]
[]
[null,"ASSAINISSEMENT"]
[]
["8DP100","Drain en PVC annelé D=100, compris enrobage de gravier.","m",22.4]
["8DP80","Drain en PVC annelé D=80, compris enrobage de gravier.","m",20.45]
[]
[null,"TERRASSEMENTS"]
[]
["8F010","Fouille manuelle pour tranchée, sol meuble, y compris mise sur berge ou camion.","m3",94.4]
["8F020","Fouille manuelle pour tranchée, sol compact, y compris mise sur berge ou camion.","m3",120]
["8F030","Fouille manuelle pour trou, sol meuble, y compris mise sur berge ou camion.","m3",103]
["8F040","Fouille manuelle pour trou, sol compact, y compris mise sur berge ou camion.","m3",137.5]
["8F110","Remblai manuel de terre provenant des fouilles.","m3",70.8]
["8F150","Remblai manuel matériaux d'apport.","m3",107]
["8F210","Fouilles à l'engin pour tranchées, sol meuble, y compris mise sur berge ou camion.","m3",29.3]
["8F220","Fouilles à l'engin pour tranchées, sol compact, y compris mise sur berge ou camion.","m3",35.200000000000003]
["8F230","Fouilles à l'engin pour trou, sol meuble, y compris mise sur berge ou camion.","m3",35.200000000000003]
["8F240","Fouilles à l'engin pour trou, sol compact, y compris mise sur berge ou camion.","m3",43.4]
["8F310","Remblai à l'engin en terre provenant des fouilles.","m3",19.5]
["8F320","Remblai à l'engin avec matériaux d'apport.","m3",55.6]
[]
[null,"TUYAUX"]
[]
["8TP110","Tuyaux PVC série 1, diamètre 110, pose sur lit de sable 0,10 ép.","m",16.899999999999999]
["8TP125","Tuyaux PVC série 1, diamètre 125, pose sur lit de sable 0,10 ép.","m",17.25]
["8TP160","Tuyaux PVC série 1, diamètre 160, pose sur lit de sable 0,10 ép.","m",24.1]
["8TP200","Tuyaux PVC série 1, diamètre 200, pose sur lit de sable 0,10 ép.","m",32.25]
["8TP510","Coude PVC diamètre 110.","u",14]
["8TP515","Coude PVC diamètre 125.","u",15.45]
["8TP520","Coude PVC diamètre 140.","u",17.149999999999999]
["8TP610","Culotte PVC diamètre 110.","u",20]
["8TP620","Culotte PVC diamètre 125.","u",22.45]
["8TP710","Embranchement PVC 125 - 110.","u",23.15]
["8TP720","Embranchement PVC 160 - 110.","u",26.05]
["8TP730","Embranchement PVC 160 - 125.","u",32.299999999999997]
["8UF200","Siphon de cour en fonte diamètre 100, 200X200, compris calage et raccord sur canalisation.","u",125.3]
["8UP150","Siphon de cour en PVC 150X150, compris calage et raccord.","u",72.3]
["8UP200","Siphon de cour en PVC 200X200, avec panier, sortie horizontale diamètre 110, compris calage et raccord.","u",139.5]
["8UP250","Siphon de cour en PVC 250X250, sortie horizontale, compris calage et raccord.","u",103.5]
["8UP255","Clapet anti-retour en PVC diamètre 110.","u",236]
["8UP256","Siphon disconnecteur PVC diamètre 110.","u",148.5]
["8UP257","Siphon disconnecteur PVC diamètre 125.","u",156]
[]
[null,"REGARDS"]
[]
["8VB105","Regard préfabriqué en béton 20/20/20 ht compris tampon, posé sur lit de sable 0,10 ép.","u",64.7]
["8VB107","Regard préfabriqué en béton 25/25/30 ht compris tampon, posé sur lit de sable 0,10 ép.","u",68.900000000000006]
["8VB110","Regard préfabriqué en béton 30/30/35 ht compris tampon, posé sur lit de sable 0,10 ép.","u",74.400000000000006]
["8VB120","Regard préfabriqué en béton 40/40/40 ht compris tampon, posé sur lit de sable 0,10 ép.","u",85.8]
["8VB130","Regard préfabriqué en béton 50/50/55 ht compris tampon, posé sur lit de sable 0,10 ép.","u",110]
["8VB140","Regard préfabriqué en béton 60/60/60 ht compris tampon, posé sur lit de sable 0,10 ép.","u",122.5]
["8VB190","Regard préfabriqué en béton pour compteur d'eau 1,00X1,00X1,00ht.","u",237]
["8VB205","Rehausse béton 20/20/10 ht pour regard préfabriqué.","u",13.4]
["8VB207","Rehausse béton 25/25/20 ht pour regard préfabriqué.","u",16.05]
["8VB210","Rehausse béton 30/30/30 ht pour regard préfabriqué.","u",25.7]
["8VB220","Rehausse béton 40/40/20 ht pour regard préfabriqué.","u",30.45]
["8VB230","Rehausse béton 40/40/30 ht pour regard préfabriqué.","u",32.450000000000003]
["8VB240","Rehausse béton 50/50/20 ht pour regard préfabriqué.","u",46.45]
["8VB254","Rehausse béton 60/60/40 ht pour regard préfabriqué.","u",57.7]
[]
[null,"CANIVEAUX"]
[]
["8XB110","Caniveau préfabriqué en béton 20X20 avec grille galvanisée.","m",101]
["8XB510","Caniveau béton 20X20 coulé en place, compris grille galvanisée.","m",153.5]
["8XP110","Caniveau PVC en bas de rampe, l=13 L=251, avec grille et siphon, enrobage béton.","u",317.5]
[]
[null,"EPURATION DES EAUX"]
[]
["8Y100","Fosse toutes eaux en polyéthylène 3000l, avec décolloïdeur incorporé, y compris terrassements.","u",1512]
["8Y200","Bac séparateur à graisses en polyéthylène, 220l, y compris terrassements.","u",574]
["8Y450","Regard répartiteur 50/50/80ht sur épandage.","u",138]
["8Y470","Regard de contrôle 50/50/80ht sur épandage.","u",138]
["8Y500","Epandage par tuyau PVC rigide diamètre 100, y compris terrassements et enrobage gravier.","m",23.3]
[]
[null,"ECHAFAUDAGES"]
[]
["9E110","Echafaudage lourd, installation et location pour 30 jours.","m2",33.9]
["9E120","Echafaudage léger, installation et location pour 30 jours.","m2",21.9]
["9E150","Echafaudage volant à plateau avec moufles et treuil, installation et location pour 5 jours.","m",226]
[]
[null,"PROTECTIONS"]
[]
["9PB10","Installation et repliement de bâche en toile avec location pour 5 jours.","m2",4.1500000000000004]
["9PB20","Installation et repliement de bâche en polyéthylène avec location pour 5 jours.","m2",3.72]
[]
[null,"CHARPENTE BOIS"]
[]
[null,"PLANCHERS"]
[]
[null,"SOLIVAGE SAPIN DE PAYS"]
[]
["A011010","Solives sapin de pays non assemblées, brutes de sciage, traitement non compris.","m3",577]
["A011020","Solives sapin de pays assemblées à entailles simples, brutes de sciage, traitement non compris.","m3",691]
["A011030","Solives sapin de pays assemblées à entailles doubles, brutes de sciage, traitement non compris.","m3",760]
["A011040","Entretoises sapin de pays clouées sur solives, brutes de sciages, traitement non compris.","m3",812]
["A011050","Désolidarisation et protection d'abouts de solives par feutre 36S au droit des appuis sur murs extérieurs.","u",4.3]
[]
[null,"SOLIVAGE CHENE"]
[]
["A012010","Solives en chêne arrivé non assemblées, non traitées, brutes de sciage.","m3",907]
["A012020","Solives en chêne arrivé assemblées à entailles simples, non traitées, brutes de sciage.","m3",1034]
["A012030","Solives en chêne arrivé assemblées à entailles doubles, non traitées, brutes de sciage.","m3",1148]
[]
[null,"BOIS DIVERS"]
[]
["A015010","Tasseau sapin cloué sur chevêtre ou sur entrait, support solives, traitement compris.","m",3.4]
[]
[null,"PANNEAUX POUR PLANCHER"]
[]
["A016010","Plancher en panneaux particules CTB.H ép. 19 mm, rainuré 4 côtés, assemblées à rainures et languettes, vissées sur solives ou entraits fermettes.","m2",27]
["A016020","Plancher en panneaux particules CTB.H ép. 22 mm, rainuré 4 côtés, assemblées à rainures et languettes, vissées sur solives ou entraits fermettes.","m2",28]
[]
[null,"CHEVRONS-PANNES"]
[]
[null,"CHEVRONNAGE SAPIN DE PAYS"]
[]
["A021010","Chevrons ordinaires sapin de pays, traitement non compris.","m3",765]
["A021020","Chevrons  empannons sapin de pays, traitement non compris.","m3",834]
["A021030","Coyaux sapin de pays 75/75Lg. 1,00 m bruts de sciage, traitement non compris.","u",5.3]
["A021040","Chevrons d'arêtier sapin de pays délardés, traitement non compris.","m3",880]
["A021050","Chevrons de noue de sapin de pays recreusés, traitement non compris.","m3",880]
[]
[null,"PANNELAGE SAPIN DE PAYS"]
[]
["A022010","Pannes sapin de pays non assemblée, brutes de sciage, traitement non compris.","m3",623]
["A022020","Pannes sapin de pays assemblée à entailles simples, brutes de sciage, traitement non compris.","m3",749]
["A022030","Pannes sapin de pays assemblée à entailles doubles, brutes de sciage, traitement non compris.","m3",852]
["A022045","Majoration pour coupe à dévers sur pannes intermédiaires au droit des arbalétriers d'arêtiers ou de noues.","u",7.6]
[]
[null,"ARBALETRIERS SIMPLES"]
[]
["A023010","Arbalétrier simple sapin de pays, pour arêtier ou noue, brut de sciage, traitement non compris.","m3",978]
[]
[null,"FERMES ET LUCARNES"]
[]
[null,"FERMES TRADITIONNELLES"]
[]
["034010","Poinçon chêne pour ferme assemblée section 20/20 maxi, non traité.","m3",1369]
["034110","Echantignole sapin clouée, traitée.","u",7.5]
["035010","Ferme latine à entrait bas moisant, contrefiches et arbalétriers, pièces en sapin de pays brut de sciage, traitement non compris.","m3",984]
["035020","1/2 ferme de croupe à entrait bas moisant, contrefiches et arbalétriers, pièces en sapin de pays, brut de sciage, traitement non compris.","m3",1041]
["035030","1/2 ferme d'arêtier sur gousset ou entrait bas, arbalétrier d'arêtier et contrefiches pièces en sapin de pays brut de sciage, traitement non compris.","m3",1099]
["036010","Ferme à entrait retroussé et entrait bas moisant, jambes de force, arbalétriers, pièces en sapin de pays brut de sciage, traitement non compris.","m3",1161]
["036020","1/2 ferme de croupe à entrait retroussé, jambes de force, arbalétriers pièces en sapin de pays brut de sciage, traitement non compris.","m3",1219]
["036030","1/2 ferme d'arêtier à entrait retroussé, jambes de force, arbalétriers, pièces en sapin de pays brut de sciage, traitement non compris.","m3",1276]
["037010","Ferme à entrait retroussé, blochets moisants, jambes de force, arbalétriers assemblés sur semelles ou entrait bas, pièces en sapin de pays brut de sciage, traitement non compris.","m3",1283]
["037020","1/2 ferme de croupe à entrait retroussé, blochets, jambes de force, arbalétriers assemblés sur semelles ou entrait bas, pièces en sapin de pays brut de sciage, traitement non compris.","m3",1341]
["037030","1/2 ferme d'arêtier à entrait retroussé, blochets, jambes de force, arbalétrier assemblés sur semelles ou entrait bas, pièces en sapin de pays brut de sciage, traitement non compris.","m3",1398]
["038010","Ferme à la MANSARD, pièces en sapin de pays brut de sciage, traitement non compris.","m3",1341]
["038020","1/2 ferme de croupe pour comble Mansart, pièces en sapin de pays brut de sciage, traitement non compris.","m3",1398]
["038030","1/2 ferme d'arêtier pour comble Mansart, pièces en sapin de pays brut de sciage, traitement non compris.","m3",1513]
[]
[null,"LUCARNE A CHEVALET"]
[]
["A039110","Encadrement de lucarne chêne corroyé composé : poteaux, linteau et appui assemblés à tenon et mortaise, bois non traité. (corroyage à reprendre).","m3",1170]
["A039120","Chevêtre sapin de pays non assemblé pour trémie de lucarne, non traité.","m3",810]
["A039130","Sablières et faitière sapin de pays, non traité.","m3",921]
["A039140","Chevrons de versants, de noues et de jouées en sapin de pays, non traité.","m3",996]
["A039150","Fronton de lucarne en lambris pin des Landes traité, cloué sur ossature sapin, pose en chevron.","u",82.5]
[]
[null,"LUCARNE A LA CAPUCINE"]
[]
["A039210","Encadrement de lucarne chêne corroyé composé : poteaux, linteau et appui assemblés à tenon et mortaise, bois non traité. (corroyage à reprendre).","m3",1170]
["A039220","Chevêtre sapin de pays non assemblé pour trémie de lucarne, non traité.","m3",810]
["A039230","Sablières , poinçon et faitière sapin de pays, non traité.","m3",1035]
["A039240","Chevrons de versants, de croupes, de noues et de jouées en sapin de pays, non traité.","m3",1054]
[]
[null,"HABILLAGES ET BARDAGES"]
[]
[null,"HABILLAGES SAILLIES DE TOITURES"]
[]
["A041010","Chaises de caisson d'égout réalisée avec tasseaux sapin 40/40 ou planches de 27 mm d'épaisseur, traités cloués sur chevrons. Espacement chevrons : 0,50 maxi (saillie d'égout < 0,50 m).","m",8.1]
["A041012","Chaises de caisson d'égout réalisée avec tasseaux sapin 40/40 ou planches de 27 mm d'épaisseur, traités cloués sur chevrons. Espacement chevrons : 0,50 maxi (saillie d'égout 0,50 m < largeur < 1,00 m).","m",14]
["A041015","Saillie d'égout en Lambris pin des Landes cloué sous chaises d'égout, ou sous entrait de fermettes, traitement par pulvérisation compris.","m2",25]
["A041017","Saillie d'égout en Contreplaqué CTB X cloué sous chaises d'égout, ou sous entrait de fermettes, traitement par pulvérisation compris.","m2",28.5]
["A041020","Abouts de caisson d'égout réalisés en lambris pin des Landes 10/90 (ou en contreplaqué CTBX rainuré) cloué sur tasseaux sapin traités.","u",21]
["A041024","Saillie d'égout en PVC blanc comprenant le bandeau et l'habillage horizontal de la sous-face y compris les accessoires.","m",17]
["A041026","Abouts de caisson d'égout réalisés en PVC.","u",14]
["A041030","Bandeau d'égout sapin de pays corroyé, ép. brute 27 mm, traité, cloué sur abouts de chevrons ou entraits de fermettes.","m",12.5]
["A041040","Planche de rive sapin de pays corroyé, ép. brute 27 mm, traité, clouée sur chevrons de rive.","m",8.1]
["A041050","Console chêne corroyé pour auvent section 10*10, dimensions 0,70m/0,70m, fiche droite, y compris fixation.","u",200]
["A041055","Console chêne corroyé pour auvent section 10*10, dimensions 0,70m/0,70m, fiche cintrée, y compris fixation.","u",242]
["A041060","Console chêne corroyé pour auvent section 10*10, dimensions 0,95m/0,95m, fiche droite, y compris fixation.","u",210]
["A041065","Console chêne corroyé pour auvent section 10*10, dimensions 0,95m/0,95m, fiche cintrée, y compris fixation.","u",257]
["A041310","Lambris pin des Landes 10/90, traité, cloué sur chevrons pour habillage de la saillie de toit à l'égout.","m2",17.5]
["A041315","Lambris pin des Landes 10/90, traité, cloué sur chevrons pour habillage de la saillie de toit à l'égout.","m2",23]
["A041330","Contreplaqué CTBX 10 mm cloué sur les chevrons pour habillage de la saillie de toit à l'égout.","m2",24]
["A041335","Contreplaqué CTBX 12 mm cloué sur les chevrons pour habillage de la saillie de toit à l'égout.","m2",27.5]
["A041350","Volige en pin 15 mm, brute de sciage traitée, clouée sur chevrons pour habillage de la saillie de toit à l'égout.","m2",15.5]
["A041355","Volige en pin 15 mm, brute de sciage traitée, clouée sur chevrons pour habillage de la saillie de toit à l'égout.","m2",19]
["A042010","Bandeau d'égout SN 22*145 corroyé, rainé en bout, chanfreiné, cloué sur fermettes, traitement compris.","m",9.1]
["A042015","Bandeau d'égout SN 22*170 corroyé, rainé en bout, chanfreiné, cloué sur fermettes, traitement compris.","m",9.6]
["A042020","Bandeau d'égout SN 22*195 corroyé, rainé en bout, chanfreiné, cloué sur fermettes, traitement compris.","m",10]
["A042025","Bandeau d'égout SN 22*200 corroyé, rainé en bout, chanfreiné, cloué sur fermettes, traitement compris.","m",11]
[]
[null,"BARDAGES BOIS"]
[]
["A048110","Bardage en planches sapin de pays ép. 15 mm, brutes de sciage, clouées, traitées.","m2",18.5]
["A048115","Bardage en planches sapin de pays ép. 18 mm, brutes de sciage, clouées, traitées.","m2",21]
["A048120","Bardage en planches sapin de pays ép. 27 mm, brutes de sciage, clouées, traitées.","m2",27]
[]
[null,"OUVRAGES ET FACONNAGES DIVERS"]
[]
[null,"TRAITEMANT INSECTICIDE FONGICIDE"]
[]
["A050015","Traitement insecticide fongicide de bois de charpente, exécuté chez le fournisseur par trempage (protection : classe de risque 2).","m3",22.5]
["A050020","Traitement insecticide fongicide de bois de charpente, exécuté par l'entrepreneur, trempage court.","m3",25]
["A050025","Traitement insecticide fongicide appliqué par badigeonnage.","m2",3.2]
["A050030","Traitement insecticide fongicide par pulvérisation.","m2",1.8]
[]
[null,"FACON DIVERSES"]
[]
["A051010","Délardement de pannes sapin exécuté sur chantier au rabot portatif.","m",1.6]
["A051015","Délardement de pannes chêne exécuté sur chantier au rabot portatif.","m",2.2999999999999998]
["A051020","Chanfrein dressé exécuté au chantier sur poutres, poteaux, solives en sapin.","m",1.8]
["A051025","Chanfrein dressé exécuté au chantier sur poutres, poteaux, solives en chêne.","m",2.7]
["A052010","Feuillure exécutée à l'atelier sur poteau, linteau en sapin.","m",2.7]
["A052015","Feuillure exécutée à l'atelier sur poteau, linteau en chêne.","m",3.4]
["A052020","Façon de glacis et rejingot, exécuté en atelier, pour appui de lucarne, sur chêne.","m",6.9]
["A053005","Rabotage de pièces de charpente en sapin, exécuté au rabot portatif sur le chantier.","m2",3.4]
["A053010","Rabotage de pièces de charpente exécutée à l'atelier, face par face, sur sapin.","m",0.46]
["A053015","Rabotage de pièces de charpente exécutée à l'atelier, face par face, sur chêne.","m",0.69]
["A053020","Dégauchissement de pièces de charpente exécuté à l'atelier, face par face, sur sapin.","m",0.92]
["A053025","Dégauchissement de pièces de charpente exécuté à l'atelier, face par face, sur chêne.","m",1.1000000000000001]
["A053030","Corroyage de pièces de charpente exécuté en atelier, à la 4 faces, sur sapin, surface dév. < 5m².","m2",5.7]
["A053035","Corroyage de pièces de charpente exécuté en atelier, à la 4 chêne, sur sapin, surface dév. < 5m².","m2",8]
["A054010","Chantournement exécuté à l'atelier ou au chantier, sur pièces en sapin jusqu'à 0,05 ép. et 0,150 ht, comprenant tracé, sciage et ponçage.","u",5.7]
["A054015","Chantournement exécuté à l'atelier ou au chantier, sur pièces en sapin de 0,063 à 0,100 ép. et 0,250 ht, comprenant tracé, sciage et ponçage.","u",8]
["A054020","Chantournement exécuté à l'atelier ou au chantier, sur pièces en chêne jusqu'à 0,05 ép. et 0,150 ht, comprenant tracé, sciage et ponçage.","u",8]
["A054025","Chantournement exécuté à l'atelier ou au chantier, sur pièces en chêne de 0,063 à 0,100 ép. et 0,250 ht, comprenant tracé, sciage et ponçage.","u",10.5]
["A054030","Rabotage des faces visibles d'about de panne sapin exécuté au rabot portatif (pour saillie de 0,50 m maximum).","u",3.4]
[]
[null,"MAJORATION PIECES DE GRANDE LONGUEUR"]
[]
["A056010","Majoration pour ouvrage exécuté avec des bois résineux de grande longueur (6,00m < lg < 8,00m).","m3",42]
["A056015","Majoration pour ouvrage exécuté avec des bois résineux de grande longueur (8,00m < lg < 10,00m).","m3",84]
["A056020","Majoration pour ouvrage exécuté avec des bois résineux de grande longueur (10,00m < lg < 12,00m).","m3",126]
[]
[null,"ELEMENTS METALLIQUES DE FXATION"]
[]
["A057010","Fixation de sablières par tiges filetées à scellement noyées dans le chainage (mise en place par le maçon lors du coulage).","u",5.7]
["A057014","Fixation des pièces : sablières ou muraillères jusqu'à 0,075 ép. , par boulon de sécurité avec chevilles à expansion, compris perçages (bois et béton).","u",3]
["A057020","Fixation des pièces : sablières ou muraillères jusqu'à 0,050 ép. , par boulon de sécurité avec chevilles à expansion, compris perçages (bois et béton).","u",2.9]
["A057100","Sabot à clouer, largeur 38 mm support de pannes ou solives.","u",4.7]
["A057110","Sabot à clouer, largeur 50 mm support de pannes ou solives.","u",5.0999999999999996]
["A057115","Sabot à clouer, largeur 65 mm support de pannes ou solives.","u",5.4]
["A057120","Sabot à clouer, largeur 76 mm support de pannes ou solives.","u",5.6]
["A057125","Sabot à clouer, largeur 100 mm support de pannes ou solives.","u",6.2]
[]
[null,"CHARPENTE INDUSTRIALISEE"]
[]
[null,"FERMETTES TYPE W ; PENTE ≤ 20°"]
[]
["A061010","Fermettes type W ; pente ≤ 20° assemblées par connecteurs, fournies et posées, traitement des bois compris, Lg ≤ 6,00m.","u",67]
["A061012","Fermettes type W ; pente ≤ 20° assemblées par connecteurs, fournies et posées, traitement des bois compris, Lg ≤ 7,00m.","u",78.5]
["A061014","Fermettes type W ; pente ≤ 20° assemblées par connecteurs, fournies et posées, traitement des bois compris, Lg ≤ 8,00m.","u",82.5]
["A061016","Fermettes type W ; pente ≤ 20° assemblées par connecteurs, fournies et posées, traitement des bois compris, Lg ≤ 9,00m.","u",87]
["A061018","Fermettes type W ; pente ≤ 20° assemblées par connecteurs, fournies et posées, traitement des bois compris, Lg ≤ 10,00m.","u",99]
["A061020","Fermettes type W ; pente ≤ 20° assemblées par connecteurs, fournies et posées, traitement des bois compris, Lg ≤ 11,00m.","u",113]
["A061022","Fermettes type W ; pente ≤ 20° assemblées par connecteurs, fournies et posées, traitement des bois compris, Lg ≤ 12,00m.","u",133]
[]
[null,"FERMETTES TYPE W ; PENTE ≤ 35°"]
[]
["A061110","Fermettes type W ; pente ≤ 35° assemblées par connecteurs, fournies et posées, traitement des bois compris, Lg ≤ 6,00m.","u",74]
["A061114","Fermettes type W ; pente ≤ 35° assemblées par connecteurs, fournies et posées, traitement des bois compris, Lg ≤ 8,00m.","u",90.5]
["A061116","Fermettes type W ; pente ≤ 35° assemblées par connecteurs, fournies et posées, traitement des bois compris, Lg ≤ 9,00m.","u",94.5]
["A061118","Fermettes type W ; pente ≤ 35° assemblées par connecteurs, fournies et posées, traitement des bois compris, Lg ≤ 10,00m.","u",106]
["A061120","Fermettes type W ; pente ≤ 35° assemblées par connecteurs, fournies et posées, traitement des bois compris, Lg ≤ 11,00m.","u",124]
["A061122","Fermettes type W ; pente ≤ 35° assemblées par connecteurs, fournies et posées, traitement des bois compris, Lg ≤ 12,00m.","u",146]
[]
[null,"FERMETTES TYPE W ; PENTE ≤ 40°"]
[]
["A061210","Fermettes type W ; pente ≤ 40° assemblées par connecteurs, fournies et posées, traitement des bois compris, Lg ≤ 6,00m.","u",81]
["A061212","Fermettes type W ; pente ≤ 40° assemblées par connecteurs, fournies et posées, traitement des bois compris, Lg ≤ 7,00m.","u",93]
["A061214","Fermettes type W ; pente ≤ 40° assemblées par connecteurs, fournies et posées, traitement des bois compris, Lg ≤ 8,00m.","u",99]
["A061216","Fermettes type W ; pente ≤ 40° assemblées par connecteurs, fournies et posées, traitement des bois compris, Lg ≤ 9,00m.","u",108]
["A061218","Fermettes type W ; pente ≤ 40° assemblées par connecteurs, fournies et posées, traitement des bois compris, Lg ≤ 10,00m.","u",118]
["A061220","Fermettes type W ; pente ≤ 40° assemblées par connecteurs, fournies et posées, traitement des bois compris, Lg ≤ 11,00m.","u",136]
["A061222","Fermettes type W ; pente ≤ 40° assemblées par connecteurs, fournies et posées, traitement des bois compris, Lg ≤ 12,00m.","u",158]
[]
[null,"FERMETTES TYPE A3 ; AVEC ENTRAIT POS2ES SUR CHAINAGE, 3 APPUIS"]
[]
["A062210","Fermettes type A3 ; pente ≤ 45° assemblées par connecteurs fournies et posées, traitement des bois compris, longueur ≤ 7,00m.","u",157]
["A062220","Fermettes type A3 ; pente ≤ 45° assemblées par connecteurs fournies et posées, traitement des bois compris, longueur ≤ 8,00m.","u",175]
["A062230","Fermettes type A3 ; pente ≤ 45° assemblées par connecteurs fournies et posées, traitement des bois compris, longueur ≤ 9,00m.","u",202]
["A062240","Fermettes type A3 ; pente ≤ 45° assemblées par connecteurs fournies et posées, traitement des bois compris, longueur ≤ 10,00m.","u",225]
["A062250","Fermettes type A3 ; pente ≤ 45° assemblées par connecteurs fournies et posées, traitement des bois compris, longueur ≤ 11,00m.","u",247]
["A062260","Fermettes type A3 ; pente ≤ 45° assemblées par connecteurs fournies et posées, traitement des bois compris, longueur ≤ 12,00m.","u",270]
[]
[null,"OUVRAGES COMPLEMENTAIRES"]
[]
["A063100","Equerres ou sabots métalliques galvanisées pour fixation des fermettes sur une sablière ou un tasseau noyé dans chainage (2 par fermette).","u",3.4]
["A063105","Equerres ou sabots métalliques galvanisées pour fixation des fermettes directement dans le chainage (2 par fermette).","u",4.8]
["A063110","Mise en place de patte à sceller et fixation de fermette sur pointe de pignon (en moyenne 1 fixation/m sur le périmètre de la fermette).","m",4.2]
["A063200","Contreventement de stabilité 25/75 cloué à 45° sur grandes contrefiches en sapin traité, pour fermettes de type W.","m",2.1]
["A063220","Contreventement de stabilité 25/75 sapin du nord traité, cloué pour fermettes type A.","m",2.1]
["A063300","Barres d'antiflambage 25/100 clouée à 45° sous les arbalétriers, en sapin traité, pour fermettes type W.","m",3.9]
["A063400","Lisses 25/72 clouées sur entraits et arbalétriers au droit assemblage petites contrefiches, en sapin traité, pour fermettes type W.","m",3.3]
["A063500","Entretoises 35/175 clouées sur les entraits aux appuis, et en tête des arbalétriers, en sapin traité, pour fermettes type W.","m",5.0999999999999996]
["A063510","Entretoises 38/175 clouées sur les entraits, sapin du nord traité, pour fermettes type A.","m",7.6]
["A064100","Tasseau trapézoïdale 50/50 sapin traité, noyé dans le chainage, pour fixation de fermettes type W.","m",2.5]
["A064110","Sablière 36/97 sapin traité, noyé dans le chainage pour fixation de fermettes type A à entrait porteurs.","m",1.6]
["A065100","Enchevêtrure pour CF dans charpente fermette type W réalisée entre 2 fermettes. (comprend l'ensemble des chevêtres au niveau des entraits et arbalétriers).","u",42]
["A065125","Enchevêtrure pour CF dans charpente fermette type W comprenant la coupe et modifications d'une fermette. (comprend l'ensemble des bois nécessaires, la fermette coupée à reprendre).","u",172]
["A065200","Enchevêtrure pour velux 78/98 ou 114/118, dans charpente fermette type A, comprenant coupe et modification d'une fermette.","u",166]
["A065225","Enchevêtrure pour lucarne 80/115, dans charpente fermette type A, comprenant coupe et modification d'une fermette.","u",189]
["A065300","Enchevêtrure pour escalier, dans charpente type A, comprenant coupe et modification d'une fermette.","u",200]
["A065400","Cadre antiflambage pour fermettes type A.","u",51]
[]
[]
[null,"COUVERTURE"]
[]
[null,"COUVERTURE EN TUILES MECANIQUES TERRE CUITE"]
[]
["B010000","Double liteau de basculement à l'égout (le voligeage de celui-ci exécuté au dessus des chevrons par le charpentier)."]
[]
[null,"COUVERTURE PLEIN CARRE"]
[]
["B010010","Couverture plein carré en tuiles TC à emboitement LAMBERT RESIDENCE 18 flammée 18/m2 joints droits posée sur liteau sapin non traités.","m2",33]
["B010020","Couverture plein carré en tuiles TC à emboitement LAMBERT GIVERNY PM brune 18/m2 joints droits posée sur liteau sapin non traités.","m2",30.5]
["B010025","Couverture plein carré en tuiles TC à emboitement LAMBERT JURA G.M brune 14,5/m2 joints droits posée sur liteau sapin non traités.","m2",25.7]
["B010070","Couverture plein carré en tuiles TC à emboitement LAMBERT ROMANEE flammée 10/m2 joints droits posée sur liteau sapin non traités.","m2",23.7]
[]
[null,"TRAVAUX A L'EGOUT"]
[]
["B012010","Double liteau de basculement à l'égout (le voligeage de celui-ci exécuté en sous-face ou inexistant).","m",1.65]
["B012020","Double liteau de basculement à l'égout (le voligeage de celui-ci exécuté a dessus des chevrons par le charpentier).","m",1.3]
["B012030","Fourniture et pose d'un closoir peigne en P.V.C. pour égout cache moineau assurant la ventilation de l'égout.","m",3.95]
[]
[null,"RIVES LATERALES ISOLEES"]
[]
["B013010","Rive TC à emboitement recouvrt LAMBERT RESIDENCE POUR TUILES flammée y compris fixations par vis inox.","m",26.6]
["B013020","Rive TC à emboitement recouvrt LAMBERT GIVERNY joint croisés y compris 1/2 tuile brune et fixations par vis inox.","m",30.5]
["B013030","Rive TC à emboitement recouvrt LAMBERT JURA joints droits tuiles brunes y compris fixations par vis inox.","m",33.5]
["B013040","Rive TC à emboitement recouvrt LAMBERT ROMANEE flammée y compris fixations par vis inox.","m",28.9]
[]
[null,"RIVES LATERALES CONTRE MURS"]
[]
["B014010","Rive de faitage contre mur, compris tranchis et bande de filet plomb ép. 1,5 mm bande porte solin et solin mortier bâtard pour tuile mécanique T.C.","m",31]
[]
[null,"RIVES DE FAITAGE"]
[]
["B015010","Faitage TC à emboitement pour tuile LANBERT RESIDENCE flammée à ventilation compris closoir et fixations par vis inox sur rehausse bois.","m",47.5]
["B015020","Faitage TC à emboitement pour tuile LANBERT GIVERNY brune à ventilation compris closoir et fixations par vis inox sur rehausse bois.","m",49]
["B015030","Faitage TC à emboitement pour tuile LANBERT JURA brune à ventilation compris closoir et fixations par vis inox sur rehausse bois.","m",48]
["B015040","Faitage TC à emboitement pour tuile LANBERT ROMANEE à ventilation compris closoir et fixations sur rehausse bois avec tuiles à glissement sous faitage.","m",67.5]
["B015050","Faitage TC à emboitement pour tuile LANBERT ROMANEE à ventilation compris closoir et fixations sur rehausse bois (sans tuiles à glissement sous faitage).","m",53]
["B015060","Fronton de faitage TC à emboitement LANBERT RESIDENCE flammée compris fixation par vis inox, posé en substitution.","u",28.1]
["B015070","Fronton de faitage TC à emboitement LANBERT GIVERNY brune compris fixation par vis inox, posé en substitution.","u",27.7]
["B015080","Fronton de faitière TC à emboitement LANBERT JURA compris fixation par vis inox, posé en substitution.","u",21.3]
["B015090","Fronton de faitière TC à emboitement LANBERT ROMANEE compris fixation par vis inox, posé en substitution.","u",23.7]
[]
[null,"RIVES D'ARETIER"]
[]
["B016010","Arêtier TC à emboitement LAMBERT RESIDENCE flammée PM compris closoirs et fixations par vis inox et rehausse bois.","m",51.5]
["B016020","Arêtier TC à emboitement LAMBERT GIVERNY flammée PM compris closoirs et fixations par vis inox et rehausse bois.","m",44]
["B016030","Arêtier TC tige de botte LAMBERT ROMANEE flammée compris fixations par vis inox, rehausse et closoirs.","m",42.5]
["B016040","About d'arêtier TC à emboitement LAMBERT RESIDENCE flammée PM posé en substitution compris rehausse et fixation par vis inox.","u",19.5]
["B016050","About d'arêtier TC à emboitement LAMBERT GIVERNY flammée PM posé en substitution compris rehausse et fixation par vis inox.","u",19.600000000000001]
["B016060","About d'arêtier TC tige de botte PM LAMBERT ROMANEE flammée posé en substitution compris rehausse et fixation par vis inox.","u",17.100000000000001]
[]
[null,"PIECES DIVERSES ET ACCESSOIRES"]
[]
["B017005","Raccord faitage par  arêtiers LAMBERT GIVERNY flammée, compris fixations.","u",17.399999999999999]
["B017010","Tuile chatière posée en substitution LAMBERT RESIDENCE flammée PM section 45 cm2.","u",27]
["B017015","Chatière LAMBERT GIVERNY PM flammée section 45 cm2, posée en substitution.","u",26.6]
["B017020","Tuile chatière posée en substitution LAMBERT JURA G.M. brune section 45 cm2.","u",25.8]
["B017025","Tuile chatière posée en substitution LAMBERT ROMANEE flammée section 30 cm2.","u",18.5]
["B017030","Tuile à douille D100 avec lanterne LAMBERT RESIDENCE flammée PM, posée en substitution.","u",28.6]
["B017035","Chapeau de ventilation PVC D 160 avec moustiquaire, collerette plomb d'étanchéité adaptable, posé en substitution.","u",55.5]
["B017040","Tuile à douille D100 avec lanterne LAMBERT GIVERNY brune PM, posée en substitution.","u",31]
["B017045","Tuile à gouille D150 avec lanterne LAMBERT GIVERNY brune PM, posée en substitution.","u",54]
["B017050","Tuile à douille D100 avec lanterne LAMBERT JURA brune G.M., posée en substitution.","u",60]
["B017055","Tuile à douille D100 avec lanterne LAMBERT ROMANEE flammée PM, posée en substitution.","u",64.5]
["B017060","Tuile à douille D150 avec lanterne LAMBERT ROMANEE flammée PM, posée en substitution.","u",43.5]
["B017065","Raccord faitage sur 2 arêtiers réalisé en mortier, compris tranchis éventuel.","u",6.5]
[]
[null,"TRANCHIS"]
[]
["B018010","Tranchis apparent droit sur tuile mécanique.","m",6.8]
["B018020","Tranchis caché droit sur tuile mécanique.","m",5.8]
["B018030","Tranchis biais apparent sur tuile mécanique.","m",7.8]
["B018040","Tranchis biais caché sur tuile mécanique.","m",6.8]
["B018050","Tranchis circulaire apparent sur tuile mécanique.","m",9.6999999999999993]
["B018060","Tranchis circulaire caché sur tuile mécanique.","m",8.8000000000000007]
[]
[null,"OUVRAGES EN MORTIER"]
[]
["B019010","Solin et filet au mortier batard y compris tranchis droit et scellement des pièces.","m",13.3]
["B019020","Solin et filet suspendus au mortier batard.","m",8.5]
["B019030","Parement au mortier batard sur tuile mécanique.","m",8.1]
["B019040","Ruellée au mortier batard y compris éventuellement tranchis, dévirure, tranchis et scellement des pièces.","m",15.8]
["B019050","Ruellée à bandeau saillant au mortier batard y compris éventuellement dévirure, tranchis et scellement des pièces.","m",17.600000000000001]
[]
[null,"COUVERTURE EN ARDOISE NATURELLES"]
[]
[null,"COUVERTURE PLEIN CARRE"]
[]
["B030010","Couverture plein carré en ardoise naturelles 355/250, pureau de 120 mm, posées sur liteaux sapin avec des crochets inox.","m2",68]
["B030020","Couverture plein carré en ardoise naturelles 325/220, pureau de 110 mm, posées sur liteaux sapin avec des crochets inox.","m2",73]
["B030030","Couverture plein carré en ardoise naturelles 300/220, pureau de 100 mm, posées sur liteaux sapin avec des crochets inox.","m2",64]
["B030040","Couverture plein carré en ardoise naturelles 300/200, pureau de 100 mm, posées sur liteaux sapin avec des crochets inox.","m2",64.5]
["B030070","Couverture plein carré en ardoise naturelles 270/180, pureau de 90 mm, posées sur liteaux sapin avec des crochets inox.","m2",73.5]
["B030080","Couverture plein carré en ardoise naturelles 270/160, pureau de 90 mm, posées sur liteaux sapin avec des crochets inox.","m2",77]
[]
[null,"EGOUT DE TOITURE"]
[]
["B031020","Doublis en ardoise pour égout biais horizontal u compris tranchis, fixations et fourniture de l'ardoise de doublis et d'un double liteau.","m",21.9]
["B031010","Doublis en ardoise pour égout droit horizontal u compris tranchis, fixations et fourniture de l'ardoise de doublis et d'un double liteau.","m",17.399999999999999]
[]
[null,"FAITAGE SUR ARDOISE"]
[]
["B032400","Faitage ardoise contre mur compris tranchis, bavette en zinc ép. 0,65 mm et fixations ; non compris le solin ou filet et la bande porte solin.","m",12]
["B032010","Faitage en terre cuite 1/2 rond sur ardoise, compris scellement, embarrures et crêtes, et le double tranchis.","m",47]
["B032015","Faitage en terre cuite 1/2 rond à emboitement sur ardoise compris tranchis double, scellement et fixations.","m",45]
["B032100","Faitage fermé en lignolet pour ardoises compris tranchis, voligeage, liteau et fixations.","m",35]
["B032300","Faitage métallique par 1 bande de zinc ép. 0,65 (1 ourlet, 1 pli, 1 ourlet) compris fixations, voligeage et les 2 tranchis.","m",40]
["B032310","Faitage métallique par 2 bandes zinc ép. 0,65, 2 bandes filet en plomb, couvre joint sur tasseau compris fixations, voligeage et les 2 tranchis.","m",62]
[]
[null,"RIVES LATERALES ISOLEES SUR ARDOISES"]
[]
["B033450","Bardelis pour rives latérales isolées compris tranchis et fixations (compris une perte forfaitaire d'ardoise).","m",12.6]
["B033010","Rive latérale isolée en ardoise compris tranchis, fixations (compris une perte forfaitaire d'ardoise).","m",13]
["B033112","Rive latérale isolée en ardoise largeur 200, bande de rive à cheval, y compris noquets zinc cachés, tranchis et fixations (fourniture forfaitaire d'ardoise).","m",42.5]
["B033211","Rive latérale isolée en ardoises largeur 200, bande rive couvre joints, noquets zinc cachés, tranchis et fixations (fourniture forfaitaire d'ardoise).","m",44]
[]
[null,"RIVES LATERALES CONTRE MURS"]
[]
["B033412","Rive latérale en ardoise largeur 200 mm contre mur, compris tranchis, noquets cachés et fixations (fourniture forfaitaire d'ardoises, non compris bande porte solin et solin).","m",18.5]
[]
[null,"RIVES D'ARETIERS SUR ARDOISE"]
[]
["B036260","Arêtier métallique constitué de 2 bandes zinc ép. 0,65, 2 bandes de filet en plomb, couvre joint sur tasseau, compris fixations, voligeage et les 2 tranchis.","m",60]
["B036010","Arêtier fermé en ardoise et demie, angle de rive de 75° à 90°, pureau de 100mm, compris tranchis, fixations (et fourniture forfaitaire d'ardoise).","m",41]
["B036050","Arêtier fermé à 2 ardoises biaises, angle de rive 60° à 75°, pureau de 100mm, compris tranchis, fixations (et fourniture forfaitaire d'ardoise).","m",51]
["B036100","Arêtier fermé à 3 ardoises biaises, angle de rive 45° à 60°, pureau de 100mm, compris tranchis, fixations (et fourniture forfaitaire d'ardoise).","m",57]
["B036150","Arêtier fermé à 4 ardoises biaises, angle de rive 35° à 45°, pureau de 100mm, compris tranchis, fixations (et fourniture forfaitaire d'ardoise).","m",62.5]
["B036200","Arêtier fermé économique à 1 ardoise biaise en travers et ardoise de remplissage, pureau de 100mm, pente de 35/75°, compris tranchis, fixations (fourniture forfaitaire d'ardoise).","m",40.5]
["B036250","Arêtier métallique par 1 bande zinc ép. 0,65 (1 ourlet, 1 pli, 1 ourlet), compris fixations, voligeage et les 2 tranchis.","m",40]
[]
[null,"LIGNES DE BRIS SUR ARDOISE"]
[]
["B037100","Ligne de bris terrasson/brisis sur ardoise compris bande en plomb et tranchis, doublis et fourniture forfaitaire d'ardoise.","m",34.5]
["B037010","Ligne de brisure en ardoise, angle des plans entre 150° et 140°.","m",14.9]
["B037020","Ligne de brisure en ardoise, angle des plans <140° pour lucarne rampante, coyaux, etc…","m",30.5]
["B037050","Ligne de bris terrasson/brisis sur ardoise avec égout et rang de rencontre, compris tranchis, doublis et fourniture forfaitaire d'ardoises.","m",31]
[null,"TRANCHIS SUR ARDOISES"]
[]
["B037510","Tranchais horizontal droit sur de l'ardoise.","m",5.8]
["B037515","Tranchis vertical ou biais sur de l'ardoise.","m",8.8000000000000007]
["B037520","Tranchis circulaire sur de l'ardoise.","m",10.7]
[]
["B037612","Chatière de ventilation en zinc triangulaire pour couverture ardoise, compris fixations et tranchis.","u",31]
["B037651","Sortie de ventilation Y100 adaptée sur une chatière hostyrène, compris fixations et tranchis éventuels.","u",39]
["B037652","Sortie de ventilation Y150 adaptée sur une chatière hostyrène, compris fixations et tranchis éventuels.","u",40]
["B037660","Sortie de ventilation D80 en zinc pour ardoise y compris fixations et tranchis.","u",29.2]
["B037661","Sortie de ventilation D100 en zinc pour ardoise y compris fixations et tranchis.","u",34.5]
[]
[null,"OUVRAGES EN MORTIER SUR ARDOISES"]
[]
["B037750","Bande porte solin en zinc ép. 0,65 y compris ajustage, soudure et solin au mortier batard.","m",22]
["B037705","Solin et filet au mortier batard y compris tranchis droit et scellement des pièces, dévirure et fourniture forfaitaire d'ardoises.","m",20.100000000000001]
["B037706","Solin et filet suspendus au mortier batard y compris tranchis droit et scellement des pièces.","m",16.3]
["B037710","Ruellée au mortier batard y compris tranchis et dévirure, scellement des pièces et fourniture forfaitaire d'ardoises.","m",18.8]
["B037712","Ruellée à bandeau saillant au mortier batard y compris dévirure, tranchis, scellement des pièces et fourniture forfaitaire d'ardoises.","m",23]
[]
[null,"COUVERTURE TUILES PLATES TERRE CUITE"]
[]
[null,"COUVERTURE PLEIN CARRE EN TUILES PLATES"]
[]
["B041010","Couverture tuile plate 16/24 vieille COMPTOIR TUILIER du NORD, pose tiercée sur liteau sapin de pays.","m2",62]
["B041020","Couverture tuile plate 17/27 rustique LAMBERT EMINENCE, pose tiercée sur liteau sapin de pays.","m2",65]
["B041030","Couverture tuile plate 17/27 rustique Normande LAMBERT, pose tiercée sur liteau de sapin de pays.","m2",55.5]
["B041040","Bardage en tuile plate 17/27 rustique LAMBERT EMINENCE, pose tiercée sur liteau sapin de pays y compris les fixations.","m2",66.5]
["B041050","Bardage en tuile plate 17/27 rustique normande LANBERT, pose tiercée sur liteau sapin de pays y compris les fixations.","m2",61.5]
[]
[null,"ENTOURAGE DE LUCARNE SUR TUILE PLATE"]
[]
["B041110","Bande à rabattre en zinc de 0,65 mm ép. pour poteau sur bavette de lucarne y compris fixations et soudure.","u",8]
["B041120","Bavette de lucarne en zinc de 0,65 mm ép. pour lucarne de 1.10 de largeur compris goussets, ajustage, soudure, fourniture et tranchis de tuiles (non compris bande à rabattre ou bande porte solin).","u",99.5]
["B041130","Rive latérale contre mur en tuiles LAMBERT EMINENCE 17/27 y compris fourniture et tranchis des tuiles, noquets en zinc (non compris solin et bande porte solin).","m",32]
[]
[null,"FENETRES DE TOIT SUR TUILE PLATE OU ARDOISE"]
[]
["B041210","Fenêtre de toit VELUX 78/118 standard, compris raccordement d'étanchéité, façon de chevêtre et raccord de couverture.","u",537]
[]
[null,"EGOUT DE TOIT EN TUILE PLATE"]
[]
["B042020","Egout droit sur tuile 17/27 compris double liteau de basculement, fourniture de tuiles de doublis et tranchis (non compris un voligeage éventuel).","ml",4.5]
["B042010","Egout droit sur tuile 16/24 compris double liteau de basculement, fourniture de tuiles de doublis et tranchis (non compris un voligeage éventuel).","ml",5.5]
[]
[null,"RIVES DE FAITAGE SUR TUILE PLATE"]
[]
["B043010","Faitière terre cuite vieillie à emboitement y compris fixations et scellement au mortier bâtard.","m",38.5]
["B043020","Faitière terre cuite vieillie à recouvrement y compris fixations et scellement au mortier bâtard.","m",37.5]
["B043030","Faitière terre cuite vieillie 1/2 ronde y compris embarrures et crêtes au mortier bâtard.","m",43.5]
["B043040","About de faitage à emboitement vieillie y compris scellement.","u",27.4]
["B043050","About de faitage 1/2 rond vieilli y compris embarrures et crêtes.","u",42.5]
[]
[null,"RIVES LATERALES ISOLEES SUR TUILE PLATE"]
[]
[]
["B044010","Rive latérale en tuiles rustiques LAMBERT Eminence 17/27, compris tranchis droit, fixations des pièces et fourniture des tuiles.","m",6.9]
["B044020","Rives latérale en tuiles rustiques LAMBERT Normande 17//27, compris tranchis droit, fixation des pièces et fourniture de tuiles.","m",8.5]
["B044030","Rive latérale en tuile de rive à rabat rustique 17/27 LAMBERT Eminence y compris fixations et tranchis d'approche.","m",32.5]
[]
[null,"RIVES LATERALES CONTRE MURS SUR TUILE PLATE"]
[]
["B045010","Rives latérales contre mur en tuiles C.T.N. 16/24 y compris noquets ZN, bande porte solin et solin au mortier, fourniture et tranchis des tuiles.","m",45]
["B045020","Rives latérales contre mur en tuiles LAMBERT EMINENCE 17/27 y compris noquets zinc, fourniture et tranchis des tuiles (non compris solin et bande porte solin).","m",32]
["B045030","Rives latérales contre mur en tuiles LAMBERT rustique NORMANDE 17/27 y compris noquets zinc, fourniture et tranchis des tuiles (non compris solin et bande porte solin).","m",33]
["B045040","Rives latérales contre mur en tuiles LAMBERT EMINENCE 17/27 y compris noquets zinc, fourniture et tranchis des tuiles, solin et bande porte solin.","m",49]
["B045050","Rives latérales contre mur en tuiles LAMBERT rustique Normande 17/27 y compris fourniture et tranchis des tuiles, noquets zinc, solin et bande porte solin.","m",47]
[]
[null,"RIVES D'ARETIERS SUR TUILE PLATE"]
[]
["B046040","About d'arêtier en corniers vieillis y compris 2 tranchis, fourniture de tuiles 17/27 LAMBERT Rustique Normande et fixations, et scellement de l'about.","u",7.1]
["B046010","Arêtiers en corniers grand modèle vieillis y compris double tranchis, fourniture en tuiles 17/27 LANBERT EMINENCE et fixations, et scellement des corniers.","m",64.5]
["B046020","Arêtiers en corniers grand modèle vieillis y compris double tranchis, fourniture en tuiles 17/27 LANBERT Rustique Normande et fixations, et scellement des corniers.","m",61.5]
["B046030","Abouts d'arêtiers corniers vieillis y compris 2 tranchis, fourniture en tuiles 17/27 LANBERT EMINENCE et fixations, et scellement de l'about.","u",7]
[]
[null,"PIECES DIVERSES ET ACCESSOIRES"]
[]
["B047010","Fourniture et pose en substitution de tuiles chatières de ventilation 35 cm2 pour tuile plate 17/27 LAMBERT.","u",29.6]
["B047020","Fourniture et pose en substitution de tuiles chatières de ventilation 35 cm2 pour tuile plate 17/27 LAMBERT RUSTIQUE Normande.","u",28.2]
["B047030","Fourniture et pose en substitution de tuile à douille D 100 et lanterne pour tuile plate 17/27 LANBERT EMINENCE.","u",39.5]
["B047040","Fourniture et pose en substitution de tuile à douille D 100 et lanterne pour tuile plate 17/27 LANBERT RUSTIQUE Normande.","u",45.5]
["B047050","Pièce de rencontre entre faitage et 2 arêtiers pour faitage terre cuite à emboitement compris scellement au mortier.","u",51]
["B047060","Pièce de rencontre entre faitage et 2 arêtiers pour faitage terre cuite à emboitement compris scellement au mortier.","u",52]
["B047070","Pièce de rencontre entre faitage et 2 arêtiers pour faitage terre cuite 1/2 rond compris scellement, embarrures et crêtes au mortier.","u",54.5]
[]
[null,"TRANCHIS SUR TUILE PLATE"]
[]
["B048010","Tranchis droit vertical sur tuile plate.","m",8.8000000000000007]
["B048020","Tranchis droit horizontal sur tuile plate.","m",7.8]
["B048030","Tranchis doit biais sur tuile plate.","m",11.7]
["B048040","Tranchis circulaire sur tuile plate.","m",15.6]
["B048050","Queue d'hirondelle sur tuile plate compris tranchis et fourniture forfaitaire de tuiles.","u",20.6]
[]
[null,"OUVRAGES EN MORTIER SUR TUILE PLATE"]
[]
["B049010","Solin et filet en mortier bâtard compris tranchis droit et scellement des pièces au mortier.","m",9.4]
["B049020","Solin et filet suspendus au mortier bâtard.","m",8.5]
["B049030","Bande porte solin en zinc ép. 0,65 y compris ajustage, soudure et solin au mortier bâtard.","m",14.2]
["B049035","Parement au mortier bâtard sur tuile plate en rive verticale pour finition de bardage non compris tranchis.","m",17.3]
["B049040","Ruellée à bandeau saillant au mortier bâtard compris dévirure, tranchis et scellement des pièces au mortier.","m",24.8]
["B049050","Bouchement d'un about d'arêtier au mortier bâtard sur tuile plate.","u",2.5]
["B049060","Rencontre en faitage et arêtiers au mortier bâtard sur tuile plate compris tranchis des pièces.","u",10.9]
["B049070","Arêtier au mortier bâtard de section quadrangulaire y compris double tranchis, fourniture et fixations des tuiles 16/24 C.T.N.","m",37.5]
["B049080","Arêtier au mortier bâtard de section quadrangulaire y compris double tranchis, fourniture et fixations des tuiles 17/27 LAMBERT EMINENCE.","m",38.5]
["B049090","Arêtier au mortier bâtard de section quadrangulaire y compris double tranchis, fourniture et fixations des tuiles 17/27 rustique normande.","m",38]
[]
[null,"LES NOUES"]
[]
[null,"LES NOUES POUR TUILES MECANIQUES"]
[]
["B051005","Noue en zinc ép 0,65 mm dév. 36 cm, pinces de 3 cm, compirs voligeage, liteaux contre pinces, fixation de la noue effaçon des tranchis (non compris les extrémités de noue).","m",27.6]
["B051010","Noue en zinc ép 0,65 mm dév. 26 cm, pinces de 3 cm, compirs voligeage, liteaux contre pinces, fixation de la noue effaçon des tranchis (non compris les extrémités de noue).","m",26.8]
["B051015","Noue en zinc ép 0,50 mm dév. 36 cm, pinces de 3 cm, compirs voligeage, liteaux contre pinces, fixation de la noue effaçon des tranchis (non compris les extrémités de noue).","m",29.4]
["B051020","Noue en zinc ép 0,80 mm dév. 26 cm, pinces de 3 cm, compirs voligeage, liteaux contre pinces, fixation de la noue effaçon des tranchis (non compris les extrémités de noue).","m",27.3]
["B051025","Majoration pour façonnage de pied de noue zinc ép 0,65 dév. 46cm, larmier de 5cm avec gousset rapporté soudé et pince de 2cm.","u",5.5]
["B051030","Majoration pour façonnage de pied de noue zinc ép 0,65 dév. 36cm, larmier de 5cm avec gousset rapporté soudé et pince de 2cm.","u",5.0999999999999996]
["B051035","Majoration pour façonnage de pied de noue zinc ép 0,65 dév. 26cm, larmier de 5cm avec gousset rapporté soudé et pince de 2cm.","u",4.8]
["B051040","Majoration pour façonnage de pied de noue zinc ép 0,80 dév. 36cm, larmier de 5cm avec gousset rapporté soudé et pince de 2cm.","u",5.5]
["B051045","Majoration pour façonnage de pied de noue zinc ép 0,80 dév. 26cm, larmier de 5cm avec gousset rapporté soudé et pince de 2cm.","u",5]
["B051050","Majoration pour façonnage de tête de noue zinc ép 0,65 dév. 36cm, pince de 3cm compris fixations.","u",2.7]
["B051055","Majoration pour façonnage de tête de noue zinc ép 0,65 dév. 26cm, pince de 3cm compris fixations.","u",2.5499999999999998]
["B051060","Majoration pour façonnage de tête de noue zinc ép 0,80 dév. 36cm, pince de 3cm compris fixations.","u",2.9]
["B051065","Majoration pour façonnage de tête de noue zinc ép 0,80 dév. 26cm, pince de 3cm compris fixations.","u",2.65]
["B051070","Raccordement de 2 têtes de noue zinc ép 0,65 dév. 36cm y compris soudure, fixation, voligeage et le tranchis des matériaux de couverture.","u",17.899999999999999]
["B051075","Raccordement de 2 têtes de noue zinc ép 0,65 dév. 26cm y compris soudure, fixation, voligeage et le tranchis des matériaux de couverture.","u",16.899999999999999]
["B051080","Raccordement de 2 têtes de noue zinc ép 0,80 dév. 36cm y compris soudure, fixation, voligeage et le tranchis des matériaux de couverture.","u",18.8]
["B051085","Raccordement de 2 têtes de noue zinc ép 0,80 dév. 26cm y compris soudure, fixation, voligeage et le tranchis des matériaux de couverture.","u",17.5]
["B051090","Raccordement de 2 têtes de noue en plomb ép 1mm dév. 36cm y compris fixation, voligeage et le tranchis des matériaux de couverture.","u",26.9]
["B051095","Raccordement de 2 têtes de noue en plomb ép 1mm dév. 26cm ou de noue à noquets compris fixation, voligeage et le tranchis des matériaux de couverture.","u",26.6]
[]
[null,"LES NOUES POUR ARDOISES"]
[]
[null,"NOUES OUVERTES METALLIQUES"]
[]
["B052105","Noue ouverte en zinc ép. 0,65 dév. 46cm pour ardoise compris tranchis, voligeage, fixations et liteaux contrepince (non compris tête et pied de noue).","m",45.5]
["B052115","Noue ouverte en zinc ép. 0,65 dév. 36cm pour ardoise compris tranchis, voligeage, fixations et liteaux contrepince (non compris tête et pied de noue).","m",41.5]
["B052120","Noue ouverte en zinc ép. 0,65 dév. 26cm pour ardoise compris tranchis, voligeage, fixations et liteaux contrepince (non compris tête et pied de noue).","m",40.5]
["B052125","Noue ouverte en zinc ép. 0,80 dév. 36cm pour ardoise compris tranchis, voligeage, fixations et liteaux contrepince (non compris tête et pied de noue).","m",43]
["B052130","Noue ouverte en zinc ép. 0,80 dév. 26cm pour ardoise compris tranchis, voligeage, fixations et liteaux contrepince (non compris tête et pied de noue).","m",41]
["B052135","Majoration pour pied de noue en zinc ép 0,65 dév. 36cm, larmier de 5cm avec gousset rapporté soudé et pinces de 2cm.","u",5.0999999999999996]
["B052140","Majoration pour pied de noue en zinc ép 0,65 dév. 66cm, larmier de 5cm avec gousset rapporté soudé et pinces de 2cm.","u",4.8]
["B052145","Majoration pour tête de noue en zinc ép 0,65 dév. 36cm, avec pinces de 3cm compris fixations.","u",2.7]
["B052150","Majoration pour tête de noue en zinc ép 0,65 dév. 26cm, avec pinces de 3cm compris fixations.","u",2.5499999999999998]
["B052155","Raccordement de 2 têtes de noue zinc ép 0,65 dév. 36cm y compris soudure, fixation, voligeage et le tranchis des matériaux de couverture.","u",17.899999999999999]
["B052160","Raccordement de 2 têtes de noue zinc ép 0,65 dév. 26cm y compris soudure, fixation, voligeage et le tranchis des matériaux de couverture.","u",16.899999999999999]
["B052165","Raccordement de 2 têtes de noue en plomb ép 1mm dév. 36cm y compris fixation, voligeage et le tranchis des matériaux de couverture.","u",26.9]
["B052170","Raccordement de 2 têtes de noue en plomb ép 1mm dév. 26cm y compris fixation, voligeage et le tranchis des matériaux de couverture.","u",26.6]
[]
[null,"NOUES FERMEES A NOQUETS"]
[]
["B052210","Noue fermée en ardoises avec noquets zinc ép 0,65 pour ardoises 325/220 compris double tranchis, fourniture des noquets et fixations des picèces","m",58]
["B052220","Noue fermée en ardoises avec noquets zinc ép 0,65 pour ardoises 300/200 compris double tranchis, fourniture des noquets et fixations des picèces","m",68]
["B052230","Noue fermée en ardoises avec noquets zinc ép 0,65 pour ardoises 270/180 compris double tranchis, fourniture des noquets et fixations des picèces","m",75]
[]
[null,"LES NOUES POUR TUILE PLATE"]
[]
[null,"NOUES OUVERTES METALLIQUES"]
[]
["B053005","Noue ouverte en zinc ép 0,65mm dév. 36cm pour tuiles plates 17/27 LAMBERT EMINENCE compris tranchis, voligeage, fixations, liteaux contre noue (non compris tête et pied de noue éventuellement).","m",51]
["B053010","Noue ouverte en zinc ép 0,65mm dév. 26cm pour tuiles plates 17/27 LAMBERT EMINENCE compris tranchis, voligeage, fixations, liteaux contre noue (non compris tête et pied de noue éventuellement).","m",50]
["B053020","Majoration pour pied de noue en zinc ép 0,65 dév. 36cm, larmier de 5cm avec gousset rapporté soudé et pinces de 2cm.","u",5.0999999999999996]
["B053025","Majoration pour pied de noue en zinc ép 0,65 dév. 26cm, larmier de 5cm avec gousset rapporté soudé et pinces de 2cm.","u",4.8]
["B053030","Majoration pour façonnage de tête de noue zinc ép 0,65 dév. 36cm, pince de 3cm compris fixations.","u",2.7]
["B053035","Majoration pour façonnage de tête de noue zinc ép 0,65 dév. 26cm, pince de 3cm compris fixations.","u",2.5499999999999998]
["B053050","Raccordement de 2 têtes de noue zinc ép 0,65 dév. 36cm y compris soudure, fixation, voligeage et le tranchis des matériaux de couverture.","u",17.899999999999999]
["B053055","Raccordement de 2 têtes de noue zinc ép 0,65 dév. 26cm y compris soudure, fixation, voligeage et le tranchis des matériaux de couverture.","u",16.899999999999999]
["B053070","Raccordement de 2 têtes de noue en plomb ép 1mm dév. 36cm y compris fixation, voligeage et le tranchis des matériaux de couverture.","u",26.9]
["B053075","Raccordement de 2 têtes de noue en plomb ép 1mm dév. 26cm y compris fixation, voligeage et le tranchis des matériaux de couverture.","u",26.6]
[]
[null,"NOUES FERMEES A NOQUETS"]
[]
["B053210","Noues fermées à noquets sur tuiles plates LAMBERT EMINENCE 17/27 compris double tranchis et fourniture de tuiles.","m",97]
["B053220","Noues fermées à noquets sur tuiles plates LAMBERT NORMANDE 17/27 compris double tranchis et fourniture de tuiles.","m",89.5]
[]
[null,"LES SOUCHES"]
[]
[null,"PIEDROITS ZINC SUR COUVERTURE TUILE MECANIQUE / PLATE ET ARDOISE"]
[]
["B061010","Piedroit en zinc de 0,65 ép pour derrière de souche (conduit de 20 cm largeur intérieure) compris glacis, double liteau, bande porte solin et solin au mortier de ciment.","u",32]
["B061020","Piedroit en zinc de 0,65 ép pour derrière de souche (conduit de 30 cm largeur intérieure) compris glacis, double liteau, bande porte solin et solin au mortier de ciment.","u",39]
["B061030","Etancheité de souche (conduit de 30 cm de largeur intérieure ) par piédroit en zinc ép. 0,65 mm compris tranchis; bande porte solin et solin sur l'arrière, filet et solin sur les cotés et devant.","u",61]
[]
[null,"ENTOURAGES DE SOUCHES METALLIQUES SUR TUILE MECANIQUE"]
[]
[null,"ENTOURAGES DE SOUCHES EN PLOMB"]
[]
["B062110","Entourage de souche en plomb ép. 15mm pour conduit 20/20 intérieur, sur tuile mécanique compris glacis, double liteaux, non compris bande porte solin et solin","u",93]
["B062120","Entourage de souche en plomb ép. 15mm et piedroit en zinc ép 0,65mm pour conduit 20/20 intérieur, sur tuile mécanique compris glacis, double liteaux, non compris bande porte solin et solin","u",93.5]
["B062130","Entourage de souche en plomb ép. 15mm et piedroit en zinc ép 0,65mm pour conduit 20/40 intérieur, sur tuile mécanique compris glacis, double liteaux, non compris bande porte solin et solin","u",97.5]
[]
[null,"SOUCHES DE TOIT PREFABRIQUEES"]
[]
["B062210","Sortie de toiture rectangulaire en métal type STRP CLASSIQUE compris embase 57/40 d'étanchéité sur tuile mécanique, non compris les tuyaux du conduit","u",467]
[]
[null,"COMPOSANTS D'ENTOURAGES DE SOUCHES METALLIQUES SUR TUILE PLATE ET ARDOISE"]
[]
[null,"ENTOURAGES DE SOUCHES EN ZINC"]
[]
["B063110","Derrière de souche en zinc 0,65 mm d'ép. Conduit de 20 largeur intérieure, sur ardoise ou tuiles plates, compris tranchis, glacis, fixations, non copris bande porte solin et solin","u",71.5]
["B063120","Derrière de souche en zinc 0,65 mm d'ép. Conduit de 30 largeur intérieure, sur ardoise ou tuiles plates, compris tranchis, glacis, fixations, non compris bande porte solin et solin","u",74]
["B063130","Bavette en zinc 0,65 mm d'ep conduit de 20 largeur interieure sur ardoises ou tuiles plates, compris tranchis, glacis, fixations, non compris bande porte solin et solin","u",61.5]
["B063140","Bavette en zinc 0,65 mm d'ep conduit de 30 largeur interieure sur ardoises ou tuiles plates, compris tranchis, glacis, fixations, non compris bande porte solin et solin","u",64.5]
[]
[null,"SOUCHES DE TOIT PREFABIQUEES"]
[]
[null,"ENTOURAGES DE SOUCHES METALLIQUES SUR TUILE PLATE"]
[]
[null,"ENTOURAGES COMPLETS EN ZINC"]
[]
["B064110","Entourage de souche en zinc pour conduit de 20/20 interieur comprenant arrière indépendant, bavette sur le devant et noquets en zinc ep 0,65 mm tranchis sur materiau de couverture et bande porte solin et solin au mortier","u",190]
["B064120","Entourage de souche en zinc pour conduit de 30/30 interieur comprenant arrière indépendant, bavette sur le devant et noquets en zinc ep 0,65 mm tranchis sur materiau de couverture et bande porte solin et solin au mortier","u",208]
["B064130","Entourage de souche en zinc pour conduit de 20/20 interieur comprenant arrière indépendant, bavette sur le devant et noquets en zinc ep 0,65 mm tranchis sur materiau de couverture et solin suspendu sur bande porte solin ","u",180]
["B064140","Entourage de souche en zinc pour conduit de 30/30 interieur comprenant arrière indépendant, bavette sur le devant et noquets en zinc ep 0,65 mm tranchis sur materiau de couverture et solin suspendu sur bande porte solin","u",195]
[]
[null,"LES EAUX PLUVIALES"]
[]
[null,"LES GOUTTIERES"]
[]
[null,"LES GOUTTIERES PENDANTES"]
[]
["B071105","Gouttière 1/2 ronde en zinc du commerce dév 0,16 ép 0,65 mm compris réglage, crochets, fixations et soudures de jonction","m",9.4]
["B071110","Gouttière 1/2 ronde en zinc du commerce dév 0,25 ép 0,65 mm compris réglage, crochets, fixations et soudures de jonction","m",10.5]
["B071115","Gouttière 1/2 ronde en zinc du commerce dév 0,33 ép 0,65 mm compris réglage, crochets, fixations et soudures de jonction","m",12.1]
["B071120","Retour d'angle sortant ou rentrant pour gouttière 1/2 ronde Dév 25 ép 0,65 mm y compris ajustage et soudure (pièce du commerce).","u",13.2]
["B071125","Retour d'angle sortant ou rentrant pour gouttière 1/2 ronde Dév 33 ép 0,65 mm y compris ajustage et soudure (pièce du commerce).","u",14.4]
["B071130","Talon à pince pour gouttière 1/2 ronde de 16 compris façonnage et soudure","u",4.5999999999999996]
["B071135","Talon à pince pour gouttière 1/2 ronde de 25 compris façonnage et soudure","u",6]
["B071140","Talon à pince pour gouttière 1/2 ronde de 33 compris façonnage et soudure","u",6.3]
["B071145","Talon à ourlet et coupe d'onglet pour gouttière 1/2 ronde de 16 dév compris façonnage et soudure","u",6.3]
["B071150","Talon à ourlet et coupe d'onglet pour gouttière 1/2 ronde de 25 dév compris façonnage et soudure","u",7.3]
["B071155","Talon à ourlet et coupe d'onglet pour gouttière 1/2 ronde de 33 dév compris façonnage et soudure","u",7.5]
["B071160","Naissance cylindrique Y 80 pour gouttière 1/2 ronde de 25 dév","u",8.6]
["B071165","Naissance cylindrique Y 80 pour gouttière 1/2 ronde de 33 dév","u",10.5]
["B071170","Naissance cylindrique Y 100 pour gouttière 1/2 ronde de 25 dév","u",9.9]
["B071175","Naissance cylindrique Y 100 pour gouttière 1/2 ronde de 33 dév","u",10.9]
["B071180","Besace de dilatation et couvre joint pour gouttière 1/2 ronde de 25 dév ép 65 mm y compris ajustage et soudures","u",11]
["B071185","Besace de dilatation et couvre joint pour gouttière 1/2 ronde de 33 dév ép 65 mm y compris ajustage et soudures","u",15.4]
[]
[null,"LES GOUTTIERES DE VERSANT"]
[]
["B071205","Gouttières LAVAL en zinc dév. 33 posée avec crochets de sécurité sur doublis en zinc ép. 0,65 mm y compris le voligeage en sapin.","m",38.5]
["B071210","Gouttières LAVAL en zinc dév. 40 posée avec crochets de sécurité sur doublis en zinc ép. 0,65 mm y compris le voligeage en sapin.","m",46]
["B071215","Gouttières Nantaise en zinc dév. 33 posée avec crochets de sécurité sur doublis en zinc ép. 0,65 mm y compris le voligeage en sapin.","m",39]
["B071220","Gouttière Nantaise en zinc dév. 40 posée avec crochets de sécurité sur doublis en zinc ép. 0,65 mm y compris le voligeage en sapin.","m",47.5]
["B071230","Talon à pince pour gouttière LAVAL de 33 dév. du commerce compris façonnage et soudure","U",10]
["B071235","Talon à pince pour gouttière LAVAL de 40 dév. du commerce compris façonnage et soudure","U",11]
["B071240","Talon à ourlet pour gouttière LAVAL de 33 dév. du commerce compris façonnage et soudure","U",12]
["B071245","Talon à ourlet pour gouttière LAVAL de 40 dév. du commerce compris façonnage et soudure","U",13]
["B071260","Talon à pince pour gouttière Nantaise de 33 dév. du commerce compris façonnage et soudure","U",10]
["B071265","Talon à pince pour gouttière Nantaise de 40 dév. du commerce compris façonnage et soudure","U",11]
["B071270","Talon à ourlet pour gouttière Nantaise de 33 dév. du commerce compris façonnage et soudure","U",12]
["B071275","Talon à ourlet pour gouttière Nantaise de 40 dév. du commerce compris façonnage et soudure","U",13]
["B071280","Naissance cylindrique D 60 pour gouttière de versant comprenant celle de la gouttière et celle du doublis de garantie, ajustage et soudure.","U",11.8]
["B071282","Naissance cylindrique D 80 pour gouttière de versant comprenant celle de la gouttière et celle du doublis de garantie, ajustage et soudure.","U",11]
["B071286","Naissance cylindrique D 100 pour gouttière de versant comprenant celle de la gouttière et celle du doublis de garantie, ajustage et soudure.","U",16.3]
["B071290","Retour d'angle sortant ou rentrant pour gouttière de versant sur doublis y compris ajustage et soudure (pièces du commerce).","U",24]
["B071295","Besace de dilatation pour gouttière de versant en zinc ép. 0,65 mm y compris ajustage et soudure.","U",17.399999999999999]
[]
[null,"LES DESCENTES D'EAU PLUVIALE"]
[]
[null,"LES TUYAUX"]
[]
["B072110","Tuyau de descente d'eau pluviale en zinc du commerce ép. 0,65 mm D 80 avec fixation par collier et soudure d'une bague tous les 2.00 ml.","m",17.899999999999999]
["B072120","Tuyau de descente d'eau pluviale en zinc du commerce ép. 0,65 mm D 100 avec fixation par collier et soudure d'une bague tous les 2.00 ml.","m",20.399999999999999]
[]
[null,"LES COUDES"]
[]
["B072210","Coude en zinc D 80 du commerce y compris ajustage et soudure.","U",5.6]
["B072220","Coude en zinc D 100 du commerce y compris ajustage et soudure.","U",6.9]
[]
[null,"LES CUVETTES DE BRANCHEMENT"]
[]
["B072320","Cuvette de branchement du commerce en zinc D 100 y compris ajustage et soudurees éventuellement (jambonneau).","U",18.3]
["B072310","Cuvette de branchement du commerce en zinc D 80 y compris ajustage et soudurees éventuellement (jambonneau).","U",15.7]
[]
[null,"LES DAUPHINS"]
[]
["B072410","Coude dauphin du commerce en zinc D80 compris bague soudée, fourniture et pose de 1 collier","u",20.5]
["B072415","Coude dauphin du commerce en zinc D100 compris bague soudée, fourniture et pose de 1 collier","u",23.8]
["B072420","Dauphin fonte droit D 75 y compris fourniture et pose de 2 colliers de fixation pour descente EP de 80","u",38.5]
["B072425","Dauphin fonte droit D 100 y compris fourniture et pose de 2 colliers de fixation pour descente EP de 100","u",46]
["B072430","Dauphin fonte coudé D 75 y compris fourniture et pose de 2 colliers de fixation pour descente EP de 80","u",51]
["B072435","Dauphin fonte coudé D 7100 y compris fourniture et pose de 2 colliers de fixation pour descente EP de 100","u",59]
["B072450","Dauphin PVC droit D 80 y compris fourniture et pose de 2 colliers de fixation pour descente EP de 80","u",30.5]
["B072455","Dauphin PVC coudé D 80 y compris fourniture et pose de 2 colliers de fixation pour descente EP de 80","u",32]
["B072460","Dauphin PVC droit D 100 y compris fourniture et pose de 2 colliers de fixation pour descente EP de 100","u",32]
["B072465","Dauphin PVC coudé D 100 y compris fourniture et pose de 2 colliers de fixation pour descente EP de 100","u",33.5]
[]
[null,"LES CRAPAUDINES"]
[]
["B072510","Crapaudine en fil de fer plastifié pour protection des naissances de D 60","u",6.3]
["B072520","Crapaudine en fil de fer plastifié pour protection des naissances de D 80","u",7]
["B072530","Crapaudine en fil de fer plastifié pour protection des naissances de D 100","u",8.1]
[]
[null,"COMPLEMENT D'ETANCHEITE SOUS TOITURE"]
[]
["B080020","Complément d'étanchéité pour couverture à faible pente compris contre liteaunage, voligeage et feutre bitumeux.","m2",12.1]
["B080030","Complément d'étanchéité en polyéthylène 150 microns sous liteaux, pose tendue.","m2",4.0999999999999996]
["B080040","Fourniture et pose d'un closoir peigne en PVC pour égout cache moineau assurant la ventilation de l'égout.","ml",3.95]
[]
[null,"OUVRAGES COMMUNS DIVERS"]
[]
[null,"PATTE A FEUILLE"]
[]
["B091010","Pattes en cuivre étamé pour fixation d'éléments en zinc.","u",2.35]
["B091020","Pattes à feuilles en zinc de 0,65 mm ép pour fixation d'éléments en zinc","u",0.5]
[]
[null,"SOLINS, FILETS ET RUELLEES"]
[]
["B092010","Bande porte solin zinc et solin au mortier","m",14.1]
["B092020","Solin et filet au mortier batard compris tranchis droit scellement des pièces.","m",9.4]
["B092025","Solin et filet suspendus au mortier bâtard.","m",8.5]
["B092050","Parement au mortier bâtard sur tuile plate en rive verticale pour finition de bardage non compris tranchis et fourniture d'ardoise","m",17.3]
["B092055","Ruellée au mortier bâtard y compris éventuellement tranchis, dévirure et scellement des pièces","m",12.9]
["B092060","Ruellée à bandeau saillant au mortier bâtard compris dévirure, tranchis et scellement des pièces","m",24.8]
["B092070","Bande à rabattre en zinc de 0,65 mm pour poteau sur bavette de lucarne y compris fixation et soudure","u",8]
[]
[]
[]
[null,"MENUISERIE"]
[]
[null,"MENUISERIES EXTERIEURES BOIS"]
[]
[null,"ACESSOIRES ET FINITIONS POUR MENUISERIES EXTERIEURES BOIS"]
[]
[]
["C01AF04","Plus-value pour fourrures de doublage de 130 à 160 mm d'épaisseur pour chassis.","u",19]
["C01AF06","Plus-value pour fourrures de doublage de 130 à 160 mm d'épaisseur pour fenêtres.","u",23.5]
["C01AF08","Plus-value pour fourrures de doublage de 130 à 160 mm d'épaisseur pour portes fenêtres.","u",28.5]
["C01AF20","Plus-value pour finition lasurée ton merisier en 3 couches (prix par vantail pour chassis, fenêtre et porte-fenêtre).","u",9.4]
["C01AF22","Plus-value pour finition laquée teinte blanche (prix par vantail pour chassis, fenêtre et porte-fenêtre).","u",14]
["C01AF24","Plus-value pour finition laquée teinte colorée (prix par vantail pour chassis, fenêtre et porte-fenêtre).","u",11.5]
["C01AF26","Plus-value pour finition lasurée ton merisier en 3 couches pour porte de service et porte d'entrée \"eco\".","u",98.5]
["C01AF27","Plus-value pour finition laquée teinte blanche pour portes de service.","u",78.5]
["C01AF28","Plus-value pour finition laquée teinte colorée pour portes de service.","u",16]
["C01AF29","Plus-value pour finition laquée teinte colorée pour portes d'entrée.","u",20.5]
["C01AF30","Plus-value pour poignée ou bouton en laiton poli ou vieilli pour chassis, croisée ou porte-balcon.","u",20.5]
["C01AF31","Plus-value pour poignée ou bouton en fer noir patiné pour chassis, croisée ou porte-balcon.","u",13]
["C01AF40","Plus-value pour ensemble 2 faces en laiton poli ou vieilli pour porte fenêtre (crémone barillet).","u",65.5]
["C01AF41","Plus-value pour entrée de boite à lettres en laiton poli sur porte d'entrée.","u",221]
["C01AF42","Plus-value pour ensemble 2 faces en laiton poli sur porte d'entrée.","u",67.5]
["C01AF43","Plus-valur pour ensemble 2 faces fer nois patiné pour porte d'entrée ou porte-croisée (avec crémone serrure 3 points).","u",21.5]
["C01AF50","Couvre-fiches en fer noir patiné pour chassis, croisée ou porte-balcon.","u",7.3]
["C01AF55","Couvre fiches en laiton poli ou patiné pour porte d'entrée.","u",19.5]
["C01AF70","Plus value pour incorporation de grille de ventillation 15 ou 30 m3/h dans ouvrant.","u",13]
[]
[null,"CHASSIS"]
[]
[null,"Chassis en bois de 46 mm épaisseur"]
[]
["C01CH10","Chassis 1 vantail 40/75 ouvrant à la française, en bois exotique de 46 mm, double vitrage 4/12/4 grand jour, fourrures d'isolation, bouton aluminium anodisé. Finition lasurée.","u",22]
["C01CH15","Chassis 1 vantail 80/95 ouvrant à la française, en bois exotique de 46 mm, double vitrage 4/12/4 grand jour, fourrures d'isolation, bouton aluminium anodisé. Finition lasurée.","u",298]
["C01CH18","Chassis 1 vantail 80/115 ouvrant à la française, en bois exotique de 46 mm, double vitrage 4/12/4 grand jour, fourrures d'isolation, bouton aluminium anodisé. Finition lasurée.","u",322]
[]
[null,"Chassis en bois de 56 mm épaisseur"]
[]
["C01CH50","Chassis 1 vantail 40/75 ouvrant à la française, en bois exotique de 56 mm, double vitrage 4/12/4 grand jour, fourrures d'isolation, bouton aluminium anodisé. Finition lasurée.","u",315]
["C01CH55","Chassis 1 vantail 80/95 ouvrant à la française, en bois exotique de 56 mm, double vitrage 4/12/4 grand jour, fourrures d'isolation, bouton aluminium anodisé. Finition lasurée.","u",374]
["C01CH60","Chassis 1 vantail 80/115 ouvrant à la française, en bois exotique de 56 mm, double vitrage 4/12/4 grand jour, fourrures d'isolation, bouton aluminium anodisé. Finition lasurée.","u",439]
[]
[null,"Chassis en bois 40 mm épaisseur"]
[]
["C01CH92","Chassis 1 vantail 100/45 abattant bois exotique 40 mm d'épaisseur, simple vitrage 4 mm posé, menuiserie posée en feuillure. Menuiserie à vernir ou à peindre.","u",221]
[]
[null,"CROISEES"]
[]
[null,"Croisées en bois de 46 mm épaisseur"]
[]
["C01CR10","Croisée 2 vantaux 100/115 ouvrant à la française bois exotique de 46 mm épaisseur, double vitrage 4/12/4 grand jour, fourrures d'isolation, poignée en aluminium anodisé. Finition lasurée.","u",383]
["C01CR30","Croisée 2 vantaux 100/135 ouvrant à la française bois exotique de 46 mm épaisseur, double vitrage 4/12/4 grand jour, fourrures d'isolation, poignée en aluminium anodisé. Finition lasurée.","u",414]
["C01CR35","Croisée 2 vantaux 120/135 ouvrant à la française bois exotique de 46 mm épaisseur, double vitrage 4/12/4 grand jour, fourrures d'isolation, poignée en aluminium anodisé. Finition lasurée.","u",450]
[]
[null,"Croisées en bois de 56 mm épaisseur"]
[]
["C01CR60","Croisée 2 vantaux 100/135 ouvrant à la française bois exotique de 56 mm épaisseur, double vitrage 4/12/4 grand jour, fourrures d'isolation, poignée en aluminium anodisé. Finition lasurée.","u",655]
["C01CR65","Croisée 2 vantaux 120/135 ouvrant à la française bois exotique de 56 mm épaisseur, double vitrage 4/12/4 grand jour, fourrures d'isolation, poignée en aluminium anodisé. Finition lasurée.","u",715]
["C01CR80","Croisée 2 vantaux 120/155 ouvrant à la française bois exotique de 56 mm épaisseur, double vitrage 4/12/4 grand jour, fourrures d'isolation, poignée en aluminium anodisé. Finition lasurée.","u",785]
[]
[null,"PORTES CROISEES"]
[]
[null,"Portes-croisées en bois de 46 mm épaisseur"]
[]
["C01PC12","Porte-croisée 1 vantail 80/215 bois exotique 46 mm d'épaisseur, double vitrage 4/12/4 grand jour, fourrures d'isolation' ensembles 2 faces avec poignées aluminium anodisé et serrure à barillet. Finition lasurée.","u",565]
["C01PC18","Porte-croisée 1 vantail 120/215 bois exotique 46 mm d'épaisseur, double vitrage 4/12/4 grand jour, fourrures d'isolation' ensembles 2 faces avec poignées aluminium anodisé et serrure à barillet. Finition lasurée.","u",755]
[]
[null,"Portes-croisées en bois de 56 mm épaisseur"]
[]
["C01PC55","Porte-croisée 1 vantail 80/215 bois exotique 56 mm d'épaisseur, double vitrage 4/12/4 grand jour, fourrures d'isolation' ensembles 2 faces avec poignées aluminium anodisé et serrure à barillet. Finition lasurée.","u",750]
["C01PC60","Porte-croisée 1 vantail 120/215 bois exotique 56 mm d'épaisseur, double vitrage 4/12/4 grand jour, fourrures d'isolation' ensembles 2 faces avec poignées aluminium anodisé et serrure à barillet. Finition lasurée.","u",995]
[]
[null,"PORTES D'ENTREE"]
[]
["C01PE05","Porte d'entrée pleine 215/90 gamme éco en bois exotique, âme isolante 32 mm d'épaisseur, double vitrage 4/8/4, fermeture par crémone serrure 4 points à relevage, poignées aluminium anudisé, fourrure d'isolation. Menuiserie type GIMM \"MOREA\", finition lasurée.","u",1130]
["C01PE10","Porte d'entrée pleine 215/90 gamme confort en bois exotique 1 vantail 46 mm d'épaisseur, âme isolante 32 mm d'épaisseur, double vitrage 4/12/4, fermeture par crémone automatique 4 points, ensemble 2 faces en fer patiné, fourrures d'isolation. Menuiserie type GIMM \"TAVONIA\", finition lasurée.","u",1425]
["C01PE15","Porte d'entrée pleine 215/90 gamme confort en bois exotique 1 vantail 46 mm d'épaisseur, âme isolante 32 mm, fermeture par crémone automatique 4 points, ensemble 2 faces en fer patiné, fourrures d'isolation. Menuiserie type GIMM \"CHAMILLIA\", finition lasurée.","u",1185]
["C01PE20","Porte d'entrée tiercée 215/130 gamme confort bois exotique 46 mm d'épaisseur, 1 vantail ouvrant de 80, double vitrage 4/12/4 antique bullé blanc décor plomb face extérieure, fermeture par crémone automatique 4 points, ensembles 2 faces en fer patiné, fourrures d'isolation. Menuiserie type GIMM \"TAMARA\", finition lasurée.","u",2650]
["C01PE30","Porte d'entrée fermière vitrée 215/90 bois exotique, 1 vantail en 46 mm d'épaisseur, partie supérieure ouvrante et vitrée grand jour, double vitrage RE 44,2/8/4 transparent, fermeture par crémone automatique 4 points, ensemble 2 faces en fer patiné, fourrures d'isolation. Menuiserie type GIMM \"SERINA\", finition lasurée.","u",1225]
["C01PE35","Volet picard agrafable pour porte d'entrée fermière vitrée. Finition lasurée.","u",165]
[]
[null,"PORTES DE GARAGES"]
["C01PG10","Porte de garage 240/200, 2 vantaux sapin blanc du nord 27mm, pentures acier zingué et gonds à sceller, serrure de sécurité en applique.","u",660]
["C01PG20","Porte de garage 240/200, 4 vantaux bois exotique, ouvrants avec bati de 40mm d'épaisseur et panneaux de contreplaqué rainuré, vitrage granité 4mm, serrure encastrée, poignée aluminium anodisé. Pose en feuillure;","u",1040]
["C01PG30","Porte de garage 240/200 coulissante pin landes à vernir, avec hublots, serrure et poignée aluminium anodisé, seuil aluminium. Pose sur rail (déplacement latéral)","u",540]
["C01PG35","Porte de garage 240/200 coulissante pin landes à vernir, sans hublots, serrure et poignée aluminium anodisé, seuil aluminium. Pose sur rail (déplacement latéral).","u",515]
["C01PG40","Porte de garage basculante mécanisme équilibré par balanciers à ressorts, tablier métal laqué gris. Pose en applique;","u",489]
[]
[null,"PORTE DE SERVICE"]
[]
["C01PS10","Porte de service 80/200 en bois exotique pleine ou vitrée, ouvrant 36mm avec bâti 46mm et panneau CP rainuré, seul aluminium, fermeture par crémone serrure 4 points à relevage, poignée aluminium anodisé, fourrures d'isolation. Finition lasurée.","u",625]
["C01PS20","Porte de service 80/215 en bois exotique pleine ou vitrée, ouvrant 36mm avec bâti 46mm et panneau CP rainuré, seul aluminium, fermeture par crémone serrure 4 points à relevage, poignée aluminium anodisé, fourrures d'isolation. Finition lasurée.","u",670]
[]
[null,"SUR MESURES"]
[]
["C01SM10","NOTA: pour les chassis, croisées, portes croisées et porte d'entrée normalisées: HORS MESURES: appliquer une PV sur le prix de fourniture"]
["C01SM12","Cette PV est à appliquer sur le prix de fourniture de la dimension supérieure soit: 20% pour hauteur et/ou largeur se terminant par 0 ou 5 - 25% pour hauteur et/ou largeur de dimensions quelconques"]
[]
[null,"MENUISERIES EXTERIEURES PVC"]
[]
["C02AF01","OBS: les prix de vente des ouvrages sont établis en tenant compte d'une remise de 40% sur des tarifs publics pour la fourniture des menuiseries."]
["C02AF02","OBS: les prix des ouvrages comprennent la pose et la fourniture de menuiseries standard disponibles en blanc ou blanc cassé."]
["C02AF04","OBS: les prix des chassis, fenêtres et portes fenêtres comprennent des fourrures d'isolation pour un doublage isolant de 90mm ou 110mm d'épaisseur."]
["C02AF06","OBS: la performance des menuiseries est : A*3 E*4B V*B2, Le classement ACOTHERM avec double vitrage de 24 mm (4/16argon/4 à isolation thermique renforcée) correspond à AC 1 TH 9"]
["C02AF10","Plus value pour fourrures de doublage de 130 et 150 mm  d'épaisseur pour chassis","u",17]
["C02AF11","Plus value pour fourrures de doublage de 130 et 150 mm  d'épaisseur pour fenêtres","u",27]
["C02AF12","Plus value pour fourrures de doublage de 130 et 150 mm  d'épaisseur pour portes fenêtres","u",36]
["C02AF20","Plus value pour colori ton sable: appliquer le coefficient 1,05 sur les prix du standard blanc"]
["C02AF25","Plus value pour incorporation de grille de ventilation 15 ou 30 m3/h dans ouvrant.","u",12.5]
[]
[null,"CHASSIS FIXES"]
[]
["C02CH10","Chassis 1 vantail 40/75 à la française en PVC blanc, double vitrage 4/16/4 grand jour, poignée laquée, fourrures intégrées pour isolation 110mm.","u",214]
["C02CH15","Chassis 1 vantail 40/95 à la française en PVC blanc, double vitrage 4/16/4 grand jour, poignée laquée, fourrures intégrées pour isolation 110mm.","u",284]
[null,"Chassis oscillo-battants"]
["C02CO15","Chassis 80/95 oscillo-battant PVC blanc, double vitrage 4/16/4 grand jour, poignée laquée, fourrures intégrés pour isolation 110mm","u",356]
["C02CO20","Chassis 100/115 oscillo-battant PVC blanc, double vitrage 4/16/4 grand jour, poignée laquée, fourrures intégrés pour isolation 110mm","u",418]
[]
[null,"CROISEES"]
[]
["C02CR10","Croisée 2 vantaux 100/115 à la française PVC blanc, double vitrag 4/16/4 grand jour, poignée laquée, fourrures intégrées pour isolation 110mm","u",379]
["C02CR30","Croisée 2 vantaux 100/135 à la française PVC blanc, double vitrag 4/16/4 grand jour, poignée laquée, fourrures intégrées pour isolation 110mm","u",415]
["C02CR35","Croisée 2 vantaux 120/135 à la française PVC blanc, double vitrag 4/16/4 grand jour, poignée laquée, fourrures intégrées pour isolation 110mm","u",442]
[]
[null,"PORTES CROISEES"]
[]
["C02PC12","porte croisée 1 vantail 80/215 PVC blanc, double vitrag 4/16/4 grand jour, ensemble 2 faces avec poignée laquée, fourrures intégrées pour isolation 110mm","u",461]
["C02PC18","porte croisée 2 vantaux 120/215 PVC blanc, double vitrag 4/16/4 grand jour, ensemble 2 faces avec poignée laquée, fourrures intégrées pour isolation 110mm","u",610]
[]
[null,"PORTE D'ENTREE"]
[]
["C02PE10","porte d'entrée 90/215, double vitrage 4/16/4, protection par barreaux aluminium, fermeture par serrure 3 points, fourrure d'isolation, soubassement","u",945]
["C02PE30","porte d'entrée 90/225, double vitrage 4/16/4, protection par barreaux aluminium, fermeture par serrure 3 points, fourrure d'isolation, soubassement","u",975]
[]
[null,"PORTES DE GARAGES"]
[]
["C02PG20","Porte de garage 240/200, 4 vantaux PVC blanc, avec hublots vitrage granité 4mm, serrure, poignée poignée PVC seuil aluminium. Pose en feuillure;","u",600]
["C02PG30","Porte de garage 240/200 coulissante PVC blanc, avec hublots vitrage granité, serrure, poignée PVC, seuil aluminium. Pose sur rail (déplacement latéral)","u",505]
["C02PG35","Porte de garage 240/200 coulissante PVC blanc, sans hublots vitrage granité, serrure, poignée PVC, seuil aluminium. Pose sur rail (déplacement latéral)","u",477]
["C02PG40","Porte de garage 240/200basculante mécanisme équilibré par balanciers à ressorts, tablier PVC blanc cassé. Pose en applique (non motorisable)","u",580]
[]
[null,"PORTES DE SERVICE"]
[]
["C02PS10","Porte de service 80/205 PVC blanc cassé, ouvrant lames pleines, seuIl aluminium, fermeture par crémone serrure 3 points, poignée, pose en applique.","u",545]
["C02PS20","Porte de service 80/205 PVC blanc cassé, ouvrant lames pleines avec occulus vitré en 4mm, seuIl aluminium, fermeture par crémone serrure 3 points, poignée, pose en applique.","u","5*90"]
["C02PS30","Porte de service 80/205 PVC blanc cassé, ouvrant lames pleines avec occulus double vitrage 4/10/4, seuIl aluminium, fermeture par crémone serrure 3 points, poignée, pose en applique.","u",610]
[]
[null,"VOLETS BOIS"]
[]
[null,"VOLETS BATTANTS"]
[]
["C05VB04","Plus value pour traitement hydrofuge teinté (prix au vantail)","u",8.1]
["C05VB06","plus value pour lasure 3 couches ton merisier (prix au ventail)","u",40]
["C05VB10","Volet plein sur barres 1 vantail 60/95 frises sapin blanc du nord 27 mm poignée de rappel crochet à crémaillère","u",134]
["C05VB15","Volet plein sur barres 1 vantail 80/95 frises sapin blanc du nord 27 mm poignée de rappel crochet à crémaillère","u",151]
["C05VB20","Volet plein sur barres 1 vantail 80/115 frises sapin blanc du nord 27 mm espagnolette ronde, buttées et arrêts. Pose sur gonds à plaquer droits.","u",157]
["C05VB40","Volet plein sur barres 1 vantail 80/215 frises sapin blanc du nord 27 mm espagnolette ronde, buttées et arrêts. Pose sur gonds à plaquer droits.","u",227]
["C05VB50","Volet plein sur barres 2 vantaux 100/115 frises sapin blanc du nord 27 mm espagnolette ronde, buttées et arrêts. Pose sur gonds à plaquer droits.","u",227]
["C05VB60","Volet plein sur barres 2 vantaux 100/135 frises sapin blanc du nord 27 mm espagnolette ronde, buttées et arrêts. Pose sur gonds à plaquer droits.","u",237]
[null,"Volet plein sur barres 2 vantaux 120/135 frises sapin blanc du nord 27 mm espagnolette ronde, buttées et arrêts. Pose sur gonds à plaquer droits.","u",263]
["C05VB70","Volet plein sur barres 2 vantaux 120/155 frises sapin blanc du nord 27 mm espagnolette ronde, buttées et arrêts. Pose sur gonds à plaquer droits.","u",272]
["C05VB90","Volet plein sur barres 2 vantaux 120/215 frises sapin blanc du nord 27 mm espagnolette ronde, buttées et arrêts. Pose sur gonds à plaquer droits.","u",353]
[]
[null,"VOLETS PERSIENNES"]
[]
["C05VP04","Plus value pour lasure 3 couches ton merisier (prix au vantail)","u",40]
["C05VP06","Plus value pour laque blanche (prix au vantail)","u",61]
["C05VP08","Plus value pour lauqe couleur (prix au vantail)","u",65]
["C05VP60","Volets battants à lames américaines 2 vantaux 100/135 en bois exotique rouge 28 mm, 1 couche traitement hydrofuge, espagnolette ronde, buttées et arrêts.","u",540]
["C05VP70","Volets battants à lames américaines 2 vantaux 120/155 en bois exotique rouge 28 mm, 1 couche traitement hydrofuge, espagnolette ronde, buttées et arrêts.","u",575]
["C05VP90","Volets battants à lames américaines 2 vantaux 120/255 en bois exotique rouge 28 mm, 1 couche traitement hydrofuge, espagnolette ronde, buttées et arrêts.","u",765]
[]
[null,"VOLETS ROULANTS"]
[]
[null,"TABLIER ALUMINIUM"]
[]
["C06TA10","obs : le prix des tabliers aluminium blanc ou sable représente une plus value sur le prix de base des tabliers PVC.","u",66]
[]
[null,"TABLIER PVC"]
[]
["C06TP04","Plus value pour manœuvre par tringle oscillante (au lieu de sangle)","u",46.5]
["C06TP05","Plus value pour commande électrique au lieu de sangle, y compris raccordement électrique et commande individuelle","u",419]
["C06TP06","Plus value pour verrous intérieurs (la paire)","u",7.2]
["C06TP10","Volet roulant 80/95 incorporé sur menuiserie PVC, manœuvre à sangle, tablier à lame PVC, lame finale aluminium, dispositif de verrouillage automatique","u",232]
["C06TP40","Volet roulant 80/215 incorporé sur menuiserie PVC, manœuvre à sangle, tablier à lame PVC, lame finale aluminium, dispositif de verrouillage automatique","u",272]
["C06TP65","Volet roulant 120/135 incorporé sur menuiserie PVC, manœuvre à sangle, tablier à lame PVC, lame finale aluminium, dispositif de verrouillage automatique","u",286]
["C06TP90","Volet roulant 120/215 incorporé sur menuiserie PVC, manœuvre à sangle, tablier à lame PVC, lame finale aluminium, dispositif de verrouillage automatique","u",316]
[]
[null,"PORTES PALIERES D'APPARTEMENT"]
[]
["C07PA10","Porte palière d'appartement 83/204 2 faces acajou, dormant bois exotique, serrure de sureté à cylindre, ensemble 2 faces aluminium anodisé, coupe feu 1/2 heure","u",515]
["C07PA20","Porte palière d'appartement 93/204 2 faces acajou, dormant bois exotique, serrure de sureté à cylindre, ensemble 2 faces aluminium anodisé, coupe feu 1/2 heure","u",515]
[]
[null,"PORTES ISOLANTES"]
[]
["C07PI10","Bloc porte isotherme 73/204 prépeint, huisserie sapin du Nord (ou dormant) avec serrure de sureté 3 points, non compris poignées sur platines ou béquilles.","u",350]
["C07PI20","Bloc porte isotherme 83/204 prépeint, huisserie sapin du Nord (ou dormant) avec serrure de sureté 3 points, non compris poignées sur platines ou béquilles.","u",370]
[]
[null,"PORTES PLANES"]
[]
["C07PP10","Blocs porte plane okoumé 63/204, à recouvrement, huisserie sapin du Nord (ou dormant), bec de cane avec serrure, non compris poignées sur platines ou béquilles","u",145]
["C07PP15","Blocs porte plane okoumé 73/204, à recouvrement, huisserie sapin du Nord (ou dormant), bec de cane avec serrure, non compris poignées sur platines ou béquilles","u",148]
["C07PP20","Blocs porte plane okoumé 83/204, à recouvrement, huisserie sapin du Nord (ou dormant), bec de cane avec serrure, non compris poignées sur platines ou béquilles","u",152]
["C07PP40","Blocs porte plane okoumé 143/204, à recouvrement, huisserie sapin du Nord (ou dormant), bec de cane avec serrure, non compris poignées sur platines ou béquilles","u",228]
["C07PP45","Blocs porte plane okoumé 143/204, à recouvrement, huisserie sapin du Nord (ou dormant), bec de cane avec serrure, avec occulus, non compris poignées sur platines ou béquilles","u",279]
["C07PP50","Blocs porte isoplane 63/204 prépeint, huisserie sapin du Nord (ou dormant), bec de cane avec serrure, non compris poignées sur platines ou béquilles","u",127]
["C07PP55","Blocs porte isoplane 73/204 prépeint, huisserie sapin du Nord (ou dormant), bec de cane avec serrure, non compris poignées sur platines ou béquilles","u",129]
["C07PP60","Blocs porte isoplane 83/204 prépeint, huisserie sapin du Nord (ou dormant), bec de cane avec serrure, non compris poignées sur platines ou béquilles","u",133]
["C07PP75","Blocs porte isoplane 143/204 prépeint, huisserie sapin du Nord (ou dormant), bec de cane avec serrure, non compris poignées sur platines ou béquilles, sans occulus","u",225]
["C07PP80","Blocs porte isoplane 143/204 prépeint, huisserie sapin du Nord (ou dormant), bec de cane avec serrure, non compris poignées sur platines ou béquilles, avec occulus","u",264]
["C07PP90","Ensemble 2 faces comprenant poignées et platines en bois.","u",13.5]
["C07PP92","Ensemble 2 faces comprenant poignées et platines en porcelaine.","u",33]
["C07PP94","Ensemble 2 faces comprenant poignées et platines en fer noir sementé.","u",20.5]
["C07PP96","Ensemble 2 faces comprenant poignées et platines en laiton poli.","u",33.5]
["C07PP98","Jeu de couvre fiche en laiton poli","u",8.4]
[]
[null,"PORTES DE STYLE"]
[]
["C07PS05","Bloc porte de style 63/204 framiné 40 mm ép., panneaux à plate-bandes, huisserie (ou dormant) 68/58, serrure pène dormant 1/2 tour, poignée fer noir.","u",276]
["C07PS10","Bloc porte de style 73/204 framiné 40 mm ép., panneaux à plate-bandes, huisserie (ou dormant) 68/58, serrure pène dormant 1/2 tour, poignée fer noir.","u",282]
["C07PS15","Bloc porte de style 83/204 framiné 40 mm ép., panneaux à plate-bandes, huisserie (ou dormant) 68/58, serrure pène dormant 1/2 tour, poignée fer noir.","u",301]
["C07PS35","Bloc porte de style 63/204 framiné 40 mm ép., panneaux à plate-bandes chapeau de gendarme, huisserie (ou dormant) 68/58, serrure pène dormant 1/2 tour, poignée fer noir.","u",303]
["C07PS40","Bloc porte de style 73/204 framiné 40 mm ép., panneaux à plate-bandes chapeau de gendarme, huisserie (ou dormant) 68/58, serrure pène dormant 1/2 tour, poignée fer noir.","u",307]
["C07PS45","Bloc porte de style 83/204 framiné 40 mm ép., panneaux à plate-bandes chapeau de gendarme, huisserie (ou dormant) 68/58, serrure pène dormant 1/2 tour, poignée fer noir.","u",323]
[]
[null,"PORTES VITREES"]
[]
["C07PV50","Bloc porte de style 123/204 framiné porte vitrée 40 mm ép. Vitrage posé, huisserie (ou dormant) 68/58, serrure pène dormant 1/2 tour, poignée fer noir.","u",540]
[]
[]
["C07PS10","Bloc porte de style 73/204 framiré 40 mm ép. Panneaux à plates-bandes, huisserie (ou dormant) 68/58, serrure pene dormant 1/2 tour, poignée fer noir","u",282]
["C07PS15","Bloc porte de style 83/204 framiré 40 mm ép. Panneaux à plates-bandes, huisserie (ou dormant) 68/58, serrure pene dormant 1/2 tour, poignée fer noir","u",301]
["C07PS35","Bloc porte de style 63/204 framiré 40 mm ép. Panneaux à plates-bandes chapeau de gendarme, huisserie (ou dormant) 68/58, serrure pene dormant 1/2 tour, poignée fer noir","u",303]
["C07PS40","Bloc porte de style 73/204 framiré 40 mm ép. Panneaux à plates-bandes chapeau de gendarme, huisserie (ou dormant) 68/58, serrure pene dormant 1/2 tour, poignée fer noir","u",307]
["C07PS45","Bloc porte de style 83/204 framiré 40 mm ép. Panneaux à plates-bandes chapeau de gendarme, huisserie (ou dormant) 68/58, serrure pene dormant 1/2 tour, poignée fer noir","u",323]
[]
[null,"PORTES VITREES"]
[]
["C07PV50","Bloc porte de style 123/204 framiré 40 mm ép. Vitrage posé, huisserie (ou dormant) 68/58, serrure pene dormant 1/2 tour, poignée fer noir","u",540]
[]
[]
["C07PP50","Bloc porte isoplane  63/204 prépeint, huisserie sapin du nord (ou dormant), bec de cane avec serrure, non compris poignées sur platine ou béquilles.","u"]
["C07PP55","Bloc porte isoplane  73/204 prépeint, huisserie sapin du nord (ou dormant), bec de cane avec serrure, non compris poignées sur platine ou béquilles.","u"]
[]
[null,"VITRAGES"]
[]
[null,"DOUBLE VITRAGE"]
[]
[null,"SIMPLE VITRAGE"]
[]
[null,"FACADES ET PORTES DE PLACARD"]
[]
[null,"BATIS DE LACARDS"]
[]
[null,"PORTES BATTANTES"]
[]
[null,"PORTES COULISSANTES"]
[]
["C09PC10","Façade décorative à 2 vantaux coulissants décor bois (à choisir dans la gamme), profilés d'encadrement en aluminium anodisé, y compris mécanismes de roulement et toutes fixations nécessaires,.Dimensions sur mesure : de 915 mm à 1300 mm de largeur. Hauteur jusqu'à 2600mm","u",383]
["C09PC12","Façade décorative à 2 vantaux coulissants décor bois (à choisir dans la gamme), profilés d'encadrement en aluminium anodisé, y compris mécanismes de roulement et toutes fixations nécessaires,.Dimensions sur mesure : de 1400 mm à 1800 mm de largeur. Hauteur jusqu'à 2600mm","u",456]
["C09PC14","Façade décorative à 2 vantaux coulissants décor bois (à choisir dans la gamme), profilés d'encadrement en aluminium anodisé, y compris mécanismes de roulement et toutes fixations nécessaires,.Dimensions sur mesure : de 1900 mm à 2400 mm de largeur. Hauteur jusqu'à 2600mm","u",520]
["C09PP08","Façade de placard, portes pliantes 242/54 métal uni laqué blanc cassé, 2 vantaux, montage sur rails aluminium, huisserie sapin 68/58 à recouvrement.","u",193]
["C09PP10","Façade de placard, portes pliantes 242/70 métal uni laqué blanc cassé, 2 vantaux, montage sur rails aluminium, huisserie sapin 68/58 à recouvrement.","u",220]
["C09PP11","Façade de placard, portes pliantes 242/107 métal uni laqué blanc cassé, 2 vantaux, montage sur rails aluminium, huisserie sapin 68/58 à recouvrement.","u",300]
["C09PP12","Façade de placard, portes pliantes 242/122 métal uni laqué blanc cassé, 2 vantaux, montage sur rails aluminium, huisserie sapin 68/58 à recouvrement.","u",342]
["C09PP15","Façade de placard, portes pliantes 242/152 métal uni laqué blanc cassé, 2 vantaux, montage sur rails aluminium, huisserie sapin 68/58 à recouvrement.","u",378]
["C09PP20","Façade de placard, portes pliantes 242/183 métal uni laqué blanc cassé, 2 vantaux, montage sur rails aluminium, huisserie sapin 68/58 à recouvrement.","u",405]
["C09PP50","Façade de placard, portes pliantes 227/137 en chêne massif verni à panneaux, 4 vantaux, montage sur rails aluminium, huisserie chêne 68/58 à recouvrement.","u",1190]
["C09PP60","Façade de placard, portes pliantes 227/62 en chêne massif verni à panneaux, 2 vantaux, montage sur rails aluminium, huisserie chêne 68/58 à recouvrement.","u",610]
[]
[null,"AMENAGEMENTS DE PLACARD"]
[]
[null,"HUISSERIES, MOULURES ET PLINTHES"]
[]
[null,"HUISSERIES"]
[]
[null,"MOULURES"]
[]
["C11M10","Chant plat 6/35 pin non abouté pose à coupe d'onglet, cloué.","m",2]
["C11M15","Chant plat 6/35 exotique non abouté pose à coupe d'onglet, cloué.","m",2.7]
["C11M30","1/4 de rond pin non abouté de 15 mm pose à coupe d'onglet, cloué.","m",1.8]
["C11M50","baguette d'angle pin non abouté 24/24m pose à coupe d'onglet, cloué.","m",2.7]
["C11M70","Baguette chambranle exo. Non abouté 10/35 pose à coupe d'onglet, cloué.","m",5]
["C11M75","Baguette chambranle exo. Non abouté 12/48 pose à coupe d'onglet, cloué.","m",5.6]
[]
[null,"PLINTHES"]
[]
["C11P10","Plinthe bord arrondi pin non abouté 11/700 pose à coupe d'onglet collée et cloueé.","m",5.9]
["C11P15","Plinthe bord arrondi pin non abouté 11/100 pose à coupe d'onglet collée et cloueé.","m",7.4]
["C11P50","Plinthe à doucine, pin non abouté 15/130 pose à coupe d'onglet collée et cloueé.","m",11.5]
[]
[null,"FIXATIONS ET SCELLEMENTS DIVERS"]
[]
["C12SC05","Fixation d'éléments de menuiserie par cheville et vis VBA 50 mm, y compris trou dans béton ou maçonnerie","u",1.2]
["C12SC07","Trou chevillé dans béton ou maçonnerie","u",1.2]
["C12SC10","Fixation menuiserie par pattes à visser, vis et chevilles, compris percement dans béton ou maçonnerie","u",2.1]
["C12SC20","Fixation menuiserie par pattes à sceller, scellement au mortier, compris façon de trou dans béton ou maçonnerie","u",5.3]
["C12SC25","Gonds en fer 40*5, D14, lg 150mm,","u",7.6]
["C12SC30","Percement de trou dans maçonnerie creuse et scellement au mortier de ciment de gonds ou pattes à sceller, scellés au mortier de ciment, y compris façon de trou dans béton ou maçonnerie","u",6]
[]
[null,"PARQUETS, PLANCHERS, PAN. PARTICULES"]
[]
["C13PL10","Parquet massif en sapin du nord ép. 21mm cloué sur lambourdes ou solives, lames de 10 cm par 2.00 m lg, finition poncé (non compris lambourdes)","m2",43.5]
[]
[null,"PREPARATION DES SUPPORTS"]
[]
["C13P10","Ragréage de sol béton ou chape au mortier de ciment surfaçé ép. maxi 4 mm","m2",5.6]
["C13P50","Ponçage de parquet à la machine","m2",5.7]
[]
[null,"PARQUETS COLLES"]
[]
["C13PC10","Parquet collé hêtre ou chêne clair verni ép. 12,5 mm en lames de 1,30 m environ, couche d'usure 2 mm, âme panneaux de particules et contre-parement (pose sur sol béton ragréé ou panneau bois)","m2",65.5]
["C13PC11","Plinthe assortie plaquée hêtre ou chêne, section 70/12 collée","m2",8.6999999999999993]
["C13PC20","Parquet collé hêtre ou chêne huilé ép. 14 mm en lames de 1,00 m environ, couche d'usure 3,2 mm, âme panneaux de particules et contre-parement (pose sur sol béton ragréé ou panneau bois)","m2",94.5]
["C13PC21","Plinthe assortie plaquée hêtre ou chêne, section 70/12 collée","m2",9.4]
["C13PC30","Parquet collé chênestandard ép. 8 mm BATON ROMPU assemblé sur papier kraft finition brute, ponçage (pose sur sol béton ragréé ou panneau bois)","m2",46.5]
[]
[null,"PARQUETS FLOTTANTS"]
[]
["C13PF10C","Parquet flottant hêtre ou chêne clair verni ép. 12,5 mm en lames de 1,30 m environ, couche d'usure 2 mm, âme panneaux de particules et contre-parement, posé sur une couche en polyéthylène réticulé de 2 mm ép. (pose sur sol béton ragréé ou panneau bois)","m2",64]
["13PFC","Parquet stratifié flottant décor hêtre, merisier, érable ou chêne ép. 10,5 mm en lames de 1,30 m environ et 0,20 m larg, âme en panneaux de fibres hydrofugés, posé sur une couche en polyéthylène réticulé de 2 mm ép. (pose sur sol béton ragréé ou panneau bois)","m2",41.5]
[]
[null,"PARQUETS SUR LAMBOURDES"]
[]
["C13PL20","Parquet massif en chêne ép. 23 mm cloué sur lambourdes ou solives, lames de 6 cm par lg. Variable, finition poncé."]
[]
[null,"PANNEAUX DE PARTICULES"]
[]
[null,"ESCALIERS PREFA. ET SUR MESURE"]
[]
[null,"ESCALIERS A L'ANGLAISE"]
[]
[null,"ESCALIERS A LA FRANCAISE"]
[]
[null,"ESCALIERS  : GARDE-CORPS"]
[]
[null,"ESCALIERS PREFARIQUES"]
[]
[]
[]
[null,"PLATRERIE ISOLATION"]
[]
[null,"PLAFONDS SUSPENDUS OU FIXES"]
[]
[null,"Plaque de plâtre lisse"]
[]
["D1P10","Plafond en plaques de plâtre 12,5 mm vissées directement en sous-face de solives (non compris le soliveage).","m2",16.09]
["D1P12","Plafond en plaques de plâtre 12,5 mm vissées sur ossature métallique de type fourrures suspendue par de suspentes courtes.","m2",30.86]
["D1P14","Plafond en plaques de plâtre 12,5 mm vissées sur ossature métallique de type fourrures surpendue sous plancher béton type poutrelles hourdies.","m2",39.799999999999997]
[]
[null,"Plaque de plâtre à enduire"]
[]
["D1R10","Plafond plaques de plâtre perforées suspendues sur crochets, et ensuit plâtre lissé.","m2",42.57]
["D1R20","Plafond plaques de plâtre perforées clouées sur structure bois, enduit plâtre lissé (ossature bois non compris).","m2",41.13]
[]
[null,"Elements de terre cuite"]
[]
["D1T03","Plafond en plafonnettes terre cuite ép. 0,035 surpendues sur crochets cloués non compris enduit plâtre lissé.","m2",37.799999999999997]
[]
[]
[null,"CLOISONS DE DOULAGE"]
[]
[null,"Ame alvéolaire recouvert plaques de plâtre"]
[]
["D2A05","Cloisons de doublage à réseau alvéolaire ép. 0,05, parements plaque de plâtre.","m2",26.58]
[]
[null,"Complexes et sandwiches plaques de plâtre + isolant"]
[]
["D2CP06","Complexe isolant, polystyrène expansé sur plaque de plâtre ép. 60+10, collé au mortier adhésif sur mur (dim 120 X 250).","m2",24.98]
["D2CP08","Complexe isolant, polystyrène expansé sur plaque de plâtre ép. 80+10, collé au mortier adhésif sur mur (dim 120 X 250).","m2",27.9]
["D2CP10","Complexe isolant, polystyrène expansé sur plaque de plâtre ép. 100+10, collé au mortier adhésif sur mur (dim 120 X 250).","m2",31.25]
["D2CR04","Complexe isolant laine de roche sur plaque de plâtre ép. 40+10, collé au mortier adhésif sur mur (dim 120 X 250).","m2",29.09]
["D2CR06","Complexe isolant laine de roche sur plaque de plâtre ép. 60+10, collé au mortier adhésif sur mur (dim 120 X 250).","m2",32.68]
["D2CR08","Complexe isolant laine de roche sur plaque de plâtre ép. 80+10, collé au mortier adhésif sur mur (dim 120 X 250).","m2",37.07]
["D2CV04","Complexe isolant laine de verre sur plaque de plâtre ép. 40+10, collé au mortier adhésif sur mur (dim 120 X 250).","m2",24.56]
["D2CV06","Complexe isolant laine de verre sur plaque de plâtre ép. 60+10 collé au mortier adhésif sur mur (dim 120 X 250).","m2",27.85]
["D2CV08","Complexe isolant laine de verre sur plaque de plâtre ép. 80+10, collé au mortier adhésif sur mur (dim 120 X 250).","m2",31.94]
["D2CV99","Complément d'isolation sous doublage posé à la base du complexe isolant (bande laine de verre de 0,02 ép.).","m",2.13]
["D2CX08","Doublage par panneaux sandwiches 10+80+10 composé de 2 plaques de plâtre, âme en polystyrène montés sur semelle et rails en bois.","m2",34.78]
["D2CX10","Doublage par panneaux sandwiches 10+100+10 composé de 2 plaques de plâtre, âme en polystyrène montés sur semelle et rails en bois.","m2",42.89]
[]
[null,"Plaque de plâtre sur ossature métallique"]
[]
["D2O36","Cloison de doublage à ossature métallique, un parement plaque de plâtre ép. 12,5 vissée sur montants de 36 mm, isolation laine minérale non compris.","m2",31.06]
["D2O48","Cloison de doublage à ossature métallique, un parement plaque de plâtre ép. 12,5 vissée sur montants de 48 mm, isolation laine minérale non compris.","m2",32.479999999999997]
["D2O70","Cloison de doublage à ossature métallique, un parement plaque de plâtre ép. 12,5 vissée sur montants de 70 mm, isolation laine minérale non compris.","m2",33.44]
[]
[null,"Carreaux de plâtre"]
[]
["D2P04","Cloison de doublage en carreaux de plâtre de 0,04 ép. (3/m2) montés au mortier colle.","m2",27.72]
["D2P05","Cloison de doublage en carreaux de plâtre de 0,05 ép. (3/m2) montés au mortier colle.","m2",28.46]
[]
[null,"Biques de terre cuite"]
[]
["D2T04","Cloison de doublage en brique creuses de 0,04 ép. Hourdés au plâtre, enduit non compris.","m2",26.53]
["D2T05","Cloison de doublage en brique creuses de 0,05 ép. Hourdés au plâtre, enduit non compris.","m2",30.62]
[]
[null,"Carreaux de céramique"]
[]
["D2X04","Cloison de doublage en carreaux de céramique 0,04 ép. (3/m2) montés au mortier colle ; enduit de ratissage une face.","m2",35.130000000000003]
["D2X05","Cloison de doublage en carreaux de céramique 0,05 ép. (3/m2) montés au mortier colle ; enduit de ratissage une face.","m2",35.64]
[]
[]
[null,"CLOISONS DE DISTRIBUTION"]
[]
[null,"Ame alvéolaire recouvert de plaques de plâtre"]
[]
["D3A05","Cloisons de distribution à réseau alvéolaire ép. 0,05, parement plaque de plâtre.","m2",26.84]
["D3A06","Cloisons de distribution à réseau alvéolaire ép. 0,06, parement plaque de plâtre.","m2",31.08]
["D3A50","Plus value pour cloison hydrofuge, ycompris traitement des pieds.","m2",7.72]
["D3A60","Bande armée pour renfort d'angle saillant sur ouvrages en plaque de plâtre.","m",3.78]
["D3A70","Tasseau de guidage vissés sur les huisseries de portes de distribution.","u",11.15]
[]
[null,"Plaque de platre sur ossature métallique"]
[]
["D3O07","Cloison de distribution à ossature métallique 72/48 à parement plaque de plâtre ép. 12,5 mm rails et montants de 48 mm, montants simples entraxe 0,60 m, non compris isolant laine minérale 45 mm.","m2",34.99]
["D3O08","Cloison de distribution à ossature métallique 72/36 à parement plaque de plâtre ép. 18 mm rails et montants de 36 mm, montants simples entraxe 0,60 m, non compris isolant laine minérale 30 mm.","m2",45.51]
["D3O12","cloison séparative d'appartements épaisseur totale 120 mm, 4 plaques de plâtre 12,5 mm vissées sur double ossature métallique de 48 mm, montants doubles entraxe 0,60 m, non compris isolant laine minérale 1 fois 55 mm.","m2",66.77]
["D3O14","cloison séparative d'appartements épaisseur totale 140 mm, 4 plaques de plâtre 12,5 mm vissées sur double ossature métallique de 70 mm, montants doubles entraxe 0,60 m, non compris isolant laine minérale 1 fois 80 mm.","m2",61.1]
["D3O18","cloison séparative d'appartements épaisseur totale 180 mm, 5 plaques de plâtre 12,5 mm vissées sur double ossature métallique de 48 mm, montants simples entraxe 0,60 m, non compris isolant laine minérale 2 fois 55 mm.","m2",95.5]
["D3O57","Plus value pour cloison hydrofugée, y compris traitement des pieds (1 faces).","m2",6.99]
[]
[null,"CARREAUX DE PLATRE"]
[]
["D3P04","Cloison de distribution en carreaux de plâtre de 0,04 ép. (3/m2) montés au mortier colle.","m2",29.2]
["D3P05","Cloison de distribution en carreaux de plâtre de 0,05 ép. (3/m2) montés au mortier colle.","m2",29.96]
["D3P06","Cloison de distribution en carreaux de plâtre de 0,06 ép. (3/m2) montés au mortier colle.","m2",33.049999999999997]
["D3P07","Cloison de distribution en carreaux de plâtre de 0,07 ép. (3/m2) montés au mortier colle.","m2",35.28]
["D3P10","Cloison de distribution en carreaux de plâtre de 0,10 ép. (4/m2) montés au mortier colle.","m2",47.88]
["D3P17","Cloison de distribution en carreaux de platre alvéolés de 0,07 ép. (4/m2) montés au mortier colle.","m2",32.97]
["D3P27","Cloison de distribution en carreaux de platre T.H.D. de 0,07 ép. (4/m2) montés au mortier colle.","m2",42.8]
["D3P54","Semelle résiliente type phaltex posée à la base des cloisons ép. 0,04.","m",2.57]
["D3P55","Semelle résiliente type phaltex posée à la base des cloisons ép. 0,05.","m",2.85]
["D3P57","Semelle résiliente type phaltex posée à la base des cloisons ép. 0,07.","m",3.21]
["D3P70","Blocage en tête de cloison par cordon résilient réalisé par une injection de mousse de polyuréthane.","m",3.65]
[]
[null,"BRIQUES DE TERRE CUITE"]
[]
["D3T04","Cloison de distribution en briques creuses de 0,04 ép. Hourdées au plâtre, enduit non compris.","m2",28.08]
["D3T05","Cloison de distribution en briques creuses de 0,05 ép. Hourdées au plâtre, enduit non compris.","m2",29.07]
["D3T08","Cloison de distribution en briques creuses de 0,08 ép. Hourdées au plâtre, enduit non compris.","m2",35.94]
["D3T10","Cloison de distribution en briques creuses de 0,10 ép. Hourdées au plâtre, enduit non compris.","m2",41.57]
[]
[null,"CARREAUX DE CERAMIQUE"]
[]
["D3X04","Cloison de distribution en carreaux de céramique  de 0,04 ép. (3/m2) montés au mortier colle; enduit de ratissage deux faces.","m2",40.32]
["D3X05","Cloison de distribution en carreaux de céramique  de 0,05 ép. (3/m2) montés au mortier colle; enduit de ratissage deux faces.","m2",40.840000000000003]
["D3X06","Cloison de distribution en carreaux de céramique  de 0,06 ép. (3/m2) montés au mortier colle; enduit de ratissage deux faces.","m2",43.75]
["D3X07","Cloison de distribution en carreaux de céramique  de 0,07 ép. (3/m2) montés au mortier colle; enduit de ratissage deux faces.","m2",44.52]
["D3X10","Cloison de distribution en carreaux de céramique  de 0,10 ép. (3/m2) montés au mortier colle; enduit de ratissage deux faces.","m2",57.51]
[null," "]
[null,"DIVERS"]
[]
["D3Z10","Fourniture et pose de profil plastique en U sous cloison de 0,05 ép","m ",3.93]
["D3Z10","fourniture et pose d'un film polyane en pieds de cloison contre les remontées d'humidité.","m",1.76]
["D3Z20","fourniture et pose d'arêtes d'angle plastique scellées au plâtre.","m",3.73]
["D3Z25","Bande armée pour renfort d'angle  saillant sur ouvrages en plaque de plâtre."]
["D3Z30","Pose et scellement de manchon pour grilles VMC.","u",7.8]
["D3Z35","Pose et scellement de grilles de ventilation.","u",7.8]
["D3Z40","Pose et scellement de trappe de visite (fourniture comptée à part suivant modèle).","u",15.8]
[]
[null,"ISOLATION PLAFOND"]
[]
["D4BV08","isolation horizontale par feutre souple de laine de verre 80mm revêtu déroulé sur solives ou fermettes (rouleaux 1,20 x 9,00).","m2",8.7799999999999994]
["D4BV10","isolation horizontale par feutre souple de laine de verre 100mm revêtu déroulé sur solives ou fermettes (rouleaux 1,20 x 7,00).","m2",9.6300000000000008]
["D4BV12","isolation horizontale par feutre souple de laine de verre 120mm revêtu déroulé sur solives ou fermettes (rouleaux 1,20 x 6,00).","m2",13.58]
["D4BV16","isolation horizontale par feutre souple de laine de verre 160mm revêtu déroulé sur solives ou fermettes (rouleaux 1,20 x 4,50).","m2",15.28]
["D4BV20","isolation horizontale par feutre souple de laine de verre 200mm revêtu, découpé et déroulé entre solives (rouleaux 1,20 x 5,50).","m2",18.54]
["D4BV24","isolation horizontale par feutre souple de laine de verre 240mm revêtu, découpé et déroulé entre solives (rouleaux 1,20 x 5,50).","m2",21.79]
["D4BV25","isolation horizontale par feutre souple de laine de verre 200mm revêtu déroulé sur solives ou fermettes (rouleaux 1,20 x 4,50)."]
["D4BV50","isolation sous toiture par feutre souple de laine de verre 100mm déroulé entre pannes, sur ossature bois ou métal. (rouleaux 1,20 x 7,00)","m2",11.18]
["D4BV56","isolation sous toiture par feutre souple de laine de verre 160mm déroulé entre pannes, sur ossature bois ou métal. (rouleaux 1,20 x 4,50)","m2",16.829999999999998]
["D4BV60","isolation sous toiture par feutre souple de laine de verre 200mm déroulé entre pannes, sur ossature bois ou métal. (rouleaux 1,20 x 5,50)","m2",21.64]
["D4BV99","Rouleau adhésif orange pour continuité pare vapeur (150m)","u",31.05]
[]
[null,"ISOLATION CLOISON DOUBLAGE"]
[]
["D4PC06","Isolation verticale par panneaux de polystyrène expansé 60 mm collés (PSE à feuillure 1,20 x 2,50), pose derrière cloison de doublage","m2",10.29]
["D4PC08","Isolation verticale par panneaux de polystyrène expansé 80 mm collés (PSE à feuillure 1,20 x 2,50), pose derrière cloison de doublage","m2",11.99]
["D4PC10","Isolation verticale par panneaux de polystyrène expansé 100 mm collés (PSE à feuillure 1,20 x 2,50), pose derrière cloison de doublage","m2",13.69]
["D4CR06","Isolation verticale par panneaux de laine de roche 60 mm semi-rigide collés (panneaux 1,35 x 0,60), pose derrière cloison de doublage","m2",9.18]
["D4CR07","Isolation verticale par panneaux de laine de roche 75 mm semi-rigide collés (panneaux 1,35 x 0,60), pose derrière cloison de doublage","m2",10.45]
["D4CR10","Isolation verticale par panneaux de laine de roche 100 mm semi-rigide collés (panneaux 1,35 x 0,60), pose derrière cloison de doublage","m2",11.87]
["D4CV04","Isolation verticale par panneaux de laine de verre 45 mm rigide collés (panneaux 1,35 x 0,60), pose derrière cloison de doublage","m2",8.4600000000000009]
["D4CV05","Isolation verticale par panneaux semi-rigide à dérouler de laine de verre 45 mm collés (panneaux 13,50 x 1,20), pose derrière cloison de doublage","m2",8.0299999999999994]
["D4CV08","Isolation verticale par panneaux de laine de verre 85 mm rigide collés (panneaux 1,35 x 0,60), pose derrière cloison de doublage","m2",10.45]
["D4CV09","Isolation verticale par panneaux semi-rigide à dérouler de laine de verre 85 mm collés (panneaux 5,40 x 1,20), pose derrière cloison de doublage","m2",10.17]
["D4CV10","Isolation verticale par panneaux de laine de verre 100 mm rigide collés (panneaux 1,35 x 0,60), pose derrière cloison de doublage","m2",11.16]
["D4CV11","Isolation verticale par panneaux semi-rigide à dérouler de laine de verre 100 mm collés (panneaux 5,40 x 1,20), pose derrière cloison de doublage","m2",10.87]
["D4CV12","Isolation verticale par panneaux de laine de verre 120 mm rigide collés (panneaux 1,35 x 0,60), pose derrière cloison de doublage","m2",12.15]
["D4CX04","Isolation verticale par panneaux rigides de polystyrène extrudé 40 mm collés (dimensions 0,60 x 2,50), pose derrière cloisons de doublage","m2",17.09]
["D4CX06","Isolation verticale par panneaux rigides de polystyrène extrudé 60 mm collés (dimensions 0,60 x 2,50), pose derrière cloisons de doublage","m2",23.04]
["D4CX08","Isolation verticale par panneaux rigides de polystyrène extrudé 80 mm collés (dimensions 0,60 x 2,50), pose derrière cloisons de doublage","m2",29]
["D4CZ99","Rouleau adhésif orange pour continuité pare vapeur (150m).","u",31.05]
[]
[]
[null,"ISOLATION CLOISON DISTRIBUTION"]
[]
["D4DR03","Laine de roche ép 30 mm incorporée dans cloison à ossature métallique (panneaux semi rigide 1,35 x 0,60)","m2",6.93]
["D4DR04","Laine de roche ép 45 mm incorporée dans cloison à ossature métallique (panneaux semi rigide 1,35 x 0,60)","m2",7.36]
["D4DR05","Laine de roche ép 55 mm incorporée dans cloison à ossature métallique (panneaux semi rigide 1,35 x 0,60)","m2",7.78]
["D4DR07","Laine de roche ép 70 mm incorporée dans cloison à ossature métallique (panneaux semi rigide 1,35 x 0,60)","m2",8.6300000000000008]
["D4DV03","Laine de verre ép 30 mm incorporée dans cloison à ossature métallique (panneaux semi rigide 1,35 x 0,60)","m2",6.64]
["D4DV04","Laine de verre ép 45 mm incorporée dans cloison à ossature métallique (panneaux semi rigide 1,35 x 0,60)","m2",6.93]
["D4DV05","Laine de verre ép 50 mm incorporée dans cloison à ossature métallique (panneaux semi rigide 1,35 x 0,60)","m2",7.49]
["D4DV07","Laine de verre ép 70 mm incorporée dans cloison à ossature métallique (panneaux semi rigide 1,35 x 0,60)","m2",8.2100000000000009]
[]
[null,"ENDUITS PLATRE"]
[]
[null,"ENDUIT PLAFOND"]
[]
["D5B10","Enduit plâtre fin tiré à la règle et lissé, éxécuté sur paroi dressée en plafond","m2",18.02]
["D5B15","Enduit plâtre fin tiré à la règle et lissé, éxécuté sur paroi dressée en plafond, sur largeur > 0,35 m","m2",26.46]
["D5B20","Enduit plâtre fin tiré à la règle et lissé, éxécuté sur paroi non dressée en plafond nécessitant un dégrossi.","m2",21.8]
["D5B25","Enduit plâtre fin tiré à la règle et lissé, éxécuté sur paroi non dressée en plafond nécessitant un dégrossi sur largeur > 0,35 m","m2",30.24]
["D5B70","Enduit plâtre et sable tiré à la règle, taloché et gratté, éxécuté sur support dressée en plafond","m2",22.83]
["D5B75","Enduit plâtre et sable tiré à la règle, taloché et gratté, éxécuté sur support dressée sur largeur > 0,35 m en plafond","m2",32.82]
["D5B77","Enduit plâtre et sable , taloché et gratté, éxécuté sur tout support sur largeur > 0,35 m en plafond","m2",36.25]
["D5B80","Corniche en plâtre préfabriquée du commerce, grand rayon de 110 mm collée au mortier adhésif","m",10.07]
["D5B85","Corniche en plâtre préfabriquée du commerce, grand rayon de 75 mm collée au mortier adhésif","m",9.0500000000000007]
["D5B90","Corniche en plâtre traditionnel de 0,30 mm dév maximum","m",56.7]
["D5B92","plus value pour façon d'angle saillant pour corniche","u",9.32]
["D5B94","plus value pour façon d'angle rentrant pour corniche","u",15.53]
[]
[null,"ENDUIT CLOISON DISTRIBUTION / DOUBLAGE"]
[]
["D5C10","Enduit plâtre fin tiré à la règle et lissé, executé sur paroi dressée.","m2",16.27]
["D5C15","Enduit plâtre fin tiré à la règle et lissé, executé sur paroi dressée de largeur de > 0,35 m","m2",25.58]
["D5C20","Enduit plâtre fin tiré à la règle et lissé, executé sur paroi non dressée nécessitant un dégrossi, de largeur de > 0,35 m","m2",30.71]
["D5C25","Enduit plâtre fin tiré à la règle et lissé, executé sur paroi courbe non dressée nécessitant un dégrossi.","m2",33.82]
["D5C50","Enduit plâtre fin tiré à la règle et lissé, executé sur paroi courbe dressée.","m2",24.71]
["D5C55","Enduit plâtre fin tiré à la règle et lissé, executé sur paroi non dressée nécessitant un dégrossi.","m2",20.72]
["D5C70","Enduit plâtre fin tiré à la règle taloché et gratté, executé sur support dressée.","m2",20.43]
["D5C75","Enduit plâtre fin tiré à la règle taloché et gratté, executé sur support dressée de largeur de > 0,35 m.","m2",29.74]
[]
[]
[null,"ISOLATION PAR PANNEAUX FIBRAGGLOS"]
[]
["D6L25","Doublage de mur par panneaux collés FIBRALITH ép 25 mm (px de 2,00x0,60)","m2",24.25]
["D6L35","Doublage de mur par panneaux collés FIBRALITH ép 35 mm (px de 2,00x0,60)","m2",26.78]
["D6L50","Doublage de mur par panneaux collés FIBRALITH ép 50 mm (px de 2,00x0,60)","m2",32.049999999999997]
["D6S35","Doublage de mur par panneaux collés FIBRASTYRENE A ép 35 mm (px de 2,00x0,60)","m2",29.01]
["D6S50","Doublage de mur par panneaux collés FIBRASTYRENE A ép 50 mm (px de 2,00x0,60)","m2",32.79]
[]
[]
[null,"PEINTURES ET TAPISSERIES"]
[]
[null,"PREPARATION DE SUBJECTILES NEUFS"]
[]
[null,"BROSSAGE DE SURFACES PLANES"]
[]
["E10SN11","Brossage à la brosse à épousseter sur tous supports.","m2",0.57999999999999996]
["E10SN12","Brossage à la brosse à chiendent sur supports béton ou enduits à base de liants hydroliques.","m2",2.2999999999999998]
["E10SN13","Brossage à la brosse métallique sur support métalliques.","m2",3.9]
["E10SN14","Majoration pour brossage de surfaces moulurées : 30%.","m2"]
[]
[null,"EGRENAGE"]
[]
["E10SN21","Egrenage d'enduit plâtre.","m2",0.92]
["E10SN22","Egrenage d'enduit à base de liants hydroliques.","m2",1.61]
[]
[null,"ENDUIT"]
[]
["E10SN32","Révision joints plaques de plâtre.","m2",1.72]
["E10SN33","Révision de rebouchage, compris ponçage éventuel, sur support enduit plâtre. (murs ou plafonds).","m2",1.2]
["E10SN34","Enduit de ratissage à l'eau pour travaux intérieurs. (états de finition A ou B).","m2",2.85]
["E10SN35","Enduit de ratissage mixte sur supports bois ou plâtre, en travaux intérieurs (état de finition A ou B).","m2",2.75]
["E10SN36","Rebouchage à l'enduit garnissant pour tous travaux intérieurs.","m2",1.76]
["E10SN37","Rebouchage à l'enduit gras pour tous travaux intérieurs, extérieurs sur supports bois et plâtre.","m2",1.89]
["E10SN38","Enduit gras non repassé sur tous supports intérieurs.","m2",5]
["E10SN40","Enduit gras repassé sur tous supports intérieurs.","m2",8.6]
["E10SN42","Enduit garnissant, pélliculaire sur béton.","m2",9.5]
["E10SN44","Majoration pour exécution d'enduits sur surfaces moulurées : 75%.","m2"]
[]
[null,"REBOUCHAGE"]
[]
["E10SN52","Rebouchage à l'enduit à l'eau garnissant.","m2",3.5]
["E10SN54","Rebouchage à l'enduit à base d'huile siccative (localement sur bois).","m2",1.71]
["E10SN55","Rebouchage à l'enduit à base de résine glycéro (localement sur bois).","m2",1.92]
["E10SN56","Rebouchage à l'enduit gras (révision).","m2",2.75]
[]
[null,"PONCAGE"]
[]
["E10SN62","Ponçage au papier de verre sur murs ou plafonds.","m2",1.28]
["E10SN64","Ponçage au papier de verre sur bois massif ou dérivés.","m2",2.1]
[]
[null,"PREPARATIONS DE SUBJECTILES ANCIENS"]
[]
[null,"BROSSAGE DE SURFACES PLANES"]
[]
["E20SN12","Epoussetage (sur subjectiles anciens).","m2",0.69]
["E20SN14","Brossage à la brosse à chiendent (sur subjectiles anciens).","m2",0.75]
["E20SN16","Brossage à la brosse métallique (sur subjectiles anciens).","m2",4.5999999999999996]
[]
[null,"ENDUIT"]
[]
["E20SA22","Enduit de ratissage à l'eau, compris ponçage (sur subjectiles anciens).","m2",11]
["E20SA24","Enduit à l'eau repassé, compris ponçage (sur subjectiles anciens).","m2",2.15]
["E20SA26","Enduit gras non repassé (sur subjectiles anciens).","m2",6.5]
["E20SA28","Enduit gras repassé (sur subjectiles anciens).","m2",18]
["E20SA30","Majorations pour exécution d'enduit sur surfaces moulurées : 75%.","m2"]
[]
[null,"REBOUCHAGE"]
[]
["E20SA42","Rebouchage à l'enduit à l'eau (sur subjectiles anciens peu dégradés) Ponçage et époussetage compris.","m2",6]
["E20SA44","Rebouchage à l'enduit à l'eau (sur subjectiles anciens fortement dégradés) Ponçage et époussetage compris.","m2",12]
["E20SA46","Rebouchage à l'enduit gras (révision sur supports anciens peu dégradés), Ponçage et époussetage compris.","m2",6.3]
[]
[null,"PONCAGE"]
[]
["E20SA52","Ponçage au panier de verre sur mur (sur subjectiles anciens).","m2",2.0499999999999998]
["E20SA54","Ponçage au panier de verre sur bois (sur subjectiles anciens).","m2",3.1]
["E20SA56","Ponçage à l'eau à l'abrasif sur murs (sur subjectiles anciens).","m2",8]
["E20SA58","Ponçage soigné à l'eau et à l'abrasif sur bois (sur subjectiles anciens).","m2",12]
["E20SA60","Ponçage soigné à la machine sur bois (sur subjectiles anciens).","m2",13]
["E20SA62","Majoration pour exécution de ponçage sur surfaces moulurées : 50%.","m2"]
[]
[null,"PREPARATIONS SPECIALES"]
[]
["E20SA84","Grattage de rouille, martelage.","m2",15]
["E20SA86","Décapage de peinture avec décapant et lessivage.","m2",14.5]
["E20SA88","Brûlage de peinture et lessivage.","m2",18.5]
["E20SA90","Dégraissage à l'essence.","m2",6.1]
["E20SA92","Lavage à l'eau de détrempe.","m2",5.7]
["E20SA94","Lessivage sur fond à conserver.","m2",4.75]
["E20SA96","Lessivage pour fond à repeindre.","m2",3.15]
["E20SA98","Majorations pour surfaces moulurées : 50%.","m2"]
[]
[null,"APPLICATION DES PEINTURES"]
[]
[null,"PEINTURE aNTIROUILLE (à la brosse)"]
[]
["E30AP12","Peinture primaire anti corrosive sur métaux ferreux.","m2",9.1]
["E30AP14","Peinture primaire d'accrochage sur métaux non férreux.","m2",9.4]
["E30AP16","Peinture laque brillante anti-rouille.","m2",9]
[]
[null,"PEINTURE IMPRESSION"]
[]
["E30AP22","Impression durcissante et pénétrante exécutée au rouleau sur supprt murs ou plafonds.","m2",2.5499999999999998]
["E30AP23","Impression isolante, durcissante et pénétrante éxécutée au rouleau sur supports murs ou plafonds.","m2",2.65]
["E30AP24","Impression neutralisante, durcissante et pénétrante éxécutée au rouleau sur supports murs ou plafonds.","m2",2.65]
["E30AP25","Impression neutralisante éxécutée au rouleau sur supports alcalins murs ou plafonds (béton).","m2",2.5499999999999998]
["E30AP26","Impression pénétrante sur bois massifs appliquée à la brosse en travaux intérieurs.","m2",6.7]
["E30AP27","Impression pénétrante et hydrofuge sur bois massifs appliquée à la brosse en travaux extérieurs.","m2",6.7]
["E30AP28","Impression microporeuse sur bois massifs appliquée à la brosse en travaux extérieurs.","m2",7.3]
[]
[null,"PEINTURE FINITION"]
[]
[null,"Sur subjectifs intérieurs en plâtre plaques de plâtre bois."]
["E30AP32","Peinture acrylique pochée, blanche pour couche intermédiaire ou de finition aspect mat ou satin mat, application au rouleau.","m2",4.1500000000000004]
["E30AP33","Peinture acrylique pochée, blanche pour couche intermédiaire ou de finition aspect satiné, application au rouleau.","m2",4.4000000000000004]
["E30AP34","Peinture acrylique pochée, blanche pour couche intermédiaire ou de finition aspect satiné brillant ou brillant, application au rouleau.","m2",4.5]
["E30AP35","plus value pour peinture acrylique de teintes pastel ou vives.","m2",0.36]
["E30AP36","Peinture glycéro pochée blanche ou pastel pour couche intermédiaire ou de finition aspect mat ou satin mat, application au rouleau.","m2",4.0999999999999996]
["E30AP37","Peinture glycéro pochée blanche ou pastel pour couche intermédiaire ou de finition aspect satiné, application au rouleau.","m2",4.2]
["E30AP38","Peinture glycéro pochée blanche ou pastel pour couche intermédiaire ou de finition aspect satiné brillant ou brillant, application au rouleau.","m2",4.5]
["E30AP40","Peinture laque tendue blanche ou pastel pour couche intermédiaire ou de finition aspect satiné, application au rouleau laqueur.","m2",5.2]
["E30AP41","Peinture laque tendue blanche ou pastel pour couche intermédiaire ou de finition aspect satiné brillant ou brillant, application au rouleau laqueur.","m2",5.4]
["E30AP42","plus value pour peinture laque de teintes vive.","m2",0.73]
[]
[null,"Sur subjectiles intérieurs bois"]
["E30AP52","Peinture glycéro satiné mat sur boiseries, application à la brosse.","m2",6.8]
["E30AP53","Peinture glycéro satiné sur boiseries, application à la brosse.","m2",7]
["E30AP54","Peinture glycéro brillante sur boiseries, application à la brosse.","m2",8.1]
["E30AP56","Peinture acrylique satiné mat sur boiseries, application à la brose.","m2",6.5]
["E30AP57","Peinture acrylique satiné sur boiseries, application à la brose.","m2",6.7]
["E30AP58","Peinture acrylique brillante sur boiseries, application à la brose.","m2",6.8]
[]
[null,"TOILE DE VERRE"]
[]
["E30AP61","Peinture acrylique blanche ou pastel sur toile de verre collée, tramée chevrons, compris l'application au rouleau de 2 couches aspect mat.","m2",17.5]
["E30AP62","Peinture acrylique blanche ou pastel sur toile de verre collée, tramée chevrons, compris l'application au rouleau de 2 couches aspect satiné.","m2",18]
["E30AP64","Peinture glycéro blanche ou pastel sur toile de verre collée, tramée chevrons, compris l'application au rouleau de 2 couches aspect mat.","m2",17.5]
["E30AP65","Peinture glycéro blanche ou pastel sur toile de verre collée, tramée chevrons, compris l'application au rouleau de 2 couches aspect satiné.","m2",17.5]
["E30AP66","Majoration de 15% pour application de peinture sur toile de verre en flafond.","m2",3.45]
[]
[null,"PEINTURES SPECIALES"]
[]
["E30AP74","Peinture badigeon à l'eau, blanche, appliquée au rouleau en 2 couches sur support enduit ou non, sans préparation particulière.","m2",5.2]
["E30AP76","Peinture goutelettes, à projeter.","m2",8.5]
["E30AP78","Peinture anti-cryptogamique appliquée au rouleau.","m2",5.5]
["E30AP80","peinture de sol appliquée au rouleau (1 composant).","m2",7.2]
["E30AP82","Peinture paillettes sur fond imprimé y compris vernis anti-graffiti.","m2",13.5]
[]
[null,"VERNIS ET LASURES"]
[]
["E30VE10","Impression vernis ordinaire sur boiseries, appliquée à la brosse.","m2",6]
["E30VE15","vernis supérieur finition mate, satinée ou brillante, sur boiseries pour couche intermédiaire ou de finition, application à la brosse.","m2",7.4]
["E30VE25","Lasure imprégnation ou impression incolore ou teintée, appliquée à la brosse sur boiseries.","m2",6.3]
["E30VE30","Lasure pour travaux intérieurs incolore pour couche intermédiaire ou de finition, appliquée à la brosse sur boiseries.","m2",7]
["E30VE31","Lasure teintée pour travaux intérieurs, pour couche intermédiaire ou de finition, appliaquée à la brosse sur boiseries.","m2",7.1]
["E30VE32","Lasure opacifiante pour travaux intérieurs, couche intermédiaire ou de finition, appliquée à la brosse sur boiseries.","m2",7.2]
["E30VE40","Lasure incolore pour travaux extérieurs, couche intermédiaire ou de finitio, appliquée à la brosse sur boiseries.","m2",7.2]
["E30VE41","Lasure teintée pour travaux extérieurs, pour couche intermédiaire ou de finition, appliaquée à la brosse sur boiseries.","m2",7.2]
["E30VE42","Lasure opacifiante pour travaux extérieurs, couche intermédiaire ou de finition, appliquée à la brosse sur boiseries.","m2",7.4]
[]
[null,"TAPISSERIES"]
[]
[null,"TRAVAUX PREPARATOIRES"]
[]
["E40PP11","Décollage de papier ordinaire \"facile\".","m2",3.6]
["E40PP12","Décollage de papier \"difficile\".","m2",8]
["E40PP13","Décollage de papier en plafond \"difficile\".","m2",10]
["E40PP18","Préencollage de murs pour pose de papier peint.","m2",1.77]
["E40PP20","Préencollage de murs pour pose de revêtements muraux.","m2",2.65]
[]
[null,"PAPIERS PEINTS FINIS OU A PEINDRE"]
[]
["E40PP26","Pose de papier peint sans raccord sur murs dans pièce non complexe.","m2",6]
["E40PP27","Pose de papier peint sans raccord sur murs dans pièce complexe.","m2",9.4]
["E40PP28","Pose de papier peint avec raccord sur murs dans pièce non complexe.","m2",7.1]
["E40PP29","Pose de papier peint avec raccord sur murs dans pièce complexe.","m2",10.5]
[]
[null,"PAPIERS VYNILIQUES,VYNILS, SPECIAUX"]
[]
["E40PP31","pose de papier vinil ou papoer spécial, avec ou sans raccord, sur murs dans pièce non complexe.","m2",9.8000000000000007]
["E40PP32","pose de papier vinil ou papoer spécial, avec ou sans raccord, sur murs dans pièce complexe.","m2",13]
[]
[null,"MAJORATION DE POSE SUR TOUS PAPIERS"]
[]
["E40PP75","Majoration pour collage en plafond, cage d'escalier et parties inclinée.","m2",3.45]
[]
[null,"REVETEMENTS TEXTILES"]
[]
[null,"TEXTILES CONTRECOLLES SUR PAPIER"]
[]
["E50RT10","Pose de revêtement textile collé uni ou décoré, à joints vif, sur murs dans pièce non complexe.","m2",8.4]
["E50RT11","Pose de revêtement textile collé uni ou décoré, à joints vif, sur murs dans pièce complexe.","m2",12]
["E50RT15","Pose de revêtement textile délicat, papier japonais (support papier fin) sur murs dans pièce non complexe.","m2",13]
["E50RT16","Pose de revêtement textile délicat, papier japonais (support papier fin) sur murs dans pièce complexe.","m2",16.5]
["E50RT18","Majoration pour flafond, cage d'escalier, parties inclinées et pièces complexes.","m2",3.45]
[]
[null,"TISSUS COLLES"]
[]
["E50RT41","Pose tissus tendus-collés sur supports vertical de 2,50 à 2,80 m de hauteur. (fourniture du tissus non comprise).","m2",8.4]
[]
[null,"REVETEMENTS P.V.C."]
[]
["E60RP10","pose de revêtement mural plastique sur murs dans pièce non complexe.","m2",12]
["E60RP11","pose de revêtement mural plastique sur murs dans pièce complexe.","m2",15]
[]
[null,"PEINTURE DE FACADES "]
[]
[null,"TRAVAUX PREPARATOIRES"]
[]
["E70TR10","Lavage simple à la machine basse pression.","m2",2.25]
["E70TR12","Lavage à fond à la machine haute pression.","m2",4.2]
["E70TR14","Décapage complet de façage avec décapant.","m2",12.5]
["E70TR18","Lavage à l'eau chaude à la machine haute pression.","m2",11]
["E70TR20","Traitement anticryptogamique au pulvérisateur.","m2",1.07]
["E70TR22","Fixateur régulateur de fond sur béton ou enduit à base de liant hydraulique.","m2",6]
["E70TR23","Traitement de fissures au mastic souple.","m2",7.5]
["E70TR24","rebouchage fissures ou parties abimées, épauffrures.","m2",8.8000000000000007]
[]
[null,"REVETEMENTS PLASTIQUES EPAIS (RPE)"]
[]
["E70TR30","Peinture impression régulatrice de fond et opacifiante.","m2",4.4000000000000004]
["E70TR32","Revêtement plastique épais ribbé fin, appliqué à la taloche (à raison de 2,5 kg/m2).","m2",16.5]
[]
[null,"PEINTURES DIVERSES DE FACADES"]
[]
["E70TR55","Peinture pliolite ou acrylique sur enduit normal.","m2",5.8]
[]
[null,"ECHAFAUDAGE NETTOYAGE PROTECTION"]
[]
["E80EN15","Echafaudage roulant Ht. 8,00 m, montage, démontage, amortissement.","u",180]
["E80EN20","Echafaudage roulant Ht. 12,00 m, montage, démontage, amortissement.","u",272]
["E80EN25","Bâchage d'échafaudage, pose, amortissment.","m2",1.71]
["E80EN30","Lavage de carrelage à l'eau.","m2",1.61]
["E80EN35","Grattage et lessivage de carrelage.","m2",4.95]
["E80EN40","Lavage de parquet à l'eau.","m2",2.2999999999999998]
["E80EN45","Grattage , lavage, passage à la paille de fer sur parquet.","m2",5.7]
["E80EN50","Encaustiquage à la cire sur parquet.","m2",4.5999999999999996]
["E80EN55","Nettoyage à l'extracteur sur moquette.","m2",7.5]
[]
[]
[]
[null,"REVETEMENTS DE SOLS ET MURS"]
[]
[null,"FABRICATION DES BETONS ET MORTIERS"]
[]
[null,"BETONS DE GRAVILLONS"]
["F11B125","Béton de gravillons dosé à 250 kg de ciment CEM II 32,5/m3 fabriqué sur chantier.","m3",116]
["F11B230","Béton de gravillons dosé à 300 kg de ciment CEM II 32,5/m3 fabriqué sur chantier.","m3",125]
["F11B335","Béton de gravillons dosé à 350 kg de ciment CEM II 32,5/m3 fabriqué sur chantier.","m3",144]
[]
[null,"MORTIER DE POSE"]
["F12B120","Mortier de ciment dosé à 200 kg de ciment CEM II 32,5/m2 fabriqué sur chantier.","m3",92.5]
["F12M125","Mortier de ciment dosé à 250 kg de ciment CEM II 32,5/m2 fabriqué sur chantier.","m3",102]
["F12M130","Mortier de ciment dosé à 300 kg de ciment CEM II 32,5/m2 fabriqué sur chantier.","m3",110]
["F12M135","Mortier de ciment dosé à 350 kg de ciment CEM II 32,5/m2 fabriqué sur chantier.","m3",119]
["F12M145","Mortier de ciment dosé à 450 kg de ciment CEM II 32,5/m2 fabriqué sur chantier.","m3",137]
["F12M325","Mortier batârd dosé ) 250 kg ciment /m3 fabriqué sur chantier.","m3",102]
[]
[null,"MORTIERS POUR JOINTOIEMENT"]
["F13MJ50","Mortier batârd dosé à 500kg de liant /m3, sable 0/2-3 tamisé, fabriqué sur chantier. (moitié ciment CEM II et moitie NHL)","m3",241]
["F13MJ52","Mortier batârd dosé à 800kg de ciment CEM I 42,5//m, sable 0/2-3 tamisé, fabriqué sur chantier.","m3",289]
["F13MJ54","Moriter ciment blanc dosé à 800kg de liant /m3, sable 0/2 tamisé, fabriqué sur chantier.","m3",477]
["F13MJ60","Coulis de ciment gris (barbotine)","m2",0.35]
["F13MJ65","coulis de ciment blanc (barbotine)","m2",0.46]
[]
[null,"PREPARATION DE SUPPORTS-FORME-ISOLATION-CHAPES-RAGREAGE"]
[null,"CHAPES CIMENT"]
["F21CC05","Observation: 0,10 heure/cm d ép. Supplémentaire de chape;"]
["F21CC20","Chape rapportée lissée de 0,02ép au mortier de ciment dosé à 450 Kg.","m2",14.2]
["F21CC25","Majoration pour chape d' épaisseur > 0,02m (par cm d' épaisseur en plus).","m2",3.67]
[null,"FORMES DIVERSES"]
["F22FD05","Obersvation: 0,5 h/cm d' ép de bêton en plus ou en moins de 10cm."]
["F22FD10","incorporation de treilles soudé de type RAF R;","m2",2.21]
["F22FD15","incorporation de treilles soudé de type PAF R;","m2",2.61]
["F22FD30","Corps de dallage de 0,10 ép. En béton de gravillon dosé à 300kg de ciment CEM II 32,5.","m2",18.399999999999999]
["F22FD40","Forme béton de vermiculite ép 0,08","m2"]
["F22FD45","surfaçage de béton de dallage éxécuté à la taloche. ","m2",2.2999999999999998]
["F22FD47","Surfaçage de béton de dallage éxécuté à la l' hélicoptère. ","m2",1.55]
["F22FD50","Forme en sable de 0,02 ép. Tirée à la règle.","m2",3.96]
["F22FD80","Film de désolidarisation en polyane 150 microns.","m2",1.34]
["F22FD82","Relevés de 0,40 dév en polyane 150 microns pour protection de pied de cloisons.","m ",1.92]
[null,"ISOLANTS PHONIQUES"]
["F23IM20","Isolation thermo-acoustique 20mm sous dalle béton par interposition d'un isolant minéral type DOMISOL 303 ép 20mm posé en une couche protégée par un film polyane 150 microns.","m2",15.3]
["F23IM22","Isolation thermo-acoustique 40mm sous dalle béton par interposition d'un isolant minéral type DOMISOL 303 ép 20mm posé en deux couchex protégéex par un film polyane 150 microns.","m2",29.3]
["F23IM40","Isolation thermo-acoustique 40mm sous dalle béton par interposition d'un isolant minéral type DOMISOL 303 ép 40mm posé en une couche protégée par un film polyane 150 microns.","m2",43.1]
[null,"OUVRAGES COMPLEMENTAIRES"]
["F24OC05","incorporation de treillis soudé maille 50/50 dans forme de pose de carrelage.","m2",1.94]
["F24OC10","Joint de fractionnement PVC 35 x 8mm scellé dans forme de pose","m",7.45]
["F24OC15","couvre joint de dilatation.","m",14]
["F24OC20","Joint mousse de désolidarisation à la périphérie des locaux.","m",2.19]
["F24OC25","Cornière laiton 25/25 scellée dans mortier de pose, formant joint entre deux revêtements différents.","m",11.3]
["F24OC26","Cornière inox 25/25 scellée dans mortier de pose, formant joint entre deux revêtements différents.","m",12.3]
["F24OC35","Cadre tapis brosse profil laiton 40/40 avec pattes à sceller, chape ciment lissée de 0,04 ép., tapis coco dos latex 60 x 80.","u",123]
["F24OC38","Cadre tapis brosse profil Shulter 40/40 avec pattes à sceller, chape ciment lissée de 0,04 ép., tapis coco dos latex 60 x 80.","u",101]
["F24OC45","Cadre et contre cadre 0,50 x 0,50 réalisé en cornière laiton 30/30 avec fond tôle striée à carreler pour visite regard ou syphon disconnecteur.","u",90]
["F24OC50","Barre de seuil inox de 30mm larg, fixation par chevilles et vis inox.","m",10.1]
["F24OC53","Barre de seuil laiton de 30mm larg, fixation par chevilles et vis inox.","m",12.5]
["F24OC60","Butoir de porte en caoutchouc.","u",4.97]
["F24OC80","Cordon d'étanchéité mastic silicone blanc exécuté à la pompe","m",1.98]
["F24OC95","Pose de siphon de sol non fourni y compris coupe des carreaux","u",8.0500000000000007]
[]
[null,"RAGREAGES"]
[]
["F25RA10","Enduit de lissage de 8 mm ép. Maxi au mortier type RAGRECOL sur support beton surfaçé ou chape ciment (sur support type I - Planéité < 5 mm sous la règle de 2 m)","m2",4.9000000000000004]
["F25RA30","Enduit de lissage de 8 mm ép. Maxi au mortier type RAGRECOL sur support beton surfaçé ou chape ciment (sur support type I - Planéité < 5 mm sous la règle de 2 m)","m2",7.95]
["F25RA40","Majoration pour enduit de lissage > 8 mm d'épaisseur, de 8 mm à … mm. (par mm d'ép. En plus de 8 mm)","m2",1]
["F25RA50","Ragréage de têtes de vis et joints sur plancher panneaux de particules","m2",2.38]
[]
[null,"HABILLAGES COFFRAGES"]
[]
["F26HA10","Habillage devant baignoire 70/170 par panneaux de particules 19 mm , pose sur tasseaux sapin traité."]
["F26HA15","Façon de tablette en extrémité de baignoire, dimension 0,50x0,70 m en panneaux de particules CTBH 22 mm , pose sur tasseaux sapin traité.","u",86]
["F26HA20","Façon de plan horizontal d'encastrement pour baignoire, en panneaux de particules CTBH 22 mm , fixé sur tasseaux sapin traité, dimension 0,850x0,90x2,20 m  .","u",102]
["F26HA30","Trappe de visite PVC type NICOLL TV608, dimension 6 carreaux 108x108, découpage du tablier baignoire, fixation par vis inox (carreaux non compris)","u",90]
["F26HA35","Trappe de visite PVC type NICOLL TV15, dimension 4 carreaux 150x150, découpage du tablier baignoire, fixation par vis inox (carreaux non compris)","u",35.6]
[null,null,"u",36.6]
[null,"CARRELAGE POSE SUR SUPPORTS BETON OU SUR CHAPES CIMENT"]
[]
["F3005","OBSERVATION : pour la pose collée, se conformer au Cahier des Prescriptions Techniques n° 3267 du CSTB de mai 2000 (ce cahier définissant notamment les types de mortier colle à utiliser en fonction de la nature du support)."]
["F3008","Les prix d'ouvrages contenus dans ce chapitre ne concernent que                     *pose collée avec mortier colle C1                                                                                   *pose collée avec mortier colle C2"]
["F3009","SOUS-COUCHE DE DESOLIDARISATION sur support béton exclu en pose collée directe.                                                                                                                          P.V. de main d'œuvre pour collage film de désolidarisation. (interface de type CERMIBETON, CERMIPHONE, ou FERMACOUSTIC)","m2",3.44]
["F3010","Les prix de vente de carrelage collés seront à adapter  selon le cas de figure (la modification du contenu des sous-détails, en fonction de la planéité du support par exemple, ayant une incidence sur la consommation de colle)."]
["F3020","TEMPS DE POSE : les temps unitaires de base sont établis pour des carreaux de format 15/15 posés en simple encollage pour des locaux (ou locaux attenants) d'une surface de l'ordre de 25 à 305 m²"]
["F3022","*Surfaces jusqu'à 25-30 m² : pose 0,75h/m²……….Joints 0,15h/m²                                                                   *Surfaces supérieures à 50 m² : pose 0,55h/m²……….Joints 0,10h/m²"]
["F3024","Les temps unitaires pourront varier de 0,05h/m² par fraction de 5 cm en + ou en - de 15 cm (pour les formats de 10/10 à 30/30)"]
[]
[null,"MAJORATION DE POSE"]
[]
["F30MP05","Majoration ou minoration pour pose de carreaux de dimensions < ou > à 15/15 par fraction de 5 cm en plus ou en moins","m2",1.1499999999999999]
["F30MP10","Majoration pour pose de carreaux en double-encollage par enduction de de mortier-colle C1 au dos des carreaux","m2",1.63]
["F30MP20","Majoration pour pose de carreaux en double-encollage par enduction de de mortier-colle C2 au dos des carreaux","m2",1.97]
[]
[null,"CARRELAGE GRES CERAME"]
[]
["F31GC05","Carrelage grès Cérame 15/15 collé au moyen d'un mortier-colle C1, en simple encollage, joints de 3 mm réalisés au mortier prêt à l'emploi. (fourniture carrelage non comprise).","m2",23.1]
["F31GC10","Carrelage grès Cérame 15/15 collé au moyen d'un mortier-colle C2, en simple encollage, joints de 3 mm réalisés au mortier prêt à l'emploi. (fourniture carrelage non comprise).","m2",24.2]
[]
[null,"CARRELAGE GRES EMAILLE"]
[]
["F32GE05","Carrelage grès émaillé 15/15 collé au moyen d'un mortier-colle C1, en simple encollage, joints de 3 mm réalisés au mortier prêt à l'emploi. (fourniture carrelage non comprise).","m2",23.1]
["F32GE10","Carrelage grès émaillé 15/15 collé au moyen d'un mortier-colle C2, en simple encollage, joints de 3 mm réalisés au mortier prêt à l'emploi. (fourniture carrelage non comprise).","m2",21.4]
[]
[null,"CARRELAGE GRES ETIRE"]
[]
["F33GT05","Carrelage grès étiré 15/15 collé au moyen d'un mortier-colle C1, en simple encollage, joints de 3 mm réalisés au mortier prêt à l'emploi. (fourniture carrelage non comprise).","m2",23.1]
["F33GT10","Carrelage grès étiré 15/15 collé au moyen d'un mortier-colle C2, en simple encollage, joints de 3 mm réalisés au mortier prêt à l'emploi. (fourniture carrelage non comprise).","m2",24.2]
[]
[null,"CARRELAGE COLLE SUR SUPPORT BOIS"]
[]
["F4005","OBSERVATION : utiliser les ouvrages du chapitre 30                                                   - S'assurer que la mise en œuvre de carrelage collé est compatible avec le support.                                                                                                                                         - Prévoir les préparations spécifiques au type de support."]
[]
[null,"CARRELAGE GRES CERAME"]
[]
[null,"CARRELAGE GRES EMAILLE"]
[]
[null,"CARRELAGE SCELLE SUR SUPPORT BETON"]
[]
["F5005","OBSERVATION : la pose scellée est interdite sur tout support récent sans couche de désolidarisation (dallage : > 1 mois, Plancher B.A. > 6 mois)."]
["F5007","Epaisseur du mortier de pose du carrelage                                                       - Pose adhérente : ép. Mortier 2 à 4 cm                                                           - Pose désolidarisée : ép. 3 à 6 cm."]
["F5015","Les sous-détails de carrelage scellé seront à adapter à chaque cas de figure (pose adhérente ou non, épaisseur du mortier, armature…)"]
["F5030","TEMPS DE POSE : les temps unitaires de base sont établis pour des carreaux de format 15/15 scellés à la barbotine sur mortier de 3 cm ép."]
["F5032","*Surfaces jusqu'à 25-30 m² : pose 0,85h/m²……….Joints 0,15h/m²                                                                   *Surfaces supérieures à 50 m² : pose 0,70h/m²……….Joints 0,10h/m²"]
["F5034","Les temps unitaires pourront varier de 0,05h/m² par fraction de 5 cm en + ou en - de 15 cm (pour les formats de 10/10 à 30/30)"]
["F5036","Majoration de 0,10h/m² pour pose de carrelage en double-encollage (application de barbotine au dos des carreaux)"]
[]
[null,"MAJORATION DE POSE"]
[]
["F50MP05","Majoration ou minoration pour pose de carreaux de dimensions < ou > à 15/15 par fraction de 5 cm en plus ou en moins","m2",1.1499999999999999]
["F50MP10","Majoration pour pose de carreaux en double-encollage avec barbotine au dos des carreaux","m2",1.73]
[]
[null,"CARRELAGE GRES CERAME"]
[]
["F51GC05","Carrelage grès cérame 15/15 scellés à la barbotine en simple encollage sur forme de mortier de ciment pose adhérente au support, joints de 3 mm réalisés au coulis de ciment. (fourniture carrelage non comprise).","m2",28.1]
[]
[null,"CARRELAGE GRES EMAILLE"]
[]
["F52GE05","Carrelage grès émaillé 15/15 scellés à la barbotine en simple encollage sur forme de mortier de ciment pose adhérente au support, joints de 3 mm réalisés au coulis de ciment. (fourniture carrelage non comprise).","m2",28.1]
[]
[null,"CARRELAGE GRES ETIRE"]
[]
["F53GT05","Carrelage grès étiré 15/15 scellés à la barbotine en simple encollage sur forme de mortier de ciment pose adhérente au support, joints de 3 mm réalisés au coulis de ciment. (fourniture carrelage non comprise).","m2",28.1]
[]
[null,"CARRELAGE TERRE CUITE"]
[]
["F54TC00","OBSERVATION : pose scellée prévue sur mortier de ciment à maçonner dosé à 300 kg/m² (Ciment CEM II 32,5 ou calcia BATICIM) d'épaisseur minimale 5 cm permettant le battage des carreaux."]
["F54TC02","Pose désolidarisée par lit de sable de 5 mm (ou film polyane)."]
["F54TC04","TEMPS DE POSE : les temps unitaires de base sont établis pour des carreaux de format 16/16 scellés par saupoudrage de ciment sur mortier de pose."]
["F54TC06","*Surfaces jusqu'à 25-30 m² : pose 1,00h/m²……….Joints 0,20h/m²                                                                   *Surfaces supérieures à 50 m² : pose 0,80h/m²……….Joints 0,15h/m²"]
["F54TC10","Carrelage terre cuite joints alignés ou croisés"]
["F54TC12","Carrelage terre cuite 15/15 scellés par barbotine en simple encollage  (ou par saupoudrage de ciment) sur une forme de mortier de ciment, pose désolidarisée du support, joints de 8 mm réalisés au coulis de ciment. (fourniture carrelage non comprise).","m2",34.299999999999997]
["F54TC50","carrelage hexagonal terre cuite"]
["F54TC60","carrelage composé avec navettes"]
["F54TC70","carrelage pans coupés avec navettes"]
[]
[null,"PLINTHES"]
[]
["F6005","OBSERVATION : modes de pose soit par collage au mortier adhésif, soit par scellement au mortier de ciment éop. 1 cm                                                                  jointoiement : joints éxécutés au mortier prêt à l'emploi."]
["F6007","TEMPS DE POSE : les temps unitaires de base sont établis pour des plinthes de0,20 à 0,30 x 0,10 ht., comprenant pose et jointoiement."]
[]
[null,"PLINTHES COLLEES"]
[]
["F61PC05","Plinthe droite en grès 20/10 collée par simple encollage, joints  au mortier prêt à l'emploi. (fourniture non comprise).","m",6.3]
["F61PC30","Plinthe à gorge grès 20/10 collée par simple encollage, joints  au mortier prêt à l'emploi. (fourniture non comprise).","m",8.75]
[]
[null,"PLINTHES SCELLEES"]
[]
["F62PS05","Plinthe droite en grès 20/10 scellées au mortier de ciment, joints au mortier prêt à l'emploi. (fourniture non comprise).","m",7.1]
["F62PS30","Plinthe à gorge en grès 20/10 scellées au mortier de ciment, joints au mortier prêt à l'emploi. (fourniture non comprise).","m",9.5]
[]
[null,"REVETEMENTS MURAUX"]
[]
["F7005","OBSERVATION : pose au cordeau, collage au mortier adhésif et jointoiement au mortier prêt à l'emploi."]
["F7007","Les sous détails sont établis pour une pose en locaux secs ou moyennement humides sur supports plâtre, plaque de plâtre, enduits à base de liants hydrauliques ou béton.                                                                             Le complément d'étanchéité qui serait rendu nécessaire par la règlementation sur certains supports n'est pas inclus dans ces sous-détails."]
["F7010","TEMPS DE POSE : les temps unitaires de base sont établis pour des surfaces de 5 à 8 m², comprenant la pose en simple encollage et le jointoiement."]
["F7012","Surfaces > 5 m² : compter 0,20 h/m² en plus.","m2",4.59]
["F70MP10","Majoration pour pose de faïence ou carrelage en double encollage avec adhésif D1","m2",3.27]
["F70MP15","Majoration pour pose de faïence ou carrelage en double encollage avec adhésif D2","m2",2.75]
["F70MP30","Application en 2 couches d'un produit d'étanchéité sur support non admis en pose collée directe.","m2",9.85]
[]
[null,"FAIENCE COLLEE"]
[]
["F71FA05","Faïence 108/108 collée au moyen d'un adhésif D1 en simple encollage, joints gris au mortier prêt à l'emploi (fourniture faïence non comprise).","m2",31.7]
["F71FA20","Faïence 150/150 collée au moyen d'un adhésif D1 en simple encollage, joints gris au mortier prêt à l'emploi (fourniture faïence non comprise).","m2",27.1]
["F71FA50","Dosseret 0,60x0,60 env. pour lavabo faïence collée au moyen d'un adhésif D1 en simple encollage, joints gris au mortier prêt à l'emploi (fourniture faïence non comprise).","u",38.799999999999997]
[]
[null,"GRES CERAME COLLE"]
[]
["F72GC05","Revêtement mural grès cérame 15/15 collé au moyen d'un adhésif D2 en simple encollage, joints réalisés au mortier prêt à l'emploi (fourniture faïence non comprise).","m2",25.1]
[]
[null,"GRES EMAILLE COLLE"]
[]
["F73GE05","Revêtement mural grès émaillé 15/15 collé au moyen d'un adhésif D2 en simple encollage, joints réalisés au mortier prêt à l'emploi (fourniture faïence non comprise).","m2",25.1]
[]
[null,"GRES EMAILLE COLLE"]
[]
["F73LI10","Frise ou listel en faïence ou en grès collé au moyen d'un adhésif en simple encollage, jointoiement au mortier prêt à l'emploi (fourniture frise ou listels non comprise).","m",3.83]
[]
[null,"PIERRE NATURELLE"]
[]
[null,"REVETEMENTS SOLS MINCES"]
[]
["F9005","OBSERVATION : pour les aiguilletés et moquettes, la fourniture est à compter séparément de la pose suivant la surface nécessaire (compris chutes)"]
["F9007","Pour les revêtements vinyl en dalle, la fourniture est à inclure dans le prix de pose."]
["F9010","Pour les revêtements vinyl en lés, la fourniture est à compter séparément de la pose suivant la surface nécessaire (compris chutes)"]
["F9015","TEMPS DE POSE : les temps unitaires comprenent lle balayage du support et la pose en simple encollage. (enduit de lissage, ragréage et autres préparations à prévoir)"]
[]
[null,"PREPARATION DES SUPPORTS"]
[]
[null,"AIGUILLETES"]
[]
["F92RA05","Aiguilleté en 3,00 m de largeur, pose collée en simple encollage sur support ragréé (l'enduit de lissage à reprendre) (fourniture aiguilleté non comprise).","m2",6.1]
[]
[null,"MOQUETTES"]
[]
["F92RM05","Moquette en 3,00 m de largeur, pose collée en simple encollage sur support ragréé (l'enduit de lissage à reprendre) (fourniture aiguilleté non comprise).","m2",6.1]
["F92RM10","Moquette en 4,00 m de largeur, pose collée en simple encollage sur support ragréé (l'enduit de lissage à reprendre) (fourniture aiguilleté non comprise).","m2",6.75]
[]
[null,"MOQUETTES"]
[]
["F95RV05","Revêtement plastique en lés de 1,50 m de largeur, pose collée en simple encollage sur support ragréé (l'enduit de lissage à reprendre) (fourniture revêtement non comprise).","m2",7.6]
["F95RV26","Revêtement en dalles  plastique 300x300, pose collée en simple encollage sur support ragréé (l'enduit de lissage à reprendre) (fourniture dalles non comprise).","m2",7.6]
["F95RV90","Joint à froid sur revêtement plastique en jonction de lés de 1,50 m de largeur.","m2",2.04]
["F95RV92","Joint à chaud sur revêtement plastique en jonction de lés de 1,50 m de largeur.","m2",3.24]
["F95RV95","Joint à froid sur dalles  plastique 300x300","m2",12.2]
["F95RV97","Joint à chaud sur dalles  plastique 300x300","m2",20.6]

{"sheet":"DQE TYPE","index":1,"n_rows":26,"n_cols":22,"rows_kept":26,"cut":false,"hidden":false,"merged":[[0,0,0,21],[2,0,2,21],[4,0,4,21],[7,0,7,5],[7,6,7,13]]}
["RESTRUCTURATION D'UN ENSEMBLE IMMOBILIER\n34 logements collectifs & 22 individuels groupés"]
[]
["72000 LE MANS"]
[]
["LOT N°07 - Peinture"]
[]
[]
["N°",null,null,null,null,null,"Désignations",null,null,null,null,null,null,null,"rep",null,null,null,null,null,"U","Quantité"]
[]
[]
["07.3",null,null,null,null,null,"PEINTURE INTERIEURE"]
[]
[null,"07.3.1",null,null,null,null,null,"Peinture en plafonds"]
[]
[null,null,"07.3.1.1",null,null,null,null,null,"Peinture lavable en dispersion aqueuse"]
[]
[null,null,null,"07.3.1.1.1",null,null,null,null,null,"Logements 1 :"]
[]
[null,null,null,null,null,null,null,null,null,null,null,"Entrée :"]
[null,null,null,null,null,null,null,null,null,null,null,"2,62 X 3,12  =",null,null,null,{"$f":"2.62*3.12","v":8.1744000000000003}]
[]
[null,null,null,null,null,null,null,null,null,null,null,"Cuisine :"]
[null,null,null,null,null,null,null,null,null,null,null,"3,82 X 3,93  =",{"$f":"3.82*3.93","v":15.012600000000001}]
[null,null,null,null,null,null,null,null,null,null,null,"ded. 0,91 X 2,60  =",{"$f":"0.91*2.6","v":2.3660000000000001}]
[null,null,null,null,null,null,null,null,null,null,null,null,"Reste  =",null,null,{"$f":"M23-M24","v":12.646600000000001}]
[null,null,null,null,null,null,null,null,null,null,null,null,null,null,null,"Ens.  =",{"$f":"SUM(P20:P25)","v":20.821000000000002},null,null,null,"m2",1500.35]

{"sheet":"Feuil1","index":2,"n_rows":36,"n_cols":14,"rows_kept":36,"cut":false,"hidden":false,"merged":[[0,2,0,5],[9,2,9,5],[10,2,10,5],[11,0,11,3],[5,0,5,1],[5,2,5,3],[6,0,6,1],[6,2,6,3],[1,2,1,5],[2,0,2,3],[3,0,3,1],[3,2,3,3],[4,0,4,1],[4,2,4,3],[12,0,12,1],[12,2,12,3],[13,0,13,1],[13,2,13,3],[14,0,14,1],[14,2,14,3],[15,0,15,1],[15,2,15,3],[18,2,18,5],[19,2,19,5],[20,0,20,3],[16,0,16,1],[16,2,16,3],[30,0,30,3],[22,0,22,1],[22,2,22,3],[23,0,23,1],[23,2,23,3],[24,0,24,1],[24,2,24,3],[21,0,21,1],[21,2,21,3],[35,0,35,1],[35,2,35,3],[25,0,25,1],[25,2,25,3],[33,0,33,1],[33,2,33,3],[34,0,34,1],[34,2,34,3],[31,0,31,1],[31,2,31,3],[32,0,32,1],[32,2,32,3],[28,2,28,5],[29,2,29,5]]}
[null,null,"Logement 4"]
[null,null,"EU/EV"]
["Points particuliers",null,null,null,"Cote fil d'eau","Cote tampon","Profondeur","Dimensions regard",null,"Tronçons","Regards 30/30/35ht","Coudes","Culottes / T"]
["Fil d'eau en \"1\"",null,null,null,"59,10","59,40",{"$f":"F4-E4","v":0.29999999999999716},"coude",null,"1-4",null,3,3]
["Fil d'eau en \"2\"",null,null,null,"59,10","59,40",{"$f":"F5-E5","v":0.29999999999999716},"coude",null,"2-4",null,2,1]
["Fil d'eau en \"3\"",null,null,null,{"$f":"59.1-(5.1*0.02)","v":58.998000000000005},"59,40",0.40199999999999392,"aucun",null,"3-4",null,1]
["Fil d'eau en \"4\"",null,null,null,"58,96","59,25",0.28999999999999915,"20/20/30ht",null,4,2]
[]
[]
[null,null,"Logement 3"]
[null,null,"EU/EV"]
["Points particuliers",null,null,null,"Cote fil d'eau","Cote tampon","Profondeur","Dimensions regard",null,"Tronçons","Regards                        30/30/35ht","Coudes","Culottes / T"]
["Fil d'eau en \"1\"",null,null,null,"59,10","59,40",{"$f":"F13-E13","v":0.29999999999999716},"coude",null,"1-4",null,2,2]
["Fil d'eau en \"2\"",null,null,null,"59,10","59,40",{"$f":"F14-E14","v":0.29999999999999716},"coude",null,"2-4",null,2,2]
["Fil d'eau en \"3\"",null,null,null,"59,10","59,40",0.29999999999999716,"coude",null,"3-4",null,1]
["Fil d'eau en \"4\"",null,null,null,"58,96","59,25",0.28999999999999915,"20/20/30ht",null,"5-4",null,3]
["Fil d'eau en \"5\"",null,null,null,"59,10","59,40",{"$f":"F17-E17","v":0.29999999999999716},"coude",null,"4",2,1]
[]
[null,null,"Logement 4"]
[null,null,"EP"]
["Points particuliers",null,null,null,"Cote fil d'eau","Cote tampon","Profondeur","Dimensions regard",null,"Tronçons","Regards 30/30/35ht","Réhausse 30/30/30ht","Coudes ","Culottes / T"]
["Fil d'eau en \"A\"",null,null,null,"58,32","58,65",{"$f":"F22-E22","v":0.32999999999999829},"30/30/35ht",null,"A",1,null,1]
["Fil d'eau en \"B\"",null,null,null,"58,15","58,65",{"$f":"F23-E23","v":0.5},"30/30/35ht",null,"B",1,1,1]
["Fil d'eau en \"C\"",null,null,null,58.75,"59,25",0.5,"30/30/35ht",null,"C",1,1,null,1]
["Fil d'eau en \"D\"",null,null,null,"58,72","59,25",0.53000000000000114,"30/30/35ht",null,"D",1,1,1]
["Fil d'eau en \"E\"",null,null,null,"58,20","58,65",{"$f":"F26-E26","v":0.44999999999999574},"30/30/35ht",null,"E",1,1]
[]
[]
[null,null,"Logement 3"]
[null,null,"EP"]
["Points particuliers",null,null,null,"Cote fil d'eau","Cote tampon","Profondeur","Dimensions regard",null,"Tronçons","Regards 30/30/35ht","Réhausse 30/30/30ht","Coudes ","Culottes / T"]
["Fil d'eau en \"A\"",null,null,null,"58,94","59,25",{"$f":"F32-E32","v":0.31000000000000227},"30/30/35ht",null,"A",1]
["Fil d'eau en \"B\"",null,null,null,"58,60","59,25",{"$f":"F33-E33","v":0.64999999999999858},"30/30/35ht",null,"B",1,1,null,1]
["Fil d'eau en \"C\"",null,null,null,58.76,"59,25",0.49000000000000199,"30/30/35ht",null,"C",1,1,1,1]
["Fil d'eau en \"D\"",null,null,null,"58,77","59,25",0.47999999999999687,"30/30/35ht",null,"D",1,1,1]
["Fil d'eau en \"E\"",null,null,null,"58,79","59,25",{"$f":"F36-E36","v":0.46000000000000085},"30/30/35ht",null,"E",1,1]